Workbook

Sheet Main
B10: 2018-11-07
B12: Sheet No. | C12: Template Name | D12: Summary
B13: 1 | C13: Future Intra | D13: For Intraday trading in F&O segment
B14: 2 | C14: Cash Intra | D14: For Intraday trading in cash market segment
B15: 3 | C15: Mid-cap Intra | D15: For Intraday trading in Mid-cap stocks
B16: 4 | C16: Bulk Deals | D16: Reveals Bulk Deals carried on NSE & BSE
B17: 5 | C17: Call Tracker

Sheet Future Intra
M5: Back to Main Page
A6: FOR INTRA DAY TRADING | L6: =Main!B10 -> 2018-11-07
A9: Sr.no | B9: Sector | C9: Scrip | D9: CLOSE RATE | E9: Pivot Point | F9: Supports | I9: Resistances
B10: Sector | D10: Point | E10: Point | F10: S1 | G10: S2 | H10: S3 | I10: R1 | J10: R2 | K10: R3 | L10: HIGH | M10: LOW | N10: OI | O10: % Change in OI
A11: 1 | B11: Index | C11: BANKNIFTY | D11: 25683.20 | E11: 25746.58 | F11: 25553.52 | G11: 25423.83 | H11: 25230.77 | I11: 25876.27 | J11: 26069.33 | K11: 26199.02 | L11: 25939.65 | M11: 25616.9 | N11: 1450480 | O11: -17.25%
A12: 2 | B12: Index | C12: NIFTY | D12: 10554.85 | E12: 10562.28 | F12: 10504.57 | G12: 10454.28 | H12: 10396.57 | I12: 10612.57 | J12: 10670.28 | K12: 10720.57 | L12: 10620 | M12: 10512 | N12: 24624075 | O12: -0.57%
A13: 5 | B13: Index | C13: NIFTYIT | D13: 14616.00 | E13: 14611.00 | F13: 14537.00 | G13: 14458.00 | H13: 14384.00 | I13: 14690.00 | J13: 14764.00 | K13: 14843.00 | L13: 14685 | M13: 14532 | N13: 15150 | O13: -4.72%
A14: 6 | B14: Index | C14: NIFTYMID50 | D14: 4740.00 | E14: 4800.00 | F14: 4610.00 | G14: 4480.00 | H14: 4290.00 | I14: 4930.00 | J14: 5120.00 | K14: 5250.00 | L14: 4990 | M14: 4670 | N14: 694870 | O14: 0.00%
A15: 8 | B15: Cement | C15: ACC | D15: 1448.40 | E15: 1459.13 | F15: 1433.27 | G15: 1418.13 | H15: 1392.27 | I15: 1474.27 | J15: 1500.13 | K15: 1515.27 | L15: 1485 | M15: 1444 | N15: 904400 | O15: -0.75%
A16: 9 | B16: Others | C16: ADANIENT | D16: 165.00 | E16: 165.62 | F16: 161.63 | G16: 158.27 | H16: 154.28 | I16: 168.98 | J16: 172.97 | K16: 176.33 | L16: 169.6 | M16: 162.25 | N16: 37392000 | O16: 2.73%
A17: 10 | B17: Others | C17: ADANIPORTS | D17: 327.10 | E17: 329.83 | F17: 321.47 | G17: 315.83 | H17: 307.47 | I17: 335.47 | J17: 343.83 | K17: 349.47 | L17: 338.2 | M17: 324.2 | N17: 17382500 | O17: 1.56%
A18: 11 | B18: Power | C18: ADANIPOWER | D18: 49.60 | E18: 49.98 | F18: 48.62 | G18: 47.63 | H18: 46.27 | I18: 50.97 | J18: 52.33 | K18: 53.32 | L18: 51.35 | M18: 49 | N18: 159060000 | O18: 0.03%
A19: 12 | B19: Pharma | C19: AJANTPHARM | D19: 1051.15 | E19: 1062.17 | F19: 1034.18 | G19: 1017.22 | H19: 989.23 | I19: 1079.13 | J19: 1107.12 | K19: 1124.08 | L19: 1090.15 | M19: 1045.2 | N19: 566000 | O19: -6.60%
A20: 13 | B20: Banking | C20: ALBK | D20: 43.75 | E20: 44.17 | F20: 42.98 | G20: 42.22 | H20: 41.03 | I20: 44.93 | J20: 46.12 | K20: 46.88 | L20: 45.35 | M20: 43.4 | N20: 15048000 | O20: 1.26%
A21: 14 | B21: Automobile | C21: AMARAJABAT | D21: 772.75 | E21: 771.52 | F21: 765.03 | G21: 757.32 | H21: 750.83 | I21: 779.23 | J21: 785.72 | K21: 793.43 | L21: 778 | M21: 763.8 | N21: 1062600 | O21: -4.53%
A22: 15 | B22: Cement | C22: AMBUJACEM | D22: 204.45 | E22: 205.27 | F22: 203.03 | G22: 201.62 | H22: 199.38 | I22: 206.68 | J22: 208.92 | K22: 210.33 | L22: 207.5 | M22: 203.85 | N22: 16697500 | O22: -2.61%
A23: 17 | B23: Others | C23: APOLLOHOSP | D23: 1130.95 | E23: 1141.58 | F23: 1114.37 | G23: 1097.78 | H23: 1070.57 | I23: 1158.17 | J23: 1185.38 | K23: 1201.97 | L23: 1168.8 | M23: 1125 | N23: 669500 | O23: -1.90%
A24: 18 | B24: Automobile | C24: APOLLOTYRE | D24: 213.70 | E24: 215.65 | F24: 210.75 | G24: 207.80 | H24: 202.90 | I24: 218.60 | J24: 223.50 | K24: 226.45 | L24: 220.55 | M24: 212.7 | N24: 8049000 | O24: 5.22%
A25: 19 | B25: Textile | C25: ARVIND | D25: 318.35 | E25: 320.10 | F25: 313.90 | G25: 309.45 | H25: 303.25 | I25: 324.55 | J25: 330.75 | K25: 335.20 | L25: 326.3 | M25: 315.65 | N25: 6832000 | O25: 5.01%
A26: 20 | B26: Automobile | C26: ASHOKLEY | D26: 121.25 | E26: 120.88 | F26: 119.42 | G26: 117.58 | H26: 116.12 | I26: 122.72 | J26: 124.18 | K26: 126.02 | L26: 122.35 | M26: 119.05 | N26: 43932000 | O26: 0.98%
A27: 21 | B27: FMCG | C27: ASIANPAINT | D27: 1244.40 | E27: 1248.17 | F27: 1237.63 | G27: 1230.87 | H27: 1220.33 | I27: 1254.93 | J27: 1265.47 | K27: 1272.23 | L27: 1258.7 | M27: 1241.4 | N27: 5010000 | O27: -0.29%
A28: 22 | B28: Pharma | C28: AUROPHARMA | D28: 787.95 | E28: 787.37 | F28: 779.78 | G28: 771.62 | H28: 764.03 | I28: 795.53 | J28: 803.12 | K28: 811.28 | L28: 794.95 | M28: 779.2 | N28: 19113000 | O28: 1.72%
A29: 23 | B29: Banking | C29: AXISBANK | D29: 607.90 | E29: 613.10 | F29: 596.90 | G29: 585.90 | H29: 569.70 | I29: 624.10 | J29: 640.30 | K29: 651.30 | L29: 629.3 | M29: 602.1 | N29: 35157600 | O29: -7.16%
A30: 24 | B30: Automobile | C30: BAJAJ-AUTO | D30: 2673.10 | E30: 2679.70 | F30: 2656.55 | G30: 2640.00 | H30: 2616.85 | I30: 2696.25 | J30: 2719.40 | K30: 2735.95 | L30: 2702.85 | M30: 2663.15 | N30: 2285500 | O30: -0.89%
A31: 25 | B31: Others | C31: BAJAJFINSV | D31: 5595.05 | E31: 5620.13 | F31: 5550.27 | G31: 5505.48 | H31: 5435.62 | I31: 5664.92 | J31: 5734.78 | K31: 5779.57 | L31: 5690 | M31: 5575.35 | N31: 684000 | O31: -1.01%
A32: 26 | B32: Finance | C32: BAJFINANCE | D32: 2349.30 | E32: 2363.40 | F32: 2328.20 | G32: 2307.10 | H32: 2271.90 | I32: 2384.50 | J32: 2419.70 | K32: 2440.80 | L32: 2398.6 | M32: 2342.3 | N32: 6635500 | O32: 1.50%
A33: 27 | B33: Others | C33: BALKRISIND | D33: 946.10 | E33: 972.40 | F33: 914.80 | G33: 883.50 | H33: 825.90 | I33: 1003.70 | J33: 1061.30 | K33: 1092.60 | L33: 1030 | M33: 941.1 | N33: 2495200 | O33: 42.68%
A34: 29 | B34: Banking | C34: BANKBARODA | D34: 111.00 | E34: 111.67 | F34: 109.63 | G34: 108.27 | H34: 106.23 | I34: 113.03 | J34: 115.07 | K34: 116.43 | L34: 113.7 | M34: 110.3 | N34: 73420000 | O34: -0.40%
A35: 30 | B35: Banking | C35: BANKINDIA | D35: 86.15 | E35: 86.45 | F35: 85.10 | G35: 84.05 | H35: 82.70 | I35: 87.50 | J35: 88.85 | K35: 89.90 | L35: 87.8 | M35: 85.4 | N35: 20220000 | O35: -3.63%
A36: 31 | B36: FMCG | C36: BATAINDIA | D36: 1013.95 | E36: 1014.75 | F36: 1000.20 | G36: 986.45 | H36: 971.90 | I36: 1028.50 | J36: 1043.05 | K36: 1056.80 | L36: 1029.3 | M36: 1001 | N36: 1616450 | O36: 2.58%
A37: 32 | B37: Capital_Goods | C37: BEL | D37: 95.20 | E37: 95.62 | F37: 94.38 | G37: 93.57 | H37: 92.33 | I37: 96.43 | J37: 97.67 | K37: 98.48 | L37: 96.85 | M37: 94.8 | N37: 22237800 | O37: 0.40%
A38: 33 | B38: Infrastructure | C38: BEML | D38: 715.80 | E38: 713.00 | F38: 702.00 | G38: 688.20 | H38: 677.20 | I38: 726.80 | J38: 737.80 | K38: 751.60 | L38: 724 | M38: 699.2 | N38: 1613000 | O38: 0.37%
A39: 34 | B39: Others | C39: BERGEPAINT | D39: 297.60 | E39: 299.62 | F39: 294.28 | G39: 290.97 | H39: 285.63 | I39: 302.93 | J39: 308.27 | K39: 311.58 | L39: 304.95 | M39: 296.3 | N39: 2321000 | O39: -2.68%
A40: 35 | B40: Finance | C40: BHARATFIN | D40: 908.50 | E40: 912.22 | F40: 891.23 | G40: 873.97 | H40: 852.98 | I40: 929.48 | J40: 950.47 | K40: 967.73 | L40: 933.2 | M40: 894.95 | N40: 7544500 | O40: 5.19%
A41: 36 | B41: Automobile | C41: BHARATFORG | D41: 584.20 | E41: 590.40 | F41: 576.20 | G41: 568.20 | H41: 554.00 | I41: 598.40 | J41: 612.60 | K41: 620.60 | L41: 604.6 | M41: 582.4 | N41: 7500000 | O41: 0.61%
A42: 37 | B42: Telecom | C42: BHARTIARTL | D42: 305.35 | E42: 305.72 | F42: 302.93 | G42: 300.52 | H42: 297.73 | I42: 308.13 | J42: 310.92 | K42: 313.33 | L42: 308.5 | M42: 303.3 | N42: 44786500 | O42: -0.63%
A43: 38 | B43: Capital_Goods | C43: BHEL | D43: 69.65 | E43: 70.13 | F43: 68.87 | G43: 68.08 | H43: 66.82 | I43: 70.92 | J43: 72.18 | K43: 72.97 | L43: 71.4 | M43: 69.35 | N43: 46477500 | O43: 1.72%
A44: 39 | B44: Pharma | C44: BIOCON | D44: 630.45 | E44: 631.82 | F44: 624.53 | G44: 618.62 | H44: 611.33 | I44: 637.73 | J44: 645.02 | K44: 650.93 | L44: 639.1 | M44: 625.9 | N44: 5754600 | O44: -1.46%
A45: 40 | B45: Automobile | C45: BOSCHLTD | D45: 19399.05 | E45: 19453.02 | F45: 19266.03 | G45: 19133.02 | H45: 18946.03 | I45: 19586.03 | J45: 19773.02 | K45: 19906.03 | L45: 19640 | M45: 19320 | N45: 132480 | O45: -2.86%
A46: 41 | B46: Oil_Gas | C46: BPCL | D46: 286.50 | E46: 289.22 | F46: 282.83 | G46: 279.17 | H46: 272.78 | I46: 292.88 | J46: 299.27 | K46: 302.93 | L46: 295.6 | M46: 285.55 | N46: 12499200 | O46: 4.77%
A47: 42 | B47: FMCG | C47: BRITANNIA | D47: 5741.80 | E47: 5738.32 | F47: 5667.63 | G47: 5593.47 | H47: 5522.78 | I47: 5812.48 | J47: 5883.17 | K47: 5957.33 | L47: 5809 | M47: 5664.15 | N47: 1427400 | O47: 2.06%
A48: 43 | B48: Pharma | C48: CADILAHC | D48: 350.35 | E48: 354.53 | F48: 343.47 | G48: 336.58 | H48: 325.52 | I48: 361.42 | J48: 372.48 | K48: 379.37 | L48: 365.6 | M48: 347.65 | N48: 8484800 | O48: 3.98%
A49: 44 | B49: Banking | C49: CANBK | D49: 242.80 | E49: 244.20 | F49: 239.20 | G49: 235.60 | H49: 230.60 | I49: 247.80 | J49: 252.80 | K49: 256.40 | L49: 249.2 | M49: 240.6 | N49: 9048000 | O49: 4.19%
A50: 45 | B50: Others | C50: CANFINHOME | D50: 277.45 | E50: 280.28 | F50: 270.62 | G50: 263.78 | H50: 254.12 | I50: 287.12 | J50: 296.78 | K50: 303.62 | L50: 289.95 | M50: 273.45 | N50: 3258600 | O50: -5.85%
A51: 46 | B51: Finance | C51: CAPF | D51: 478.25 | E51: 478.40 | F51: 474.70 | G51: 471.15 | H51: 467.45 | I51: 481.95 | J51: 485.65 | K51: 489.20 | L51: 482.1 | M51: 474.85 | N51: 6716000 | O51: -3.47%
A52: 47 | B52: Oil_Gas | C52: CASTROLIND | D52: 143.85 | E52: 144.85 | F52: 141.60 | G52: 139.35 | H52: 136.10 | I52: 147.10 | J52: 150.35 | K52: 152.60 | L52: 148.1 | M52: 142.6 | N52: 8156600 | O52: 0.26%
A53: 48 | B53: Automobile | C53: CEATLTD | D53: 1157.55 | E53: 1164.38 | F53: 1141.27 | G53: 1124.98 | H53: 1101.87 | I53: 1180.67 | J53: 1203.78 | K53: 1220.07 | L53: 1187.5 | M53: 1148.1 | N53: 785250 | O53: -0.13%
A54: 49 | B54: Textile | C54: CENTURYTEX | D54: 864.70 | E54: 869.23 | F54: 854.67 | G54: 844.63 | H54: 830.07 | I54: 879.27 | J54: 893.83 | K54: 903.87 | L54: 883.8 | M54: 859.2 | N54: 5237100 | O54: -1.30%
A55: 50 | B55: Power | C55: CESC | D55: 684.70 | E55: 690.93 | F55: 676.87 | G55: 669.03 | H55: 654.97 | I55: 698.77 | J55: 712.83 | K55: 720.67 | L55: 705 | M55: 683.1 | N55: 1857900 | O55: 1.66%
A56: 51 | B56: Power | C56: CGPOWER | D56: 35.85 | E56: 36.10 | F56: 35.35 | G56: 34.85 | H56: 34.10 | I56: 36.60 | J56: 37.35 | K56: 37.85 | L56: 36.85 | M56: 35.6 | N56: 43704000 | O56: 0.86%
A57: 52 | B57: Others | C57: CHENNPETRO | D57: 270.45 | E57: 271.35 | F57: 266.75 | G57: 263.05 | H57: 258.45 | I57: 275.05 | J57: 279.65 | K57: 283.35 | L57: 275.95 | M57: 267.65 | N57: 1107000 | O57: -1.60%
A58: 53 | B58: Others | C58: CHOLAFIN | D58: 1286.35 | E58: 1298.50 | F58: 1269.05 | G58: 1251.75 | H58: 1222.30 | I58: 1315.80 | J58: 1345.25 | K58: 1362.55 | L58: 1327.95 | M58: 1281.2 | N58: 630000 | O58: 3.03%
A59: 54 | B59: Pharma | C59: CIPLA | D59: 533.25 | E59: 539.90 | F59: 522.85 | G59: 512.45 | H59: 495.40 | I59: 550.30 | J59: 567.35 | K59: 577.75 | L59: 556.95 | M59: 529.5 | N59: 10997000 | O59: 24.43%
A60: 55 | B60: Others | C60: COALINDIA | D60: 266.60 | E60: 266.45 | F60: 265.20 | G60: 263.80 | H60: 262.55 | I60: 267.85 | J60: 269.10 | K60: 270.50 | L60: 267.7 | M60: 265.05 | N60: 27647400 | O60: -0.32%
A61: 56 | B61: FMCG | C61: COLPAL | D61: 1103.65 | E61: 1107.80 | F61: 1096.85 | G61: 1090.05 | H61: 1079.10 | I61: 1114.60 | J61: 1125.55 | K61: 1132.35 | L61: 1118.75 | M61: 1101 | N61: 1761900 | O61: 1.17%
A62: 57 | B62: Others | C62: CONCOR | D62: 674.05 | E62: 674.65 | F62: 657.10 | G62: 640.15 | H62: 622.60 | I62: 691.60 | J62: 709.15 | K62: 726.10 | L62: 692.2 | M62: 657.7 | N62: 3082500 | O62: 2.79%
A63: 58 | B63: Capital_Goods | C63: CUMMINSIND | D63: 779.95 | E63: 778.35 | F63: 768.95 | G63: 757.95 | H63: 748.55 | I63: 789.35 | J63: 798.75 | K63: 809.75 | L63: 787.75 | M63: 767.35 | N63: 1355900 | O63: 10.43%
A64: 59 | B64: FMCG | C64: DABUR | D64: 366.35 | E64: 366.33 | F64: 364.42 | G64: 362.48 | H64: 360.57 | I64: 368.27 | J64: 370.18 | K64: 372.12 | L64: 368.25 | M64: 364.4 | N64: 17466250 | O64: 3.63%
A65: 60 | B65: Cement | C65: DALMIABHA | D65: 2183.65 | E65: 2190.07 | F65: 2158.53 | G65: 2133.42 | H65: 2101.88 | I65: 2215.18 | J65: 2246.72 | K65: 2271.83 | L65: 2221.6 | M65: 2164.95 | N65: 419700 | O65: -2.24%
A66: 61 | B66: Banking | C66: DCBBANK | D66: 166.30 | E66: 164.57 | F66: 161.78 | G66: 157.27 | H66: 154.48 | I66: 169.08 | J66: 171.87 | K66: 176.38 | L66: 167.35 | M66: 160.05 | N66: 4135500 | O66: 1.88%
A67: 62 | B67: Finance | C67: DHFL | D67: 227.30 | E67: 227.73 | F67: 221.47 | G67: 215.63 | H67: 209.37 | I67: 233.57 | J67: 239.83 | K67: 245.67 | L67: 234 | M67: 221.9 | N67: 20313000 | O67: 2.63%
A68: 63 | B68: Media | C68: DISHTV | D68: 42.40 | E68: 42.30 | F68: 41.90 | G68: 41.40 | H68: 41.00 | I68: 42.80 | J68: 43.20 | K68: 43.70 | L68: 42.7 | M68: 41.8 | N68: 43088000 | O68: 0.13%
A69: 64 | B69: Pharma | C69: DIVISLAB | D69: 1484.90 | E69: 1474.68 | F69: 1460.82 | G69: 1436.73 | H69: 1422.87 | I69: 1498.77 | J69: 1512.63 | K69: 1536.72 | L69: 1488.55 | M69: 1450.6 | N69: 3506400 | O69: 4.26%
A70: 65 | B70: Realty | C70: DLF | D70: 173.00 | E70: 173.08 | F70: 171.32 | G70: 169.63 | H70: 167.87 | I70: 174.77 | J70: 176.53 | K70: 178.22 | L70: 174.85 | M70: 171.4 | N70: 25023000 | O70: -0.09%
A71: 66 | B71: Pharma | C71: DRREDDY | D71: 2455.70 | E71: 2445.97 | F71: 2427.83 | G71: 2399.97 | H71: 2381.83 | I71: 2473.83 | J71: 2491.97 | K71: 2519.83 | L71: 2464.1 | M71: 2418.1 | N71: 3893750 | O71: -0.46%
A72: 67 | B72: Automobile | C72: EICHERMOT | D72: 22563.15 | E72: 22597.08 | F72: 22342.87 | G72: 22122.58 | H72: 21868.37 | I72: 22817.37 | J72: 23071.58 | K72: 23291.87 | L72: 22851.3 | M72: 22376.8 | N72: 293800 | O72: -0.29%
A73: 68 | B73: Infrastructure | C73: ENGINERSIN | D73: 117.65 | E73: 118.70 | F73: 116.20 | G73: 114.75 | H73: 112.25 | I73: 120.15 | J73: 122.65 | K73: 124.10 | L73: 121.2 | M73: 117.25 | N73: 6258000 | O73: 1.30%
A74: 69 | B74: Finance | C74: EQUITAS | D74: 104.70 | E74: 106.02 | F74: 101.43 | G74: 98.17 | H74: 93.58 | I74: 109.28 | J74: 113.87 | K74: 117.13 | L74: 110.6 | M74: 102.75 | N74: 14012000 | O74: 2.07%
A75: 70 | B75: Automobile | C75: ESCORTS | D75: 675.50 | E75: 680.82 | F75: 666.83 | G75: 658.17 | H75: 644.18 | I75: 689.48 | J75: 703.47 | K75: 712.13 | L75: 694.8 | M75: 672.15 | N75: 4435200 | O75: -0.44%
A76: 71 | B76: Automobile | C76: EXIDEIND | D76: 252.70 | E76: 253.02 | F76: 249.13 | G76: 245.57 | H76: 241.68 | I76: 256.58 | J76: 260.47 | K76: 264.03 | L76: 256.9 | M76: 249.45 | N76: 6954000 | O76: -0.29%
A77: 72 | B77: Banking | C77: FEDERALBNK | D77: 80.50 | E77: 81.10 | F77: 79.50 | G77: 78.50 | H77: 76.90 | I77: 82.10 | J77: 83.70 | K77: 84.70 | L77: 82.7 | M77: 80.1 | N77: 44124500 | O77: -4.68%
A78: 73 | B78: Oil_Gas | C78: GAIL | D78: 375.00 | E78: 376.13 | F78: 369.47 | G78: 363.93 | H78: 357.27 | I78: 381.67 | J78: 388.33 | K78: 393.87 | L78: 382.8 | M78: 370.6 | N78: 20338542 | O78: -1.49%
A79: 74 | B79: Pharma | C79: GLENMARK | D79: 660.60 | E79: 651.62 | F79: 639.23 | G79: 617.87 | H79: 605.48 | I79: 672.98 | J79: 685.37 | K79: 706.73 | L79: 664 | M79: 630.25 | N79: 4002000 | O79: 13.60%
A80: 75 | B80: Infrastructure | C80: GMRINFRA | D80: 16.40 | E80: 16.57 | F80: 16.08 | G80: 15.77 | H80: 15.28 | I80: 16.88 | J80: 17.37 | K80: 17.68 | L80: 17.05 | M80: 16.25 | N80: 176175000 | O80: 2.57%
A81: 76 | B81: Others | C81: GODFRYPHLP | D81: 779.40 | E81: 783.05 | F81: 767.50 | G81: 755.60 | H81: 740.05 | I81: 794.95 | J81: 810.50 | K81: 822.40 | L81: 798.6 | M81: 771.15 | N81: 494900 | O81: 1.14%
A82: 77 | B82: FMCG | C82: GODREJCP | D82: 698.05 | E82: 699.25 | F82: 683.70 | G82: 669.35 | H82: 653.80 | I82: 713.60 | J82: 729.15 | K82: 743.50 | L82: 714.8 | M82: 684.9 | N82: 5076600 | O82: 0.82%
A83: 78 | B83: FMCG | C83: GODREJIND | D83: 470.40 | E83: 473.60 | F83: 462.80 | G83: 455.20 | H83: 444.40 | I83: 481.20 | J83: 492.00 | K83: 499.60 | L83: 484.4 | M83: 466 | N83: 2133000 | O83: -0.84%
A84: 79 | B84: Pharma | C84: GRANULES | D84: 103.95 | E84: 104.42 | F84: 102.38 | G84: 100.82 | H84: 98.78 | I84: 105.98 | J84: 108.02 | K84: 109.58 | L84: 106.45 | M84: 102.85 | N84: 12465000 | O84: -0.48%
A85: 80 | B85: Cement | C85: GRASIM | D85: 851.60 | E85: 852.53 | F85: 841.57 | G85: 831.53 | H85: 820.57 | I85: 862.57 | J85: 873.53 | K85: 883.57 | L85: 863.5 | M85: 842.5 | N85: 8044500 | O85: -0.30%
A86: 81 | B86: Others | C86: GSFC | D86: 114.30 | E86: 115.02 | F86: 113.03 | G86: 111.77 | H86: 109.78 | I86: 116.28 | J86: 118.27 | K86: 119.53 | L86: 117 | M86: 113.75 | N86: 15178900 | O86: -1.09%
A87: 82 | B87: Others | C87: HAVELLS | D87: 648.95 | E87: 649.98 | F87: 641.47 | G87: 633.98 | H87: 625.47 | I87: 657.47 | J87: 665.98 | K87: 673.47 | L87: 658.5 | M87: 642.5 | N87: 4899000 | O87: -1.17%
A88: 83 | B88: Others | C88: HCC | D88: 13.70 | E88: 13.72 | F88: 13.48 | G88: 13.27 | H88: 13.03 | I88: 13.93 | J88: 14.17 | K88: 14.38 | L88: 13.95 | M88: 13.5 | N88: 26316000 | O88: -2.27%
A89: 84 | B89: Technology | C89: HCLTECH | D89: 1029.20 | E89: 1029.47 | F89: 1016.63 | G89: 1004.07 | H89: 991.23 | I89: 1042.03 | J89: 1054.87 | K89: 1067.43 | L89: 1042.3 | M89: 1016.9 | N89: 7903000 | O89: -0.04%
A90: 85 | B90: Finance | C90: HDFC | D90: 1807.15 | E90: 1805.72 | F90: 1791.43 | G90: 1775.72 | H90: 1761.43 | I90: 1821.43 | J90: 1835.72 | K90: 1851.43 | L90: 1820 | M90: 1790 | N90: 23643000 | O90: -0.16%
A91: 86 | B91: Banking | C91: HDFCBANK | D91: 1955.10 | E91: 1964.10 | F91: 1943.30 | G91: 1931.50 | H91: 1910.70 | I91: 1975.90 | J91: 1996.70 | K91: 2008.50 | L91: 1984.9 | M91: 1952.3 | N91: 15773000 | O91: -3.64%
A92: 88 | B92: Automobile | C92: HEROMOTOCO | D92: 2865.40 | E92: 2868.45 | F92: 2833.15 | G92: 2800.90 | H92: 2765.60 | I92: 2900.70 | J92: 2936.00 | K92: 2968.25 | L92: 2903.75 | M92: 2836.2 | N92: 1391000 | O92: 0.26%
A93: 89 | B93: Technology | C93: HEXAWARE | D93: 312.95 | E93: 314.55 | F93: 309.40 | G93: 305.85 | H93: 300.70 | I93: 318.10 | J93: 323.25 | K93: 326.80 | L93: 319.7 | M93: 311 | N93: 6696000 | O93: 1.69%
A94: 90 | B94: Metals | C94: HINDALCO | D94: 242.90 | E94: 242.27 | F94: 239.73 | G94: 236.57 | H94: 234.03 | I94: 245.43 | J94: 247.97 | K94: 251.13 | L94: 244.8 | M94: 239.1 | N94: 36169000 | O94: -1.95%
A95: 91 | B95: Oil_Gas | C95: HINDPETRO | D95: 227.20 | E95: 229.18 | F95: 222.82 | G95: 218.43 | H95: 212.07 | I95: 233.57 | J95: 239.93 | K95: 244.32 | L95: 235.55 | M95: 224.8 | N95: 18959850 | O95: 1.04%
A96: 92 | B96: FMCG | C96: HINDUNILVR | D96: 1632.70 | E96: 1636.18 | F96: 1617.47 | G96: 1602.23 | H96: 1583.52 | I96: 1651.42 | J96: 1670.13 | K96: 1685.37 | L96: 1654.9 | M96: 1620.95 | N96: 7926000 | O96: -0.12%
A97: 93 | B97: Metals | C97: HINDZINC | D97: 265.75 | E97: 264.38 | F97: 262.02 | G97: 258.28 | H97: 255.92 | I97: 268.12 | J97: 270.48 | K97: 274.22 | L97: 266.75 | M97: 260.65 | N97: 6288000 | O97: -5.39%
A98: 94 | B98: Finance | C98: IBULHSGFIN | D98: 833.10 | E98: 836.78 | F98: 818.57 | G98: 804.03 | H98: 785.82 | I98: 851.32 | J98: 869.53 | K98: 884.07 | L98: 855 | M98: 822.25 | N98: 17556000 | O98: 1.76%
A99: 95 | B99: Banking | C99: ICICIBANK | D99: 354.30 | E99: 354.30 | F99: 349.20 | G99: 344.10 | H99: 339.00 | I99: 359.40 | J99: 364.50 | K99: 369.60 | L99: 359.4 | M99: 349.2 | N99: 100614250 | O99: 0.11%
A100: 96 | B100: Others | C100: ICICIPRULI | D100: 358.40 | E100: 358.83 | F100: 354.77 | G100: 351.13 | H100: 347.07 | I100: 362.47 | J100: 366.53 | K100: 370.17 | L100: 362.9 | M100: 355.2 | N100: 3116100 | O100: -5.52%
A101: 97 | B101: Banking | C101: IDBI | D101: 59.50 | E101: 59.67 | F101: 59.18 | G101: 58.87 | H101: 58.38 | I101: 59.98 | J101: 60.47 | K101: 60.78 | L101: 60.15 | M101: 59.35 | N101: 37470000 | O101: -0.24%
A102: 98 | B102: Telecom | C102: IDEA | D102: 42.25 | E102: 42.13 | F102: 41.67 | G102: 41.08 | H102: 40.62 | I102: 42.72 | J102: 43.18 | K102: 43.77 | L102: 42.6 | M102: 41.55 | N102: 132150000 | O102: -0.23%
A103: 99 | B103: Finance | C103: IDFC | D103: 37.70 | E103: 37.87 | F103: 37.13 | G103: 36.57 | H103: 35.83 | I103: 38.43 | J103: 39.17 | K103: 39.73 | L103: 38.6 | M103: 37.3 | N103: 108649200 | O103: -0.42%
A104: 100 | B104: Banking | C104: IDFCBANK | D104: 35.30 | E104: 35.33 | F104: 35.02 | G104: 34.73 | H104: 34.42 | I104: 35.62 | J104: 35.93 | K104: 36.22 | L104: 35.65 | M104: 35.05 | N104: 122326000 | O104: -1.35%
A105: 101 | B105: Finance | C105: IFCI | D105: 14.30 | E105: 14.28 | F105: 14.12 | G105: 13.93 | H105: 13.77 | I105: 14.47 | J105: 14.63 | K105: 14.82 | L105: 14.45 | M105: 14.1 | N105: 50805000 | O105: -0.03%
A106: 102 | B106: Oil_Gas | C106: IGL | D106: 273.75 | E106: 278.25 | F106: 267.50 | G106: 261.25 | H106: 250.50 | I106: 284.50 | J106: 295.25 | K106: 301.50 | L106: 289 | M106: 272 | N106: 4039750 | O106: -7.14%
A107: 103 | B107: Cement | C107: INDIACEM | D107: 94.10 | E107: 94.88 | F107: 92.87 | G107: 91.63 | H107: 89.62 | I107: 96.12 | J107: 98.13 | K107: 99.37 | L107: 96.9 | M107: 93.65 | N107: 17866000 | O107: 0.35%
A108: 104 | B108: Banking | C108: INDIANB | D108: 258.75 | E108: 262.22 | F108: 253.08 | G108: 247.42 | H108: 238.28 | I108: 267.88 | J108: 277.02 | K108: 282.68 | L108: 271.35 | M108: 256.55 | N108: 4008000 | O108: -1.18%
A109: 105 | B109: Others | C109: INDIGO | D109: 960.10 | E109: 958.40 | F109: 946.60 | G109: 933.10 | H109: 921.30 | I109: 971.90 | J109: 983.70 | K109: 997.20 | L109: 970.2 | M109: 944.9 | N109: 3330600 | O109: -2.03%
A110: 106 | B110: Banking | C110: INDUSINDBK | D110: 1476.85 | E110: 1480.62 | F110: 1446.23 | G110: 1415.62 | H110: 1381.23 | I110: 1511.23 | J110: 1545.62 | K110: 1576.23 | L110: 1515 | M110: 1450 | N110: 6110400 | O110: -0.44%
A111: 107 | B111: Technology | C111: INFIBEAM | D111: 43.60 | E111: 42.58 | F111: 40.57 | G111: 37.53 | H111: 35.52 | I111: 45.62 | J111: 47.63 | K111: 50.67 | L111: 44.6 | M111: 39.55 | N111: 14488000 | O111: -0.03%
A112: 108 | B112: Telecom | C112: INFRATEL | D112: 263.55 | E112: 263.42 | F112: 260.88 | G112: 258.22 | H112: 255.68 | I112: 266.08 | J112: 268.62 | K112: 271.28 | L112: 265.95 | M112: 260.75 | N112: 6842500 | O112: 3.82%
A113: 109 | B113: Technology | C113: INFY | D113: 669.35 | E113: 670.17 | F113: 662.98 | G113: 656.62 | H113: 649.43 | I113: 676.53 | J113: 683.72 | K113: 690.08 | L113: 677.35 | M113: 663.8 | N113: 37629600 | O113: 1.66%
A114: 110 | B114: Oil_Gas | C114: IOC | D114: 137.45 | E114: 138.43 | F114: 135.62 | G114: 133.78 | H114: 130.97 | I114: 140.27 | J114: 143.08 | K114: 144.92 | L114: 141.25 | M114: 136.6 | N114: 30071000 | O114: 0.27%
A115: 111 | B115: Infrastructure | C115: IRB | D115: 139.10 | E115: 141.10 | F115: 136.20 | G115: 133.30 | H115: 128.40 | I115: 144.00 | J115: 148.90 | K115: 151.80 | L115: 146 | M115: 138.2 | N115: 12390700 | O115: 0.16%
A116: 112 | B116: FMCG | C116: ITC | D116: 278.30 | E116: 279.45 | F116: 276.40 | G116: 274.50 | H116: 271.45 | I116: 281.35 | J116: 284.40 | K116: 286.30 | L116: 282.5 | M116: 277.55 | N116: 69895200 | O116: 2.39%
A117: 113 | B117: Others | C117: JETAIRWAYS | D117: 255.55 | E117: 255.90 | F117: 241.50 | G117: 227.45 | H117: 213.05 | I117: 269.95 | J117: 284.35 | K117: 298.40 | L117: 270.3 | M117: 241.85 | N117: 6811600 | O117: 9.76%
A118: 114 | B118: Metals | C118: JINDALSTEL | D118: 181.70 | E118: 182.07 | F118: 178.88 | G118: 176.07 | H118: 172.88 | I118: 184.88 | J118: 188.07 | K118: 190.88 | L118: 185.25 | M118: 179.25 | N118: 21748500 | O118: -1.41%
A119: 115 | B119: Others | C119: JISLJALEQS | D119: 73.85 | E119: 74.22 | F119: 72.93 | G119: 72.02 | H119: 70.73 | I119: 75.13 | J119: 76.42 | K119: 77.33 | L119: 75.5 | M119: 73.3 | N119: 32364000 | O119: -0.83%
A120: 116 | B120: Realty | C120: JPASSOCIAT | D120: 6.60 | E120: 6.65 | F120: 6.40 | G120: 6.20 | H120: 5.95 | I120: 6.85 | J120: 7.10 | K120: 7.30 | L120: 6.9 | M120: 6.45 | N120: 114047000 | O120: -0.25%
A121: 117 | B121: Metals | C121: JSWSTEEL | D121: 350.95 | E121: 352.80 | F121: 346.10 | G121: 341.25 | H121: 334.55 | I121: 357.65 | J121: 364.35 | K121: 369.20 | L121: 359.5 | M121: 347.95 | N121: 46501500 | O121: -1.22%
A122: 118 | B122: Others | C122: JUBLFOOD | D122: 1047.90 | E122: 1056.30 | F122: 1032.60 | G122: 1017.30 | H122: 993.60 | I122: 1071.60 | J122: 1095.30 | K122: 1110.60 | L122: 1080 | M122: 1041 | N122: 3211000 | O122: 6.34%
A123: 119 | B123: Others | C123: JUSTDIAL | D123: 490.85 | E123: 495.95 | F123: 482.90 | G123: 474.95 | H123: 461.90 | I123: 503.90 | J123: 516.95 | K123: 524.90 | L123: 509 | M123: 488 | N123: 2970800 | O123: -5.10%
A124: 120 | B124: Others | C124: KAJARIACER | D124: 420.40 | E124: 422.00 | F124: 415.30 | G124: 410.20 | H124: 403.50 | I124: 427.10 | J124: 433.80 | K124: 438.90 | L124: 428.7 | M124: 416.9 | N124: 1946000 | O124: -1.72%
A125: 121 | B125: Banking | C125: KOTAKBANK | D125: 1129.25 | E125: 1132.93 | F125: 1121.47 | G125: 1113.68 | H125: 1102.22 | I125: 1140.72 | J125: 1152.18 | K125: 1159.97 | L125: 1144.4 | M125: 1125.15 | N125: 12048800 | O125: -3.54%
A126: 122 | B126: Technology | C126: KPIT | D126: 221.45 | E126: 220.48 | F126: 217.67 | G126: 213.88 | H126: 211.07 | I126: 224.27 | J126: 227.08 | K126: 230.87 | L126: 223.3 | M126: 216.7 | N126: 7206750 | O126: -1.17%
A127: 123 | B127: Others | C127: KSCL | D127: 488.90 | E127: 490.80 | F127: 484.60 | G127: 480.30 | H127: 474.10 | I127: 495.10 | J127: 501.30 | K127: 505.60 | L127: 497 | M127: 486.5 | N127: 721500 | O127: 0.21%
A128: 124 | B128: Banking | C128: KTKBANK | D128: 106.10 | E128: 106.53 | F128: 104.97 | G128: 103.83 | H128: 102.27 | I128: 107.67 | J128: 109.23 | K128: 110.37 | L128: 108.1 | M128: 105.4 | N128: 14890900 | O128: 2.13%
A129: 125 | B129: Finance | C129: L&TFH | D129: 135.25 | E129: 135.68 | F129: 133.87 | G129: 132.48 | H129: 130.67 | I129: 137.07 | J129: 138.88 | K129: 140.27 | L129: 137.5 | M129: 134.3 | N129: 23557500 | O129: -3.80%
A130: 126 | B130: Finance | C130: LICHSGFIN | D130: 426.90 | E130: 428.37 | F130: 421.73 | G130: 416.57 | H130: 409.93 | I130: 433.53 | J130: 440.17 | K130: 445.33 | L130: 435 | M130: 423.2 | N130: 9632700 | O130: -0.71%
A131: 127 | B131: Capital_Goods | C131: LT | D131: 1368.40 | E131: 1366.02 | F131: 1355.48 | G131: 1342.57 | H131: 1332.03 | I131: 1378.93 | J131: 1389.47 | K131: 1402.38 | L131: 1376.55 | M131: 1353.1 | N131: 10368375 | O131: -0.98%
A132: 128 | B132: Pharma | C132: LUPIN | D132: 854.25 | E132: 852.68 | F132: 845.37 | G132: 836.48 | H132: 829.17 | I132: 861.57 | J132: 868.88 | K132: 877.77 | L132: 860 | M132: 843.8 | N132: 9109800 | O132: -0.38%
A133: 129 | B133: Automobile | C133: M&M | D133: 781.90 | E133: 779.48 | F133: 773.97 | G133: 766.03 | H133: 760.52 | I133: 787.42 | J133: 792.93 | K133: 800.87 | L133: 785 | M133: 771.55 | N133: 14419000 | O133: -0.80%
A134: 130 | B134: Finance | C134: M&MFIN | D134: 422.65 | E134: 421.88 | F134: 417.87 | G134: 413.08 | H134: 409.07 | I134: 426.67 | J134: 430.68 | K134: 435.47 | L134: 425.9 | M134: 417.1 | N134: 8956250 | O134: -0.97%
A135: 131 | B135: Others | C135: MANAPPURAM | D135: 81.60 | E135: 82.05 | F135: 79.05 | G135: 76.50 | H135: 73.50 | I135: 84.60 | J135: 87.60 | K135: 90.15 | L135: 85.05 | M135: 79.5 | N135: 13818000 | O135: 0.48%
A136: 132 | B136: FMCG | C136: MARICO | D136: 334.40 | E136: 335.83 | F136: 331.32 | G136: 328.23 | H136: 323.72 | I136: 338.92 | J136: 343.43 | K136: 346.52 | L136: 340.35 | M136: 332.75 | N136: 7430800 | O136: 0.21%
A137: 133 | B137: Automobile | C137: MARUTI | D137: 7082.60 | E137: 7130.38 | F137: 7013.22 | G137: 6943.83 | H137: 6826.67 | I137: 7199.77 | J137: 7316.93 | K137: 7386.32 | L137: 7247.55 | M137: 7061 | N137: 2590800 | O137: -2.18%
A138: 134 | B138: FMCG | C138: MCDOWELL-N | D138: 628.40 | E138: 630.58 | F138: 619.32 | G138: 610.23 | H138: 598.97 | I138: 639.67 | J138: 650.93 | K138: 660.02 | L138: 641.85 | M138: 621.5 | N138: 10038750 | O138: -1.98%
A139: 135 | B139: Others | C139: MCX | D139: 703.50 | E139: 705.37 | F139: 694.63 | G139: 685.77 | H139: 675.03 | I139: 714.23 | J139: 724.97 | K139: 733.83 | L139: 716.1 | M139: 696.5 | N139: 3451000 | O139: 0.37%
A140: 136 | B140: Finance | C140: MFSL | D140: 391.15 | E140: 397.22 | F140: 382.93 | G140: 374.72 | H140: 360.43 | I140: 405.43 | J140: 419.72 | K140: 427.93 | L140: 411.5 | M140: 389 | N140: 2349600 | O140: -0.20%
A141: 137 | B141: Others | C141: MGL | D141: 841.00 | E141: 845.67 | F141: 832.33 | G141: 823.67 | H141: 810.33 | I141: 854.33 | J141: 867.67 | K141: 876.33 | L141: 859 | M141: 837 | N141: 1585800 | O141: -2.33%
A142: 138 | B142: Technology | C142: MINDTREE | D142: 835.45 | E142: 832.48 | F142: 822.27 | G142: 809.08 | H142: 798.87 | I142: 845.67 | J142: 855.88 | K142: 869.07 | L142: 842.7 | M142: 819.3 | N142: 3739200 | O142: -5.12%
A143: 139 | B143: Automobile | C143: MOTHERSUMI | D143: 171.00 | E143: 172.20 | F143: 167.10 | G143: 163.20 | H143: 158.10 | I143: 176.10 | J143: 181.20 | K143: 185.10 | L143: 177.3 | M143: 168.3 | N143: 23753700 | O143: 2.02%
A144: 140 | B144: Automobile | C144: MRF | D144: 65313.05 | E144: 65668.63 | F144: 64782.22 | G144: 64251.38 | H144: 63364.97 | I144: 66199.47 | J144: 67085.88 | K144: 67616.72 | L144: 66555.05 | M144: 65137.8 | N144: 21460 | O144: 0.33%
A145: 141 | B145: Others | C145: MRPL | D145: 82.80 | E145: 82.95 | F145: 81.35 | G145: 79.90 | H145: 78.30 | I145: 84.40 | J145: 86.00 | K145: 87.45 | L145: 84.55 | M145: 81.5 | N145: 4639500 | O145: 2.49%
A146: 142 | B146: Finance | C146: MUTHOOTFIN | D146: 438.30 | E146: 441.23 | F146: 430.02 | G146: 421.73 | H146: 410.52 | I146: 449.52 | J146: 460.73 | K146: 469.02 | L146: 452.45 | M146: 432.95 | N146: 1611000 | O146: 2.68%
A147: 143 | B147: Others | C147: NATIONALUM | D147: 70.35 | E147: 70.73 | F147: 69.77 | G147: 69.18 | H147: 68.22 | I147: 71.32 | J147: 72.28 | K147: 72.87 | L147: 71.7 | M147: 70.15 | N147: 32624000 | O147: -0.51%
A148: 144 | B148: Others | C148: NBCC | D148: 62.30 | E148: 62.52 | F148: 61.28 | G148: 60.27 | H148: 59.03 | I148: 63.53 | J148: 64.77 | K148: 65.78 | L148: 63.75 | M148: 61.5 | N148: 23112000 | O148: -3.37%
A149: 145 | B149: Infrastructure | C149: NCC | D149: 81.10 | E149: 80.97 | F149: 80.08 | G149: 79.07 | H149: 78.18 | I149: 81.98 | J149: 82.87 | K149: 83.88 | L149: 81.85 | M149: 79.95 | N149: 44256000 | O149: -1.20%
A150: 146 | B150: Others | C150: NESTLEIND | D150: 10166.40 | E150: 10234.95 | F150: 10031.45 | G150: 9896.50 | H150: 9693.00 | I150: 10369.90 | J150: 10573.40 | K150: 10708.35 | L150: 10438.45 | M150: 10100 | N150: 328500 | O150: -1.71%
A151: 147 | B151: Power | C151: NHPC | D151: 24.75 | E151: 24.75 | F151: 24.55 | G151: 24.35 | H151: 24.15 | I151: 24.95 | J151: 25.15 | K151: 25.35 | L151: 24.95 | M151: 24.55 | N151: 20385000 | O151: 3.71%
A152: 148 | B152: Technology | C152: NIITTECH | D152: 1172.75 | E152: 1185.12 | F152: 1153.73 | G152: 1134.72 | H152: 1103.33 | I152: 1204.13 | J152: 1235.52 | K152: 1254.53 | L152: 1216.5 | M152: 1166.1 | N152: 1503750 | O152: 0.30%
A153: 149 | B153: Metals | C153: NMDC | D153: 111.75 | E153: 112.12 | F153: 107.83 | G153: 103.92 | H153: 99.63 | I153: 116.03 | J153: 120.32 | K153: 124.23 | L153: 116.4 | M153: 108.2 | N153: 19206000 | O153: -1.72%
A154: 150 | B154: Power | C154: NTPC | D154: 154.70 | E154: 154.15 | F154: 153.10 | G154: 151.50 | H154: 150.45 | I154: 155.75 | J154: 156.80 | K154: 158.40 | L154: 155.2 | M154: 152.55 | N154: 32664000 | O154: 2.94%
A155: 151 | B155: Technology | C155: OFSS | D155: 3558.50 | E155: 3544.70 | F155: 3508.80 | G155: 3459.10 | H155: 3423.20 | I155: 3594.40 | J155: 3630.30 | K155: 3680.00 | L155: 3580.6 | M155: 3495 | N155: 225750 | O155: -1.76%
A156: 152 | B156: Oil_Gas | C156: OIL | D156: 197.80 | E156: 197.60 | F156: 196.25 | G156: 194.70 | H156: 193.35 | I156: 199.15 | J156: 200.50 | K156: 202.05 | L156: 198.95 | M156: 196.05 | N156: 2641023 | O156: 4.44%
A157: 153 | B157: Oil_Gas | C157: ONGC | D157: 156.15 | E157: 156.13 | F157: 153.92 | G157: 151.68 | H157: 149.47 | I157: 158.37 | J157: 160.58 | K157: 162.82 | L157: 158.35 | M157: 153.9 | N157: 41122500 | O157: -0.54%
A158: 154 | B158: Banking | C158: ORIENTBANK | D158: 82.20 | E158: 82.57 | F158: 81.18 | G158: 80.17 | H158: 78.78 | I158: 83.58 | J158: 84.97 | K158: 85.98 | L158: 83.95 | M158: 81.55 | N158: 9955000 | O158: -2.01%
A159: 155 | B159: Textile | C159: PAGEIND | D159: 28824.50 | E159: 28804.82 | F159: 28539.68 | G159: 28254.87 | H159: 27989.73 | I159: 29089.63 | J159: 29354.77 | K159: 29639.58 | L159: 29069.95 | M159: 28520 | N159: 136575 | O159: 11.88%
A160: 156 | B160: Others | C160: PCJEWELLER | D160: 83.75 | E160: 88.00 | F160: 76.85 | G160: 69.95 | H160: 58.80 | I160: 94.90 | J160: 106.05 | K160: 112.95 | L160: 99.15 | M160: 81.1 | N160: 7438000 | O160: -6.06%
A161: 157 | B161: Pharma | C161: PEL | D161: 2196.45 | E161: 2206.63 | F161: 2170.42 | G161: 2144.38 | H161: 2108.17 | I161: 2232.67 | J161: 2268.88 | K161: 2294.92 | L161: 2242.85 | M161: 2180.6 | N161: 3184892 | O161: -1.72%
A162: 158 | B162: Oil_Gas | C162: PETRONET | D162: 210.30 | E162: 211.63 | F162: 207.77 | G162: 205.23 | H162: 201.37 | I162: 214.17 | J162: 218.03 | K162: 220.57 | L162: 215.5 | M162: 209.1 | N162: 12489000 | O162: 6.91%
A163: 159 | B163: Finance | C163: PFC | D163: 98.20 | E163: 97.43 | F163: 94.87 | G163: 91.53 | H163: 88.97 | I163: 100.77 | J163: 103.33 | K163: 106.67 | L163: 100 | M163: 94.1 | N163: 30157800 | O163: 1.43%
A164: 160 | B164: FMCG | C164: PIDILITIND | D164: 994.80 | E164: 1005.27 | F164: 979.53 | G164: 964.27 | H164: 938.53 | I164: 1020.53 | J164: 1046.27 | K164: 1061.53 | L164: 1031 | M164: 990 | N164: 3246500 | O164: 2.77%
A165: 161 | B165: Banking | C165: PNB | D165: 70.70 | E165: 70.80 | F165: 69.95 | G165: 69.20 | H165: 68.35 | I165: 71.55 | J165: 72.40 | K165: 73.15 | L165: 71.65 | M165: 70.05 | N165: 104096500 | O165: -1.24%
A166: 162 | B166: Power | C166: POWERGRID | D166: 188.70 | E166: 187.90 | F166: 186.30 | G166: 183.90 | H166: 182.30 | I166: 190.30 | J166: 191.90 | K166: 194.30 | L166: 189.5 | M166: 185.5 | N166: 36736000 | O166: -0.64%
A167: 163 | B167: Power | C167: PTC | D167: 78.95 | E167: 78.92 | F167: 77.63 | G167: 76.32 | H167: 75.03 | I167: 80.23 | J167: 81.52 | K167: 82.83 | L167: 80.2 | M167: 77.6 | N167: 9328000 | O167: 0.52%
A168: 164 | B168: Others | C168: PVR | D168: 1409.30 | E168: 1419.47 | F168: 1394.93 | G168: 1380.57 | H168: 1356.03 | I168: 1433.83 | J168: 1458.37 | K168: 1472.73 | L168: 1444 | M168: 1405.1 | N168: 1271600 | O168: -0.66%
A169: 165 | B169: Cement | C169: RAMCOCEM | D169: 626.25 | E169: 628.13 | F169: 618.17 | G169: 610.08 | H169: 600.12 | I169: 636.22 | J169: 646.18 | K169: 654.27 | L169: 638.1 | M169: 620.05 | N169: 647200 | O169: -3.11%
A170: 166 | B170: Others | C170: RAYMOND | D170: 751.80 | E170: 754.02 | F170: 737.23 | G170: 722.67 | H170: 705.88 | I170: 768.58 | J170: 785.37 | K170: 799.93 | L170: 770.8 | M170: 739.45 | N170: 3988800 | O170: -0.99%
A171: 167 | B171: Banking | C171: RBLBANK | D171: 537.20 | E171: 537.58 | F171: 531.17 | G171: 525.13 | H171: 518.72 | I171: 543.62 | J171: 550.03 | K171: 556.07 | L171: 544 | M171: 531.55 | N171: 6132000 | O171: -2.37%
A172: 168 | B172: Telecom | C172: RCOM | D172: 13.90 | E172: 13.98 | F172: 13.62 | G172: 13.33 | H172: 12.97 | I172: 14.27 | J172: 14.63 | K172: 14.92 | L172: 14.35 | M172: 13.7 | N172: 80254000 | O172: 3.32%
A173: 169 | B173: Power | C173: RECLTD | D173: 118.80 | E173: 119.32 | F173: 116.43 | G173: 114.07 | H173: 111.18 | I173: 121.68 | J173: 124.57 | K173: 126.93 | L173: 122.2 | M173: 116.95 | N173: 33594000 | O173: 1.54%
A174: 170 | B174: Finance | C174: RELCAPITAL | D174: 250.10 | E174: 251.67 | F174: 245.53 | G174: 240.97 | H174: 234.83 | I174: 256.23 | J174: 262.37 | K174: 266.93 | L174: 257.8 | M174: 247.1 | N174: 11394000 | O174: -1.82%
A175: 171 | B175: Oil_Gas | C175: RELIANCE | D175: 1105.05 | E175: 1104.18 | F175: 1094.42 | G175: 1083.78 | H175: 1074.02 | I175: 1114.82 | J175: 1124.58 | K175: 1135.22 | L175: 1113.95 | M175: 1093.55 | N175: 47460000 | O175: -2.46%
A176: 172 | B176: Power | C176: RELINFRA | D176: 358.65 | E176: 361.55 | F176: 352.10 | G176: 345.55 | H176: 336.10 | I176: 368.10 | J176: 377.55 | K176: 384.10 | L176: 371 | M176: 355 | N176: 6125600 | O176: -0.46%
A177: 173 | B177: Others | C177: REPCOHOME | D177: 394.50 | E177: 395.53 | F177: 387.87 | G177: 381.23 | H177: 373.57 | I177: 402.17 | J177: 409.83 | K177: 416.47 | L177: 403.2 | M177: 388.9 | N177: 461700 | O177: -10.78%
A178: 174 | B178: Power | C178: RPOWER | D178: 30.80 | E178: 30.95 | F178: 30.45 | G178: 30.10 | H178: 29.60 | I178: 31.30 | J178: 31.80 | K178: 32.15 | L178: 31.45 | M178: 30.6 | N178: 43842000 | O178: 1.16%
A179: 175 | B179: Metals | C179: SAIL | D179: 66.35 | E179: 66.40 | F179: 65.55 | G179: 64.75 | H179: 63.90 | I179: 67.20 | J179: 68.05 | K179: 68.85 | L179: 67.25 | M179: 65.6 | N179: 71328000 | O179: -0.59%
A180: 176 | B180: Banking | C180: SBIN | D180: 287.10 | E180: 290.15 | F180: 281.50 | G180: 275.90 | H180: 267.25 | I180: 295.75 | J180: 304.40 | K180: 310.00 | L180: 298.8 | M180: 284.55 | N180: 87033000 | O180: -9.49%
A181: 177 | B181: Cement | C181: SHREECEM | D181: 15362.60 | E181: 15279.57 | F181: 15064.13 | G181: 14765.67 | H181: 14550.23 | I181: 15578.03 | J181: 15793.47 | K181: 16091.93 | L181: 15495 | M181: 14981.1 | N181: 126300 | O181: -0.36%
A182: 178 | B182: Capital_Goods | C182: SIEMENS | D182: 936.10 | E182: 948.97 | F182: 917.43 | G182: 898.77 | H182: 867.23 | I182: 967.63 | J182: 999.17 | K182: 1017.83 | L182: 980.5 | M182: 930.3 | N182: 1128600 | O182: 7.33%
A183: 179 | B183: Banking | C183: SOUTHBANK | D183: 14.65 | E183: 14.70 | F183: 14.50 | G183: 14.35 | H183: 14.15 | I183: 14.85 | J183: 15.05 | K183: 15.20 | L183: 14.9 | M183: 14.55 | N183: 126333492 | O183: 0.26%
A184: 180 | B184: Others | C184: SREINFRA | D184: 35.90 | E184: 36.23 | F184: 35.12 | G184: 34.33 | H184: 33.22 | I184: 37.02 | J184: 38.13 | K184: 38.92 | L184: 37.35 | M184: 35.45 | N184: 10486000 | O184: -5.13%
A185: 181 | B185: Textile | C185: SRF | D185: 2014.05 | E185: 2009.58 | F185: 1994.47 | G185: 1974.88 | H185: 1959.77 | I185: 2029.17 | J185: 2044.28 | K185: 2063.87 | L185: 2024.7 | M185: 1990 | N185: 571000 | O185: -11.13%
A186: 182 | B186: Finance | C186: SRTRANSFIN | D186: 1215.35 | E186: 1226.30 | F186: 1196.05 | G186: 1176.75 | H186: 1146.50 | I186: 1245.60 | J186: 1275.85 | K186: 1295.15 | L186: 1256.55 | M186: 1207 | N186: 3576600 | O186: 0.18%
A187: 183 | B187: Pharma | C187: STAR | D187: 429.85 | E187: 429.12 | F187: 423.63 | G187: 417.42 | H187: 411.93 | I187: 435.33 | J187: 440.82 | K187: 447.03 | L187: 434.6 | M187: 422.9 | N187: 3240800 | O187: -5.08%
A188: 184 | B188: Pharma | C188: SUNPHARMA | D188: 581.85 | E188: 582.43 | F188: 576.87 | G188: 571.88 | H188: 566.32 | I188: 587.42 | J188: 592.98 | K188: 597.97 | L188: 588 | M188: 577.45 | N188: 28619800 | O188: -0.34%
A189: 185 | B189: Media | C189: SUNTV | D189: 607.95 | E189: 612.68 | F189: 599.37 | G189: 590.78 | H189: 577.47 | I189: 621.27 | J189: 634.58 | K189: 643.17 | L189: 626 | M189: 604.1 | N189: 8023000 | O189: 1.21%
A190: 186 | B190: Power | C190: SUZLON | D190: 6.15 | E190: 6.20 | F190: 6.05 | G190: 5.95 | H190: 5.80 | I190: 6.30 | J190: 6.45 | K190: 6.55 | L190: 6.35 | M190: 6.1 | N190: 290606000 | O190: 0.17%
A191: 187 | B191: Banking | C191: SYNDIBANK | D191: 34.80 | E191: 34.85 | F191: 34.55 | G191: 34.30 | H191: 34.00 | I191: 35.10 | J191: 35.40 | K191: 35.65 | L191: 35.15 | M191: 34.6 | N191: 23715000 | O191: 3.01%
A192: 188 | B192: Fertilisers | C192: TATACHEM | D192: 693.85 | E192: 694.15 | F192: 682.70 | G192: 671.55 | H192: 660.10 | I192: 705.30 | J192: 716.75 | K192: 727.90 | L192: 705.6 | M192: 683 | N192: 2325750 | O192: -1.21%
A193: 189 | B193: Telecom | C193: TATACOMM | D193: 506.45 | E193: 505.75 | F193: 497.80 | G193: 489.15 | H193: 481.20 | I193: 514.40 | J193: 522.35 | K193: 531.00 | L193: 513.7 | M193: 497.1 | N193: 3081600 | O193: -0.03%
A194: 190 | B194: Technology | C194: TATAELXSI | D194: 1053.25 | E194: 1059.78 | F194: 1037.47 | G194: 1021.68 | H194: 999.37 | I194: 1075.57 | J194: 1097.88 | K194: 1113.67 | L194: 1082.1 | M194: 1044 | N194: 1220000 | O194: 2.87%
A195: 191 | B195: FMCG | C195: TATAGLOBAL | D195: 213.90 | E195: 216.25 | F195: 211.00 | G195: 208.10 | H195: 202.85 | I195: 219.15 | J195: 224.40 | K195: 227.30 | L195: 221.5 | M195: 213.35 | N195: 11574000 | O195: 2.00%
A196: 192 | B196: Automobile | C196: TATAMOTORS | D196: 193.05 | E196: 194.67 | F196: 189.93 | G196: 186.82 | H196: 182.08 | I196: 197.78 | J196: 202.52 | K196: 205.63 | L196: 199.4 | M196: 191.55 | N196: 59431500 | O196: -8.91%
A197: 193 | B197: Automobile | C197: TATAMTRDVR | D197: 104.30 | E197: 105.05 | F197: 102.20 | G197: 100.10 | H197: 97.25 | I197: 107.15 | J197: 110.00 | K197: 112.10 | L197: 107.9 | M197: 102.95 | N197: 26377600 | O197: -2.36%
A198: 194 | B198: Power | C198: TATAPOWER | D198: 75.80 | E198: 76.15 | F198: 75.05 | G198: 74.30 | H198: 73.20 | I198: 76.90 | J198: 78.00 | K198: 78.75 | L198: 77.25 | M198: 75.4 | N198: 51273000 | O198: -0.35%
A199: 195 | B199: Metals | C199: TATASTEEL | D199: 578.50 | E199: 578.87 | F199: 571.73 | G199: 564.97 | H199: 557.83 | I199: 585.63 | J199: 592.77 | K199: 599.53 | L199: 586 | M199: 572.1 | N199: 32054932 | O199: -1.53%
A200: 196 | B200: Technology | C200: TCS | D200: 1935.95 | E200: 1925.40 | F200: 1911.15 | G200: 1886.35 | H200: 1872.10 | I200: 1950.20 | J200: 1964.45 | K200: 1989.25 | L200: 1939.65 | M200: 1900.6 | N200: 10009000 | O200: 0.71%
A201: 197 | B201: Technology | C201: TECHM | D201: 696.05 | E201: 698.45 | F201: 690.80 | G201: 685.55 | H201: 677.90 | I201: 703.70 | J201: 711.35 | K201: 716.60 | L201: 706.1 | M201: 693.2 | N201: 14282400 | O201: -0.73%
A202: 198 | B202: FMCG | C202: TITAN | D202: 848.45 | E202: 856.80 | F202: 832.95 | G202: 817.45 | H202: 793.60 | I202: 872.30 | J202: 896.15 | K202: 911.65 | L202: 880.65 | M202: 841.3 | N202: 14333250 | O202: 2.95%
A203: 199 | B203: Pharma | C203: TORNTPHARM | D203: 1671.25 | E203: 1650.28 | F203: 1619.57 | G203: 1567.88 | H203: 1537.17 | I203: 1701.97 | J203: 1732.68 | K203: 1784.37 | L203: 1681 | M203: 1598.6 | N203: 380500 | O203: -6.63%
A204: 200 | B204: Power | C204: TORNTPOWER | D204: 264.05 | E204: 264.98 | F204: 260.87 | G204: 257.68 | H204: 253.57 | I204: 268.17 | J204: 272.28 | K204: 275.47 | L204: 269.1 | M204: 261.8 | N204: 2817000 | O204: -0.32%
A205: 201 | B205: Media | C205: TV18BRDCST | D205: 37.25 | E205: 37.50 | F205: 36.80 | G205: 36.35 | H205: 35.65 | I205: 37.95 | J205: 38.65 | K205: 39.10 | L205: 38.2 | M205: 37.05 | N205: 47115500 | O205: 0.86%
A206: 202 | B206: Automobile | C206: TVSMOTOR | D206: 552.05 | E206: 555.82 | F206: 546.08 | G206: 540.12 | H206: 530.38 | I206: 561.78 | J206: 571.52 | K206: 577.48 | L206: 565.55 | M206: 549.85 | N206: 7818000 | O206: -1.29%
... 30 more rows

Sheet Cash Intra
M5: Back to Main Page
A6: FOR INTRA DAY TRADING | K6: =Main!B10 -> 2018-11-07
A8: Sr.no | B8: Scrip | C8: CLOSE RATE | D8: Pivot Point | E8: Supports | H8: Resistances
C9: Point | E9: S1 | F9: S2 | G9: S3 | H9: R1 | I9: R2 | J9: R3 | K9: HIGH | L9: LOW | M9: Total Trade Quanity in Lakhs
A10: 1 | B10: Nifty 50 | C10: 10530 | D10: 10540.57 | E10: 10480.88 | F10: 10431.77 | G10: 10372.08 | H10: 10589.68 | I10: 10649.37 | J10: 10698.48 | K10: 10600.25 | L10: 10491.45
A11: 2 | B11: Nifty Bank | C11: 25598 | D11: 25672.37 | E11: 25483.98 | F11: 25369.97 | G11: 25181.58 | H11: 25786.38 | I11: 25974.77 | J11: 26088.78 | K11: 25860.75 | L11: 25558.35
A12: 3 | B12: Nifty CPSE | C12: 2146.45 | D12: 2143.95 | E12: 2136.65 | F12: 2126.85 | G12: 2119.55 | H12: 2153.75 | I12: 2161.05 | J12: 2170.85 | K12: 2151.25 | L12: 2134.15
A13: 4 | B13: Nifty Infra | C13: 3043.7 | D13: 3045.10 | E13: 3032.25 | F13: 3020.80 | G13: 3007.95 | H13: 3056.55 | I13: 3069.40 | J13: 3080.85 | K13: 3057.95 | L13: 3033.65
A14: 5 | B14: Nifty IT | C14: 14577.3 | D14: 14568.57 | E14: 14476.98 | F14: 14376.67 | G14: 14285.08 | H14: 14668.88 | I14: 14760.47 | J14: 14860.78 | K14: 14660.15 | L14: 14468.25
A15: 6 | B15: Nifty PSE | C15: 3409.15 | D15: 3413.27 | E15: 3391.48 | F15: 3373.82 | G15: 3352.03 | H15: 3430.93 | I15: 3452.72 | J15: 3470.38 | K15: 3435.05 | L15: 3395.6
A16: 7 | B16: Nifty Midcap 50 | C16: 4745.45 | D16: 4758.47 | E16: 4720.78 | F16: 4696.12 | G16: 4658.43 | H16: 4783.13 | I16: 4820.82 | J16: 4845.48 | K16: 4796.15 | L16: 4733.8
A17: 8 | B17: ABB | C17: 1305.15 | D17: 1312.82 | E17: 1294.63 | F17: 1284.12 | G17: 1265.93 | H17: 1323.33 | I17: 1341.52 | J17: 1352.03 | K17: 1331 | L17: 1302.3 | M17: 0.98447
A18: 9 | B18: ACC | C18: 1447.45 | D18: 1459.52 | E18: 1429.73 | F18: 1412.02 | G18: 1382.23 | H18: 1477.23 | I18: 1507.02 | J18: 1524.73 | K18: 1489.3 | L18: 1441.8 | M18: 3.63874
A19: 10 | B19: AIAENG | C19: 1724.95 | D19: 1719.23 | E19: 1706.77 | F19: 1688.58 | G19: 1676.12 | H19: 1737.42 | I19: 1749.88 | J19: 1768.07 | K19: 1731.7 | L19: 1701.05 | M19: 0.05941
A20: 11 | B20: AUBANK | C20: 549.25 | D20: 550.43 | E20: 544.87 | F20: 540.48 | G20: 534.92 | H20: 554.82 | I20: 560.38 | J20: 564.77 | K20: 556 | L20: 546.05 | M20: 0.63045
A21: 12 | B21: ADANIENT | C21: 164.45 | D21: 165.15 | E21: 161.30 | F21: 158.15 | G21: 154.30 | H21: 168.30 | I21: 172.15 | J21: 175.30 | K21: 169 | L21: 162 | M21: 58.34504
A22: 13 | B22: ADANIPORTS | C22: 325.6 | D22: 328.73 | E22: 320.02 | F22: 314.43 | G22: 305.72 | H22: 334.32 | I22: 343.03 | J22: 348.62 | K22: 337.45 | L22: 323.15 | M22: 50.44028
A23: 14 | B23: ADANIPOWER | C23: 49.3 | D23: 49.63 | E23: 48.32 | F23: 47.33 | G23: 46.02 | H23: 50.62 | I23: 51.93 | J23: 52.92 | K23: 50.95 | L23: 48.65 | M23: 169.91636
A24: 15 | B24: ABFRL | C24: 187.2 | D24: 187.98 | E24: 183.27 | F24: 179.33 | G24: 174.62 | H24: 191.92 | I24: 196.63 | J24: 200.57 | K24: 192.7 | L24: 184.05 | M24: 7.872
A25: 16 | B25: AJANTPHARM | C25: 1060.05 | D25: 1070.02 | E25: 1044.03 | F25: 1028.02 | G25: 1002.03 | H25: 1086.03 | I25: 1112.02 | J25: 1128.03 | K25: 1096 | L25: 1054 | M25: 1.75986
A26: 17 | B26: ALKEM | C26: 1880.75 | D26: 1889.90 | E26: 1864.85 | F26: 1848.95 | G26: 1823.90 | H26: 1905.80 | I26: 1930.85 | J26: 1946.75 | K26: 1914.95 | L26: 1874 | M26: 1.39047
A27: 18 | B27: AMARAJABAT | C27: 773.25 | D27: 773.78 | E27: 765.37 | F27: 757.48 | G27: 749.07 | H27: 781.67 | I27: 790.08 | J27: 797.97 | K27: 782.2 | L27: 765.9 | M27: 3.2559
A28: 19 | B28: AMBUJACEM | C28: 204.2 | D28: 204.80 | E28: 202.65 | F28: 201.10 | G28: 198.95 | H28: 206.35 | I28: 208.50 | J28: 210.05 | K28: 206.95 | L28: 203.25 | M28: 17.57806
A29: 20 | B29: APOLLOHOSP | C29: 1127.35 | D29: 1139.07 | E29: 1109.43 | F29: 1091.52 | G29: 1061.88 | H29: 1156.98 | I29: 1186.62 | J29: 1204.53 | K29: 1168.7 | L29: 1121.15 | M29: 4.60744
A30: 21 | B30: APOLLOTYRE | C30: 212.75 | D30: 214.85 | E30: 209.80 | F30: 206.85 | G30: 201.80 | H30: 217.80 | I30: 222.85 | J30: 225.80 | K30: 219.9 | L30: 211.9 | M30: 22.7204
A31: 22 | B31: ARVIND | C31: 316.8 | D31: 318.93 | E31: 312.87 | F31: 308.93 | G31: 302.87 | H31: 322.87 | I31: 328.93 | J31: 332.87 | K31: 325 | L31: 315 | M31: 13.76082
A32: 23 | B32: ASHOKLEY | C32: 120.9 | D32: 120.58 | E32: 119.02 | F32: 117.13 | G32: 115.57 | H32: 122.47 | I32: 124.03 | J32: 125.92 | K32: 122.15 | L32: 118.7 | M32: 168.6226
A33: 24 | B33: ASIANPAINT | C33: 1238.5 | D33: 1242.83 | E33: 1230.67 | F33: 1222.83 | G33: 1210.67 | H33: 1250.67 | I33: 1262.83 | J33: 1270.67 | K33: 1255 | L33: 1235 | M33: 8.15046
A34: 25 | B34: AUROPHARMA | C34: 785.9 | D34: 785.70 | E34: 777.70 | F34: 769.50 | G34: 761.50 | H34: 793.90 | I34: 801.90 | J34: 810.10 | K34: 793.7 | L34: 777.5 | M34: 16.75997
A35: 26 | B35: DMART | C35: 1424 | D35: 1430.58 | E35: 1396.82 | F35: 1369.63 | G35: 1335.87 | H35: 1457.77 | I35: 1491.53 | J35: 1518.72 | K35: 1464.35 | L35: 1403.4 | M35: 6.00576
A36: 27 | B36: AXISBANK | C36: 607.45 | D36: 611.87 | E36: 595.63 | F36: 583.82 | G36: 567.58 | H36: 623.68 | I36: 639.92 | J36: 651.73 | K36: 628.1 | L36: 600.05 | M36: 153.54794
A37: 28 | B37: BAJAJ-AUTO | C37: 2674.6 | D37: 2677.18 | E37: 2656.37 | F37: 2638.13 | G37: 2617.32 | H37: 2695.42 | I37: 2716.23 | J37: 2734.47 | K37: 2698 | L37: 2658.95 | M37: 2.78587
A38: 29 | B38: BAJFINANCE | C38: 2339.75 | D38: 2354.00 | E38: 2318.10 | F38: 2296.45 | G38: 2260.55 | H38: 2375.65 | I38: 2411.55 | J38: 2433.20 | K38: 2389.9 | L38: 2332.35 | M38: 13.68682
A39: 30 | B39: BAJAJFINSV | C39: 5591 | D39: 5615.25 | E39: 5540.70 | F39: 5490.40 | G39: 5415.85 | H39: 5665.55 | I39: 5740.10 | J39: 5790.40 | K39: 5689.8 | L39: 5564.95 | M39: 2.0835
A40: 31 | B40: BALKRISIND | C40: 943.95 | D40: 974.32 | E40: 909.63 | F40: 875.32 | G40: 810.63 | H40: 1008.63 | I40: 1073.32 | J40: 1107.63 | K40: 1039 | L40: 940 | M40: 52.92843
A41: 32 | B41: BANKBARODA | C41: 110.45 | D41: 110.98 | E41: 109.32 | F41: 108.18 | G41: 106.52 | H41: 112.12 | I41: 113.78 | J41: 114.92 | K41: 112.65 | L41: 109.85 | M41: 172.83224
A42: 33 | B42: BANKINDIA | C42: 85.9 | D42: 86.13 | E42: 84.87 | F42: 83.83 | G42: 82.57 | H42: 87.17 | I42: 88.43 | J42: 89.47 | K42: 87.4 | L42: 85.1 | M42: 51.54173
A43: 34 | B43: BATAINDIA | C43: 1010.95 | D43: 1012.57 | E43: 999.13 | F43: 987.32 | G43: 973.88 | H43: 1024.38 | I43: 1037.82 | J43: 1049.63 | K43: 1026 | L43: 1000.75 | M43: 13.88239
A44: 35 | B44: BERGEPAINT | C44: 297.65 | D44: 299.48 | E44: 294.72 | F44: 291.78 | G44: 287.02 | H44: 302.42 | I44: 307.18 | J44: 310.12 | K44: 304.25 | L44: 296.55 | M44: 5.04292
A45: 36 | B45: BEL | C45: 95.25 | D45: 95.57 | E45: 94.38 | F45: 93.52 | G45: 92.33 | H45: 96.43 | I45: 97.62 | J45: 98.48 | K45: 96.75 | L45: 94.7 | M45: 43.1178
A46: 37 | B46: BHARATFIN | C46: 904.35 | D46: 908.63 | E46: 887.27 | F46: 870.18 | G46: 848.82 | H46: 925.72 | I46: 947.08 | J46: 964.17 | K46: 930 | L46: 891.55 | M46: 10.39097
A47: 38 | B47: BHARATFORG | C47: 586.25 | D47: 591.90 | E47: 577.55 | F47: 568.85 | G47: 554.50 | H47: 600.60 | I47: 614.95 | J47: 623.65 | K47: 606.25 | L47: 583.2 | M47: 7.60322
A48: 39 | B48: BHEL | C48: 69.3 | D48: 69.80 | E48: 68.50 | F48: 67.70 | G48: 66.40 | H48: 70.60 | I48: 71.90 | J48: 72.70 | K48: 71.1 | L48: 69 | M48: 93.97104
A49: 40 | B49: BPCL | C49: 285.1 | D49: 287.83 | E49: 281.27 | F49: 277.43 | G49: 270.87 | H49: 291.67 | I49: 298.23 | J49: 302.07 | K49: 294.4 | L49: 284 | M49: 32.5828
A50: 41 | B50: BHARTIARTL | C50: 305.05 | D50: 305.30 | E50: 302.65 | F50: 300.25 | G50: 297.60 | H50: 307.70 | I50: 310.35 | J50: 312.75 | K50: 307.95 | L50: 302.9 | M50: 26.53071
A51: 42 | B51: INFRATEL | C51: 262.65 | D51: 262.57 | E51: 259.38 | F51: 256.12 | G51: 252.93 | H51: 265.83 | I51: 269.02 | J51: 272.28 | K51: 265.75 | L51: 259.3 | M51: 15.82175
A52: 43 | B52: BIOCON | C52: 629.35 | D52: 630.43 | E52: 622.92 | F52: 616.48 | G52: 608.97 | H52: 636.87 | I52: 644.38 | J52: 650.82 | K52: 637.95 | L52: 624 | M52: 15.95662
A53: 44 | B53: BOSCHLTD | C53: 19376.75 | D53: 19425.00 | E53: 19228.80 | F53: 19080.85 | G53: 18884.65 | H53: 19572.95 | I53: 19769.15 | J53: 19917.10 | K53: 19621.2 | L53: 19277.05 | M53: 0.11241
A54: 45 | B54: BRITANNIA | C54: 5721.25 | D54: 5723.82 | E54: 5648.63 | F54: 5576.02 | G54: 5500.83 | H54: 5796.43 | I54: 5871.62 | J54: 5944.23 | K54: 5799 | L54: 5651.2 | M54: 1.15086
A55: 46 | B55: CRISIL | C55: 1493.4 | D55: 1498.93 | E55: 1477.92 | F55: 1462.43 | G55: 1441.42 | H55: 1514.42 | I55: 1535.43 | J55: 1550.92 | K55: 1519.95 | L55: 1483.45 | M55: 0.0904
A56: 47 | B56: CADILAHC | C56: 350.25 | D56: 353.90 | E56: 343.45 | F56: 336.65 | G56: 326.20 | H56: 360.70 | I56: 371.15 | J56: 377.95 | K56: 364.35 | L56: 347.1 | M56: 11.07634
A57: 48 | B57: CANBK | C57: 242.05 | D57: 243.60 | E57: 238.70 | F57: 235.35 | G57: 230.45 | H57: 246.95 | I57: 251.85 | J57: 255.20 | K57: 248.5 | L57: 240.25 | M57: 42.98701
A58: 49 | B58: CASTROLIND | C58: 145.25 | D58: 145.60 | E58: 143.25 | F58: 141.25 | G58: 138.90 | H58: 147.60 | I58: 149.95 | J58: 151.95 | K58: 147.95 | L58: 143.6 | M58: 4.54549
A59: 50 | B59: CENTRALBK | C59: 31.85 | D59: 31.90 | E59: 31.45 | F59: 31.05 | G59: 30.60 | H59: 32.30 | I59: 32.75 | J59: 33.15 | K59: 32.35 | L59: 31.5 | M59: 5.80828
A60: 51 | B60: CENTURYTEX | C60: 862.65 | D60: 868.22 | E60: 852.43 | F60: 842.22 | G60: 826.43 | H60: 878.43 | I60: 894.22 | J60: 904.43 | K60: 884 | L60: 858 | M60: 4.45939
A61: 52 | B61: CHOLAFIN | C61: 1290.35 | D61: 1305.40 | E61: 1270.80 | F61: 1251.25 | G61: 1216.65 | H61: 1324.95 | I61: 1359.55 | J61: 1379.10 | K61: 1340 | L61: 1285.85 | M61: 1.17149
A62: 53 | B62: CIPLA | C62: 530.8 | D62: 537.72 | E62: 520.43 | F62: 510.07 | G62: 492.78 | H62: 548.08 | I62: 565.37 | J62: 575.73 | K62: 555 | L62: 527.35 | M62: 169.41828
A63: 54 | B63: COALINDIA | C63: 265.9 | D63: 265.58 | E63: 264.52 | F63: 263.13 | G63: 262.07 | H63: 266.97 | I63: 268.03 | J63: 269.42 | K63: 266.65 | L63: 264.2 | M63: 30.82375
A64: 55 | B64: COLPAL | C64: 1099.55 | D64: 1104.32 | E64: 1091.63 | F64: 1083.72 | G64: 1071.03 | H64: 1112.23 | I64: 1124.92 | J64: 1132.83 | K64: 1117 | L64: 1096.4 | M64: 1.64065
A65: 56 | B65: CONCOR | C65: 671.55 | D65: 672.18 | E65: 654.37 | F65: 637.18 | G65: 619.37 | H65: 689.37 | I65: 707.18 | J65: 724.37 | K65: 690 | L65: 655 | M65: 13.4666
A66: 57 | B66: COROMANDEL | C66: 417.6 | D66: 422.98 | E66: 409.62 | F66: 401.63 | G66: 388.27 | H66: 430.97 | I66: 444.33 | J66: 452.32 | K66: 436.35 | L66: 415 | M66: 0.45607
A67: 58 | B67: CROMPTON | C67: 211.9 | D67: 213.28 | E67: 209.62 | F67: 207.33 | G67: 203.67 | H67: 215.57 | I67: 219.23 | J67: 221.52 | K67: 216.95 | L67: 211 | M67: 7.82504
A68: 59 | B68: CUMMINSIND | C68: 776.65 | D68: 774.15 | E68: 759.55 | F68: 742.45 | G68: 727.85 | H68: 791.25 | I68: 805.85 | J68: 822.95 | K68: 788.75 | L68: 757.05 | M68: 7.00286
A69: 60 | B69: DLF | C69: 172.5 | D69: 172.70 | E69: 170.90 | F69: 169.30 | G69: 167.50 | H69: 174.30 | I69: 176.10 | J69: 177.70 | K69: 174.5 | L69: 171.1 | M69: 32.41788
A70: 61 | B70: DABUR | C70: 365.95 | D70: 366.17 | E70: 363.78 | F70: 361.62 | G70: 359.23 | H70: 368.33 | I70: 370.72 | J70: 372.88 | K70: 368.55 | L70: 364 | M70: 36.81999
A71: 62 | B71: DALMIABHA | C71: 2171.65 | D71: 2182.42 | E71: 2149.28 | F71: 2126.92 | G71: 2093.78 | H71: 2204.78 | I71: 2237.92 | J71: 2260.28 | K71: 2215.55 | L71: 2160.05 | M71: 0.51772
A72: 63 | B72: DHFL | C72: 228 | D72: 228.68 | E72: 222.87 | F72: 217.73 | G72: 211.92 | H72: 233.82 | I72: 239.63 | J72: 244.77 | K72: 234.5 | L72: 223.55 | M72: 149.39699
A73: 64 | B73: DISHTV | C73: 42.3 | D73: 42.23 | E73: 41.77 | F73: 41.23 | G73: 40.77 | H73: 42.77 | I73: 43.23 | J73: 43.77 | K73: 42.7 | L73: 41.7 | M73: 36.00051
A74: 65 | B74: DIVISLAB | C74: 1477.8 | D74: 1468.52 | E74: 1453.03 | F74: 1428.27 | G74: 1412.78 | H74: 1493.28 | I74: 1508.77 | J74: 1533.53 | K74: 1484 | L74: 1443.75 | M74: 8.73983
A75: 66 | B75: LALPATHLAB | C75: 880.5 | D75: 888.15 | E75: 866.35 | F75: 852.20 | G75: 830.40 | H75: 902.30 | I75: 924.10 | J75: 938.25 | K75: 909.95 | L75: 874 | M75: 0.9231
A76: 67 | B76: DRREDDY | C76: 2450.85 | D76: 2440.95 | E76: 2421.90 | F76: 2392.95 | G76: 2373.90 | H76: 2469.90 | I76: 2488.95 | J76: 2517.90 | K76: 2460 | L76: 2412 | M76: 3.7883
A77: 68 | B77: EDELWEISS | C77: 164.4 | D77: 165.58 | E77: 159.47 | F77: 154.53 | G77: 148.42 | H77: 170.52 | I77: 176.63 | J77: 181.57 | K77: 171.7 | L77: 160.65 | M77: 13.41231
A78: 69 | B78: EICHERMOT | C78: 22559.65 | D78: 22585.65 | E78: 22344.00 | F78: 22128.35 | G78: 21886.70 | H78: 22801.30 | I78: 23042.95 | J78: 23258.60 | K78: 22827.3 | L78: 22370 | M78: 0.50764
A79: 70 | B79: EMAMILTD | C79: 417.15 | D79: 419.05 | E79: 413.10 | F79: 409.05 | G79: 403.10 | H79: 423.10 | I79: 429.05 | J79: 433.10 | K79: 425 | L79: 415 | M79: 0.84007
A80: 71 | B80: ENDURANCE | C80: 1261.95 | D80: 1250.28 | E80: 1225.57 | F80: 1189.18 | G80: 1164.47 | H80: 1286.67 | I80: 1311.38 | J80: 1347.77 | K80: 1275 | L80: 1213.9 | M80: 0.153
A81: 72 | B81: ENGINERSIN | C81: 117.1 | D81: 118.25 | E81: 115.60 | F81: 114.10 | G81: 111.45 | H81: 119.75 | I81: 122.40 | J81: 123.90 | K81: 120.9 | L81: 116.75 | M81: 13.98076
A82: 73 | B82: EXIDEIND | C82: 253.1 | D82: 253.47 | E82: 249.63 | F82: 246.17 | G82: 242.33 | H82: 256.93 | I82: 260.77 | J82: 264.23 | K82: 257.3 | L82: 250 | M82: 25.77634
A83: 74 | B83: FEDERALBNK | C83: 80.1 | D83: 80.73 | E83: 79.12 | F83: 78.13 | G83: 76.52 | H83: 81.72 | I83: 83.33 | J83: 84.32 | K83: 82.35 | L83: 79.75 | M83: 83.91875
A84: 75 | B84: GAIL | C84: 375.15 | D84: 375.97 | E84: 369.93 | F84: 364.72 | G84: 358.68 | H84: 381.18 | I84: 387.22 | J84: 392.43 | K84: 382 | L84: 370.75 | M84: 74.0341
A85: 76 | B85: GMRINFRA | C85: 16.4 | D85: 16.60 | E85: 16.10 | F85: 15.80 | G85: 15.30 | H85: 16.90 | I85: 17.40 | J85: 17.70 | K85: 17.1 | L85: 16.3 | M85: 245.94507
A86: 77 | B86: GSKCONS | C86: 7086.45 | D86: 7099.48 | E86: 7048.97 | F86: 7011.48 | G86: 6960.97 | H86: 7136.97 | I86: 7187.48 | J86: 7224.97 | K86: 7150 | L86: 7062 | M86: 0.04179
A87: 78 | B87: GLAXO | C87: 1357.05 | D87: 1361.70 | E87: 1342.35 | F87: 1327.65 | G87: 1308.30 | H87: 1376.40 | I87: 1395.75 | J87: 1410.45 | K87: 1381.05 | L87: 1347 | M87: 0.10348
A88: 79 | B88: GLENMARK | C88: 657.5 | D88: 648.67 | E88: 635.83 | F88: 614.17 | G88: 601.33 | H88: 670.33 | I88: 683.17 | J88: 704.83 | K88: 661.5 | L88: 627 | M88: 23.61968
A89: 80 | B89: GODREJCP | C89: 699.15 | D89: 699.40 | E89: 684.90 | F89: 670.65 | G89: 656.15 | H89: 713.65 | I89: 728.15 | J89: 742.40 | K89: 713.9 | L89: 685.15 | M89: 13.12473
A90: 81 | B90: GODREJIND | C90: 470.7 | D90: 473.87 | E90: 463.78 | F90: 456.87 | G90: 446.78 | H90: 480.78 | I90: 490.87 | J90: 497.78 | K90: 483.95 | L90: 466.95 | M90: 1.49314
A91: 82 | B91: GRUH | C91: 296.5 | D91: 296.32 | E91: 293.58 | F91: 290.67 | G91: 287.93 | H91: 299.23 | I91: 301.97 | J91: 304.88 | K91: 299.05 | L91: 293.4 | M91: 1.70861
A92: 83 | B92: GPPL | C92: 99.6 | D92: 99.78 | E92: 98.82 | F92: 98.03 | G92: 97.07 | H92: 100.57 | I92: 101.53 | J92: 102.32 | K92: 100.75 | L92: 99 | M92: 0.81085
A93: 84 | B93: GSPL | C93: 184.3 | D93: 183.90 | E93: 182.50 | F93: 180.70 | G93: 179.30 | H93: 185.70 | I93: 187.10 | J93: 188.90 | K93: 185.3 | L93: 182.1 | M93: 2.89593
A94: 85 | B94: HCLTECH | C94: 1028.9 | D94: 1028.17 | E94: 1014.33 | F94: 999.77 | G94: 985.93 | H94: 1042.73 | I94: 1056.57 | J94: 1071.13 | K94: 1042 | L94: 1013.6 | M94: 14.60942
A95: 86 | B95: HDFCBANK | C95: 1946.55 | D95: 1955.17 | E95: 1934.33 | F95: 1922.12 | G95: 1901.28 | H95: 1967.38 | I95: 1988.22 | J95: 2000.43 | K95: 1976 | L95: 1942.95 | M95: 21.21397
A96: 87 | B96: HAVELLS | C96: 647.45 | D96: 648.15 | E96: 639.30 | F96: 631.15 | G96: 622.30 | H96: 656.30 | I96: 665.15 | J96: 673.30 | K96: 657 | L96: 640 | M96: 7.87114
A97: 88 | B97: HEROMOTOCO | C97: 2856.05 | D97: 2882.60 | E97: 2801.25 | F97: 2746.45 | G97: 2665.10 | H97: 2937.40 | I97: 3018.75 | J97: 3073.55 | K97: 2963.95 | L97: 2827.8 | M97: 2.48605
A98: 89 | B98: HEXAWARE | C98: 312 | D98: 313.78 | E98: 307.97 | F98: 303.93 | G98: 298.12 | H98: 317.82 | I98: 323.63 | J98: 327.67 | K98: 319.6 | L98: 309.75 | M98: 13.41546
A99: 90 | B99: HINDALCO | C99: 242.6 | D99: 241.78 | E99: 239.22 | F99: 235.83 | G99: 233.27 | H99: 245.17 | I99: 247.73 | J99: 251.12 | K99: 244.35 | L99: 238.4 | M99: 51.74397
A100: 91 | B100: HINDPETRO | C100: 226.3 | D100: 228.33 | E100: 221.67 | F100: 217.03 | G100: 210.37 | H100: 232.97 | I100: 239.63 | J100: 244.27 | K100: 235 | L100: 223.7 | M100: 58.35146
A101: 92 | B101: HINDUNILVR | C101: 1631.95 | D101: 1635.35 | E101: 1616.70 | F101: 1601.45 | G101: 1582.80 | H101: 1650.60 | I101: 1669.25 | J101: 1684.50 | K101: 1654 | L101: 1620.1 | M101: 6.56676
A102: 93 | B102: HINDZINC | C102: 264.7 | D102: 263.28 | E102: 261.17 | F102: 257.63 | G102: 255.52 | H102: 266.82 | I102: 268.93 | J102: 272.47 | K102: 265.4 | L102: 259.75 | M102: 13.889
A103: 94 | B103: HUDCO | C103: 44.6 | D103: 44.72 | E103: 44.03 | F103: 43.47 | G103: 42.78 | H103: 45.28 | I103: 45.97 | J103: 46.53 | K103: 45.4 | L103: 44.15 | M103: 4.94598
A104: 95 | B104: HDFC | C104: 1805.9 | D104: 1801.00 | E104: 1788.00 | F104: 1770.10 | G104: 1757.10 | H104: 1818.90 | I104: 1831.90 | J104: 1849.80 | K104: 1814 | L104: 1783.1 | M104: 20.33692
A105: 96 | B105: ITC | C105: 277.3 | D105: 278.42 | E105: 274.98 | F105: 272.67 | G105: 269.23 | H105: 280.73 | I105: 284.17 | J105: 286.48 | K105: 281.85 | L105: 276.1 | M105: 97.66345
A106: 97 | B106: ICICIBANK | C106: 353.1 | D106: 353.02 | E106: 347.73 | F106: 342.37 | G106: 337.08 | H106: 358.38 | I106: 363.67 | J106: 369.03 | K106: 358.3 | L106: 347.65 | M106: 213.49153
A107: 98 | B107: ICICIPRULI | C107: 358.9 | D107: 358.53 | E107: 354.57 | F107: 350.23 | G107: 346.27 | H107: 362.87 | I107: 366.83 | J107: 371.17 | K107: 362.5 | L107: 354.2 | M107: 7.26091
A108: 99 | B108: IDBI | C108: 59.3 | D108: 59.50 | E108: 59.00 | F108: 58.70 | G108: 58.20 | H108: 59.80 | I108: 60.30 | J108: 60.60 | K108: 60 | L108: 59.2 | M108: 16.94995
A109: 100 | B109: IDFCBANK | C109: 35.15 | D109: 35.22 | E109: 34.93 | F109: 34.72 | G109: 34.43 | H109: 35.43 | I109: 35.72 | J109: 35.93 | K109: 35.5 | L109: 35 | M109: 47.63426
A110: 101 | B110: IDFC | C110: 37.65 | D110: 37.80 | E110: 37.10 | F110: 36.55 | G110: 35.85 | H110: 38.35 | I110: 39.05 | J110: 39.60 | K110: 38.5 | L110: 37.25 | M110: 18.32119
A111: 102 | B111: IRB | C111: 138.9 | D111: 140.85 | E111: 136.05 | F111: 133.20 | G111: 128.40 | H111: 143.70 | I111: 148.50 | J111: 151.35 | K111: 145.65 | L111: 138 | M111: 14.2839
A112: 103 | B112: IDEA | C112: 42.15 | D112: 42.03 | E112: 41.62 | F112: 41.08 | G112: 40.67 | H112: 42.57 | I112: 42.98 | J112: 43.52 | K112: 42.45 | L112: 41.5 | M112: 108.97977
A113: 104 | B113: IBULHSGFIN | C113: 829.1 | D113: 832.45 | E113: 812.90 | F113: 796.70 | G113: 777.15 | H113: 848.65 | I113: 868.20 | J113: 884.40 | K113: 852 | L113: 816.25 | M113: 51.93529
A114: 105 | B114: INDIANB | C114: 257.95 | D114: 261.40 | E114: 253.10 | F114: 248.25 | G114: 239.95 | H114: 266.25 | I114: 274.55 | J114: 279.40 | K114: 269.7 | L114: 256.55 | M114: 24.79943
A115: 106 | B115: INDHOTEL | C115: 130.6 | D115: 131.00 | E115: 129.40 | F115: 128.20 | G115: 126.60 | H115: 132.20 | I115: 133.80 | J115: 135.00 | K115: 132.6 | L115: 129.8 | M115: 1.61128
A116: 107 | B116: IOC | C116: 137.35 | D116: 138.43 | E116: 135.42 | F116: 133.48 | G116: 130.47 | H116: 140.37 | I116: 143.38 | J116: 145.32 | K116: 141.45 | L116: 136.5 | M116: 101.64542
A117: 108 | B117: IGL | C117: 272.6 | D117: 277.20 | E117: 266.70 | F117: 260.80 | G117: 250.30 | H117: 283.10 | I117: 293.60 | J117: 299.50 | K117: 287.7 | L117: 271.3 | M117: 22.54832
A118: 109 | B118: INDUSINDBK | C118: 1475.45 | D118: 1476.57 | E118: 1441.53 | F118: 1407.62 | G118: 1372.58 | H118: 1510.48 | I118: 1545.52 | J118: 1579.43 | K118: 1511.6 | L118: 1442.65 | M118: 28.30304
A119: 110 | B119: NAUKRI | C119: 1375.95 | D119: 1389.17 | E119: 1348.83 | F119: 1321.72 | G119: 1281.38 | H119: 1416.28 | I119: 1456.62 | J119: 1483.73 | K119: 1429.5 | L119: 1362.05 | M119: 17.99217
A120: 111 | B120: INFY | C120: 666.45 | D120: 667.37 | E120: 659.73 | F120: 653.02 | G120: 645.38 | H120: 674.08 | I120: 681.72 | J120: 688.43 | K120: 675 | L120: 660.65 | M120: 69.75525
A121: 112 | B121: INDIGO | C121: 955.65 | D121: 954.22 | E121: 941.43 | F121: 927.22 | G121: 914.43 | H121: 968.43 | I121: 981.22 | J121: 995.43 | K121: 967 | L121: 940 | M121: 9.12782
A122: 113 | B122: IPCALAB | C122: 685.65 | D122: 689.57 | E122: 677.13 | F122: 668.62 | G122: 656.18 | H122: 698.08 | I122: 710.52 | J122: 719.03 | K122: 702 | L122: 681.05 | M122: 0.24135
A123: 114 | B123: JSWENERGY | C123: 68.1 | D123: 67.63 | E123: 66.57 | F123: 65.03 | G123: 63.97 | H123: 69.17 | I123: 70.23 | J123: 71.77 | K123: 68.7 | L123: 66.1 | M123: 7.70435
A124: 115 | B124: JSWSTEEL | C124: 350.75 | D124: 352.58 | E124: 345.77 | F124: 340.78 | G124: 333.97 | H124: 357.57 | I124: 364.38 | J124: 369.37 | K124: 359.4 | L124: 347.6 | M124: 31.8037
A125: 116 | B125: JINDALSTEL | C125: 181.5 | D125: 182.12 | E125: 178.88 | F125: 176.27 | G125: 173.03 | H125: 184.73 | I125: 187.97 | J125: 190.58 | K125: 185.35 | L125: 179.5 | M125: 48.44677
A126: 117 | B126: JUBLFOOD | C126: 1043.3 | D126: 1052.80 | E126: 1027.15 | F126: 1011.00 | G126: 985.35 | H126: 1068.95 | I126: 1094.60 | J126: 1110.75 | K126: 1078.45 | L126: 1036.65 | M126: 14.8231
A127: 118 | B127: JUBILANT | C127: 731.95 | D127: 730.12 | E127: 723.03 | F127: 714.12 | G127: 707.03 | H127: 739.03 | I127: 746.12 | J127: 755.03 | K127: 737.2 | L127: 721.2 | M127: 1.49329
A128: 119 | B128: KARURVYSYA | C128: 78.65 | D128: 78.70 | E128: 78.35 | F128: 78.05 | G128: 77.70 | H128: 79.00 | I128: 79.35 | J128: 79.65 | K128: 79.05 | L128: 78.4 | M128: 10.33693
A129: 120 | B129: KOTAKBANK | C129: 1125.3 | D129: 1128.82 | E129: 1117.63 | F129: 1109.97 | G129: 1098.78 | H129: 1136.48 | I129: 1147.67 | J129: 1155.33 | K129: 1140 | L129: 1121.15 | M129: 21.06333
A130: 121 | B130: L&TFH | C130: 135 | D130: 135.57 | E130: 133.78 | F130: 132.57 | G130: 130.78 | H130: 136.78 | I130: 138.57 | J130: 139.78 | K130: 137.35 | L130: 134.35 | M130: 48.49837
A131: 122 | B131: LICHSGFIN | C131: 426.75 | D131: 427.87 | E131: 421.98 | F131: 417.22 | G131: 411.33 | H131: 432.63 | I131: 438.52 | J131: 443.28 | K131: 433.75 | L131: 423.1 | M131: 14.90314
A132: 123 | B132: LT | C132: 1363.85 | D132: 1361.23 | E132: 1352.67 | F132: 1341.48 | G132: 1332.92 | H132: 1372.42 | I132: 1380.98 | J132: 1392.17 | K132: 1369.8 | L132: 1350.05 | M132: 16.16734
A133: 124 | B133: LUPIN | C133: 850.95 | D133: 848.78 | E133: 841.17 | F133: 831.38 | G133: 823.77 | H133: 858.57 | I133: 866.18 | J133: 875.97 | K133: 856.4 | L133: 839 | M133: 13.6977
A134: 125 | B134: MRF | C134: 65160.7 | D134: 65556.03 | E134: 64504.67 | F134: 63848.63 | G134: 62797.27 | H134: 66212.07 | I134: 67263.43 | J134: 67919.47 | K134: 66607.4 | L134: 64900 | M134: 0.04248
A135: 126 | B135: MGL | C135: 841.4 | D135: 846.02 | E135: 835.38 | F135: 829.37 | G135: 818.73 | H135: 852.03 | I135: 862.67 | J135: 868.68 | K135: 856.65 | L135: 840 | M135: 1.33258
A136: 127 | B136: M&MFIN | C136: 420.5 | D136: 419.97 | E136: 415.93 | F136: 411.37 | G136: 407.33 | H136: 424.53 | I136: 428.57 | J136: 433.13 | K136: 424 | L136: 415.4 | M136: 18.50823
A137: 128 | B137: M&M | C137: 778.4 | D137: 776.42 | E137: 770.83 | F137: 763.27 | G137: 757.68 | H137: 783.98 | I137: 789.57 | J137: 797.13 | K137: 782 | L137: 768.85 | M137: 18.39552
A138: 129 | B138: MANAPPURAM | C138: 82.6 | D138: 82.73 | E138: 79.87 | F138: 77.13 | G138: 74.27 | H138: 85.47 | I138: 88.33 | J138: 91.07 | K138: 85.6 | L138: 80 | M138: 41.83151
A139: 130 | B139: MRPL | C139: 82.55 | D139: 82.43 | E139: 80.67 | F139: 78.78 | G139: 77.02 | H139: 84.32 | I139: 86.08 | J139: 87.97 | K139: 84.2 | L139: 80.55 | M139: 36.51026
A140: 131 | B140: MARICO | C140: 335.05 | D140: 336.80 | E140: 331.20 | F140: 327.35 | G140: 321.75 | H140: 340.65 | I140: 346.25 | J140: 350.10 | K140: 342.4 | L140: 332.95 | M140: 13.65772
A141: 132 | B141: MARUTI | C141: 7075 | D141: 7121.00 | E141: 7004.00 | F141: 6933.00 | G141: 6816.00 | H141: 7192.00 | I141: 7309.00 | J141: 7380.00 | K141: 7238 | L141: 7050 | M141: 6.67413
A142: 133 | B142: MFSL | C142: 389.2 | D142: 395.25 | E142: 380.50 | F142: 371.80 | G142: 357.05 | H142: 403.95 | I142: 418.70 | J142: 427.40 | K142: 410 | L142: 386.55 | M142: 4.37002
A143: 134 | B143: MINDTREE | C143: 834.6 | D143: 831.83 | E143: 822.27 | F143: 809.93 | G143: 800.37 | H143: 844.17 | I143: 853.73 | J143: 866.07 | K143: 841.4 | L143: 819.5 | M143: 12.91465
A144: 135 | B144: MOTHERSUMI | C144: 170.95 | D144: 172.18 | E144: 166.87 | F144: 162.78 | G144: 157.47 | H144: 176.27 | I144: 181.58 | J144: 185.67 | K144: 177.5 | L144: 168.1 | M144: 49.28228
A145: 136 | B145: MPHASIS | C145: 910.1 | D145: 917.03 | E145: 898.07 | F145: 886.03 | G145: 867.07 | H145: 929.07 | I145: 948.03 | J145: 960.07 | K145: 936 | L145: 905 | M145: 4.72614
A146: 137 | B146: MUTHOOTFIN | C146: 444.6 | D146: 447.03 | E146: 437.07 | F146: 429.53 | G146: 419.57 | H146: 454.57 | I146: 464.53 | J146: 472.07 | K146: 457 | L146: 439.5 | M146: 6.75165
A147: 138 | B147: NATCOPHARM | C147: 752.05 | D147: 757.35 | E147: 744.70 | F147: 737.35 | G147: 724.70 | H147: 764.70 | I147: 777.35 | J147: 784.70 | K147: 770 | L147: 750 | M147: 3.51683
A148: 139 | B148: NBCC | C148: 62.2 | D148: 62.45 | E148: 61.20 | F148: 60.20 | G148: 58.95 | H148: 63.45 | I148: 64.70 | J148: 65.70 | K148: 63.7 | L148: 61.45 | M148: 50.81903
A149: 140 | B149: NHPC | C149: 24.65 | D149: 24.65 | E149: 24.40 | F149: 24.15 | G149: 23.90 | H149: 24.90 | I149: 25.15 | J149: 25.40 | K149: 24.9 | L149: 24.4 | M149: 13.56574
A150: 141 | B150: NMDC | C150: 112.05 | D150: 112.08 | E150: 107.77 | F150: 103.48 | G150: 99.17 | H150: 116.37 | I150: 120.68 | J150: 124.97 | K150: 116.4 | L150: 107.8 | M150: 90.05007
A151: 142 | B151: NTPC | C151: 154.15 | D151: 153.73 | E151: 152.77 | F151: 151.38 | G151: 150.42 | H151: 155.12 | I151: 156.08 | J151: 157.47 | K151: 154.7 | L151: 152.35 | M151: 51.865
A152: 143 | B152: NATIONALUM | C152: 70.1 | D152: 70.50 | E152: 69.50 | F152: 68.90 | G152: 67.90 | H152: 71.10 | I152: 72.10 | J152: 72.70 | K152: 71.5 | L152: 69.9 | M152: 44.59374
A153: 144 | B153: OBEROIRLTY | C153: 439.6 | D153: 438.82 | E153: 434.18 | F153: 428.77 | G153: 424.13 | H153: 444.23 | I153: 448.87 | J153: 454.28 | K153: 443.45 | L153: 433.4 | M153: 3.92795
A154: 145 | B154: ONGC | C154: 156.05 | D154: 156.02 | E154: 153.83 | F154: 151.62 | G154: 149.43 | H154: 158.23 | I154: 160.42 | J154: 162.63 | K154: 158.2 | L154: 153.8 | M154: 77.4998
A155: 146 | B155: OIL | C155: 198.3 | D155: 197.83 | E155: 196.77 | F155: 195.23 | G155: 194.17 | H155: 199.37 | I155: 200.43 | J155: 201.97 | K155: 198.9 | L155: 196.3 | M155: 3.52966
A156: 147 | B156: OFSS | C156: 3551.05 | D156: 3560.45 | E156: 3465.65 | F156: 3380.25 | G156: 3285.45 | H156: 3645.85 | I156: 3740.65 | J156: 3826.05 | K156: 3655.25 | L156: 3475.05 | M156: 0.37419
A157: 148 | B157: PCJEWELLER | C157: 83.3 | D157: 87.70 | E157: 76.40 | F157: 69.50 | G157: 58.20 | H157: 94.60 | I157: 105.90 | J157: 112.80 | K157: 99 | L157: 80.8 | M157: 757.66136
A158: 149 | B158: PIIND | C158: 820 | D158: 813.62 | E158: 805.73 | F158: 791.47 | G158: 783.58 | H158: 827.88 | I158: 835.77 | J158: 850.03 | K158: 821.5 | L158: 799.35 | M158: 0.18023
A159: 150 | B159: PNBHOUSING | C159: 904.6 | D159: 904.40 | E159: 881.80 | F159: 859.00 | G159: 836.40 | H159: 927.20 | I159: 949.80 | J159: 972.60 | K159: 927 | L159: 881.6 | M159: 5.14881
A160: 151 | B160: PAGEIND | C160: 29634.7 | D160: 29631.27 | E160: 29313.53 | F160: 28992.37 | G160: 28674.63 | H160: 29952.43 | I160: 30270.17 | J160: 30591.33 | K160: 29949 | L160: 29310.1 | M160: 0.27088
A161: 152 | B161: PETRONET | C161: 214.65 | D161: 216.07 | E161: 212.03 | F161: 209.42 | G161: 205.38 | H161: 218.68 | I161: 222.72 | J161: 225.33 | K161: 220.1 | L161: 213.45 | M161: 28.47784
A162: 153 | B162: PIDILITIND | C162: 996.45 | D162: 1007.15 | E162: 979.35 | F162: 962.25 | G162: 934.45 | H162: 1024.25 | I162: 1052.05 | J162: 1069.15 | K162: 1034.95 | L162: 990.05 | M162: 5.24459
A163: 154 | B163: PEL | C163: 2190.9 | D163: 2201.40 | E163: 2164.50 | F163: 2138.10 | G163: 2101.20 | H163: 2227.80 | I163: 2264.70 | J163: 2291.10 | K163: 2238.3 | L163: 2175 | M163: 3.95414
A164: 155 | B164: PFC | C164: 97.95 | D164: 97.10 | E164: 94.65 | F164: 91.35 | G164: 88.90 | H164: 100.40 | I164: 102.85 | J164: 106.15 | K164: 99.55 | L164: 93.8 | M164: 175.9257
A165: 156 | B165: POWERGRID | C165: 188.1 | D165: 187.37 | E165: 185.73 | F165: 183.37 | G165: 181.73 | H165: 189.73 | I165: 191.37 | J165: 193.73 | K165: 189 | L165: 185 | M165: 41.271
A166: 157 | B166: PRESTIGE | C166: 188 | D166: 188.88 | E166: 186.12 | F166: 184.23 | G166: 181.47 | H166: 190.77 | I166: 193.53 | J166: 195.42 | K166: 191.65 | L166: 187 | M166: 0.22395
A167: 158 | B167: PGHH | C167: 9478.95 | D167: 9565.78 | E167: 9355.52 | F167: 9232.08 | G167: 9021.82 | H167: 9689.22 | I167: 9899.48 | J167: 10022.92 | K167: 9776.05 | L167: 9442.35 | M167: 0.02846
A168: 159 | B168: PNB | C168: 70.6 | D168: 70.68 | E168: 69.82 | F168: 69.03 | G168: 68.17 | H168: 71.47 | I168: 72.33 | J168: 73.12 | K168: 71.55 | L168: 69.9 | M168: 186.82517
A169: 160 | B169: RBLBANK | C169: 538.4 | D169: 538.65 | E169: 533.35 | F169: 528.30 | G169: 523.00 | H169: 543.70 | I169: 549.00 | J169: 554.05 | K169: 543.95 | L169: 533.6 | M169: 15.95009
A170: 161 | B170: RAJESHEXPO | C170: 570.95 | D170: 571.75 | E170: 569.20 | F170: 567.45 | G170: 564.90 | H170: 573.50 | I170: 576.05 | J170: 577.80 | K170: 574.3 | L170: 570 | M170: 1.71173
A171: 162 | B171: RELCAPITAL | C171: 249.5 | D171: 250.90 | E171: 245.30 | F171: 241.10 | G171: 235.50 | H171: 255.10 | I171: 260.70 | J171: 264.90 | K171: 256.5 | L171: 246.7 | M171: 41.40387
A172: 163 | B172: RCOM | C172: 13.8 | D172: 13.95 | E172: 13.50 | F172: 13.20 | G172: 12.75 | H172: 14.25 | I172: 14.70 | J172: 15.00 | K172: 14.4 | L172: 13.65 | M172: 352.45855
A173: 164 | B173: RELIANCE | C173: 1104.1 | D173: 1102.57 | E173: 1093.13 | F173: 1082.17 | G173: 1072.73 | H173: 1113.53 | I173: 1122.97 | J173: 1133.93 | K173: 1112 | L173: 1091.6 | M173: 86.34266
A174: 165 | B174: RELINFRA | C174: 357.9 | D174: 360.40 | E174: 351.30 | F174: 344.70 | G174: 335.60 | H174: 367.00 | I174: 376.10 | J174: 382.70 | K174: 369.5 | L174: 353.8 | M174: 23.25302
A175: 166 | B175: RPOWER | C175: 30.7 | D175: 30.85 | E175: 30.35 | F175: 30.00 | G175: 29.50 | H175: 31.20 | I175: 31.70 | J175: 32.05 | K175: 31.35 | L175: 30.5 | M175: 50.69645
A176: 167 | B176: RECLTD | C176: 118.35 | D176: 118.72 | E176: 115.93 | F176: 113.52 | G176: 110.73 | H176: 121.13 | I176: 123.92 | J176: 126.33 | K176: 121.5 | L176: 116.3 | M176: 144.96298
A177: 168 | B177: SRF | C177: 2006.3 | D177: 2005.12 | E177: 1991.53 | F177: 1976.77 | G177: 1963.18 | H177: 2019.88 | I177: 2033.47 | J177: 2048.23 | K177: 2018.7 | L177: 1990.35 | M177: 2.99703
A178: 169 | B178: SHREECEM | C178: 15363 | D178: 15254.98 | E178: 15009.97 | F178: 14656.93 | G178: 14411.92 | H178: 15608.02 | I178: 15853.03 | J178: 16206.07 | K178: 15500 | L178: 14901.95 | M178: 0.25707
A179: 170 | B179: SRTRANSFIN | C179: 1213.35 | D179: 1224.55 | E179: 1193.80 | F179: 1174.25 | G179: 1143.50 | H179: 1244.10 | I179: 1274.85 | J179: 1294.40 | K179: 1255.3 | L179: 1205 | M179: 7.61424
A180: 171 | B180: SIEMENS | C180: 938.45 | D180: 951.75 | E180: 918.70 | F180: 898.95 | G180: 865.90 | H180: 971.50 | I180: 1004.55 | J180: 1024.30 | K180: 984.8 | L180: 932 | M180: 1.91318
A181: 172 | B181: SBIN | C181: 286.45 | D181: 289.55 | E181: 280.80 | F181: 275.15 | G181: 266.40 | H181: 295.20 | I181: 303.95 | J181: 309.60 | K181: 298.3 | L181: 283.9 | M181: 406.88243
A182: 173 | B182: SAIL | C182: 66.2 | D182: 66.33 | E182: 65.47 | F182: 64.73 | G182: 63.87 | H182: 67.07 | I182: 67.93 | J182: 68.67 | K182: 67.2 | L182: 65.6 | M182: 71.49775
A183: 174 | B183: SPARC | C183: 289.45 | D183: 291.40 | E183: 286.40 | F183: 283.35 | G183: 278.35 | H183: 294.45 | I183: 299.45 | J183: 302.50 | K183: 296.4 | L183: 288.35 | M183: 1.42835
A184: 175 | B184: SUNPHARMA | C184: 579.35 | D184: 580.08 | E184: 574.27 | F184: 569.18 | G184: 563.37 | H184: 585.17 | I184: 590.98 | J184: 596.07 | K184: 585.9 | L184: 575 | M184: 35.00726
A185: 176 | B185: SUNTV | C185: 607.55 | D185: 613.32 | E185: 599.23 | F185: 590.92 | G185: 576.83 | H185: 621.63 | I185: 635.72 | J185: 644.03 | K185: 627.4 | L185: 605 | M185: 23.68118
A186: 177 | B186: SUZLON | C186: 6.1 | D186: 6.15 | E186: 5.95 | F186: 5.80 | G186: 5.60 | H186: 6.30 | I186: 6.50 | J186: 6.65 | K186: 6.35 | L186: 6 | M186: 172.551
A187: 178 | B187: SYNDIBANK | C187: 34.7 | D187: 34.73 | E187: 34.47 | F187: 34.23 | G187: 33.97 | H187: 34.97 | I187: 35.23 | J187: 35.47 | K187: 35 | L187: 34.5 | M187: 26.64946
A188: 179 | B188: SYNGENE | C188: 584.75 | D188: 582.92 | E188: 580.83 | F188: 576.92 | G188: 574.83 | H188: 586.83 | I188: 588.92 | J188: 592.83 | K188: 585 | L188: 579 | M188: 0.43059
A189: 180 | B189: TV18BRDCST | C189: 37.25 | D189: 37.43 | E189: 36.87 | F189: 36.48 | G189: 35.92 | H189: 37.82 | I189: 38.38 | J189: 38.77 | K189: 38 | L189: 37.05 | M189: 22.99861
A190: 181 | B190: TVSMOTOR | C190: 550.5 | D190: 554.23 | E190: 544.22 | F190: 537.93 | G190: 527.92 | H190: 560.52 | I190: 570.53 | J190: 576.82 | K190: 564.25 | L190: 547.95 | M190: 6.40629
A191: 182 | B191: TATACHEM | C191: 693.8 | D191: 693.00 | E191: 682.05 | F191: 670.30 | G191: 659.35 | H191: 704.75 | I191: 715.70 | J191: 727.45 | K191: 703.95 | L191: 681.25 | M191: 5.45326
A192: 183 | B192: TATACOMM | C192: 505.05 | D192: 504.17 | E192: 495.98 | F192: 486.92 | G192: 478.73 | H192: 513.23 | I192: 521.42 | J192: 530.48 | K192: 512.35 | L192: 495.1 | M192: 5.32195
A193: 184 | B193: TCS | C193: 1932.7 | D193: 1920.40 | E193: 1903.30 | F193: 1873.90 | G193: 1856.80 | H193: 1949.80 | I193: 1966.90 | J193: 1996.30 | K193: 1937.5 | L193: 1891 | M193: 13.9871
A194: 185 | B194: TATAGLOBAL | C194: 213.8 | D194: 216.23 | E194: 210.72 | F194: 207.63 | G194: 202.12 | H194: 219.32 | I194: 224.83 | J194: 227.92 | K194: 221.75 | L194: 213.15 | M194: 11.14288
A195: 186 | B195: TATAMTRDVR | C195: 104.3 | D195: 105.07 | E195: 102.38 | F195: 100.47 | G195: 97.78 | H195: 106.98 | I195: 109.67 | J195: 111.58 | K195: 107.75 | L195: 103.15 | M195: 50.30507
A196: 187 | B196: TATAMOTORS | C196: 193.25 | D196: 194.98 | E196: 190.02 | F196: 186.78 | G196: 181.82 | H196: 198.22 | I196: 203.18 | J196: 206.42 | K196: 199.95 | L196: 191.75 | M196: 353.39222
A197: 188 | B197: TATAPOWER | C197: 75.65 | D197: 75.92 | E197: 74.73 | F197: 73.82 | G197: 72.63 | H197: 76.83 | I197: 78.02 | J197: 78.93 | K197: 77.1 | L197: 75 | M197: 46.73161
A198: 189 | B198: TATASTEEL | C198: 575.75 | D198: 576.72 | E198: 569.03 | F198: 562.32 | G198: 554.63 | H198: 583.43 | I198: 591.12 | J198: 597.83 | K198: 584.4 | L198: 570 | M198: 39.10274
A199: 190 | B199: TECHM | C199: 694.55 | D199: 696.88 | E199: 689.27 | F199: 683.98 | G199: 676.37 | H199: 702.17 | I199: 709.78 | J199: 715.07 | K199: 704.5 | L199: 691.6 | M199: 17.52227
A200: 191 | B200: RAMCOCEM | C200: 627.55 | D200: 628.38 | E200: 619.17 | F200: 610.78 | G200: 601.57 | H200: 636.77 | I200: 645.98 | J200: 654.37 | K200: 637.6 | L200: 620 | M200: 1.10222
A201: 192 | B201: TITAN | C201: 846.25 | D201: 854.68 | E201: 831.77 | F201: 817.28 | G201: 794.37 | H201: 869.17 | I201: 892.08 | J201: 906.57 | K201: 877.6 | L201: 840.2 | M201: 25.04504
A202: 193 | B202: TORNTPHARM | C202: 1663.8 | D202: 1641.27 | E202: 1607.53 | F202: 1551.27 | G202: 1517.53 | H202: 1697.53 | I202: 1731.27 | J202: 1787.53 | K202: 1675 | L202: 1585 | M202: 7.5182
A203: 194 | B203: TORNTPOWER | C203: 263.2 | D203: 264.17 | E203: 259.83 | F203: 256.47 | G203: 252.13 | H203: 267.53 | I203: 271.87 | J203: 275.23 | K203: 268.5 | L203: 260.8 | M203: 10.41358
A204: 195 | B204: UPL | C204: 721.9 | D204: 721.57 | E204: 715.18 | F204: 708.47 | G204: 702.08 | H204: 728.28 | I204: 734.67 | J204: 741.38 | K204: 727.95 | L204: 714.85 | M204: 14.56851
A205: 196 | B205: ULTRACEMCO | C205: 3744.4 | D205: 3754.50 | E205: 3701.45 | F205: 3658.50 | G205: 3605.45 | H205: 3797.45 | I205: 3850.50 | J205: 3893.45 | K205: 3807.55 | L205: 3711.55 | M205: 2.77572
... 30 more rows

Sheet MidCap Intra
L5: Back To Main Page
A6: FOR INTRA DAY TRADING | K6: =Main!B10 -> 2018-11-07
A9: Sr.no | B9: Scrip | C9: CLOSE RATE | D9: Pivot Point | E9: Supports | H9: Resistances
C10: Point | E10: S1 | F10: S2 | G10: S3 | H10: R1 | I10: R2 | J10: R3 | K10: HIGH | L10: LOW | M10: Total Trade Quanity in Lakhs
A11: 1 | B11: 3MINDIA | C11: 19845.7 | D11: 19947.77 | E11: 19497.93 | F11: 19150.17 | G11: 18700.33 | H11: 20295.53 | I11: 20745.37 | J11: 21093.13 | K11: 20397.6 | L11: 19600 | M11: 0.01445
A12: 2 | B12: 8KMILES | C12: 80.65 | D12: 78.83 | E12: 77.02 | F12: 73.38 | G12: 71.57 | H12: 82.47 | I12: 84.28 | J12: 87.92 | K12: 80.65 | L12: 75.2 | M12: 12.24007
A13: 3 | B13: AARTIIND | C13: 1394.1 | D13: 1390.68 | E13: 1374.42 | F13: 1354.73 | G13: 1338.47 | H13: 1410.37 | I13: 1426.63 | J13: 1446.32 | K13: 1406.95 | L13: 1371 | M13: 0.33405
A14: 4 | B14: ABAN | C14: 82.2 | D14: 81.85 | E14: 80.15 | F14: 78.10 | G14: 76.40 | H14: 83.90 | I14: 85.60 | J14: 87.65 | K14: 83.55 | L14: 79.8 | M14: 7.04502
A15: 5 | B15: ABB | C15: 1305.15 | D15: 1312.82 | E15: 1294.63 | F15: 1284.12 | G15: 1265.93 | H15: 1323.33 | I15: 1341.52 | J15: 1352.03 | K15: 1331 | L15: 1302.3 | M15: 0.98447
A16: 6 | B16: ABCAPITAL | C16: 107.35 | D16: 107.15 | E16: 105.45 | F16: 103.55 | G16: 101.85 | H16: 109.05 | I16: 110.75 | J16: 112.65 | K16: 108.85 | L16: 105.25 | M16: 15.36545
A17: 7 | B17: ABFRL | C17: 187.2 | D17: 187.98 | E17: 183.27 | F17: 179.33 | G17: 174.62 | H17: 191.92 | I17: 196.63 | J17: 200.57 | K17: 192.7 | L17: 184.05 | M17: 7.872
A18: 8 | B18: ACC | C18: 1447.45 | D18: 1459.52 | E18: 1429.73 | F18: 1412.02 | G18: 1382.23 | H18: 1477.23 | I18: 1507.02 | J18: 1524.73 | K18: 1489.3 | L18: 1441.8 | M18: 3.63874
A19: 9 | B19: ADANIPORTS | C19: 325.6 | D19: 328.73 | E19: 320.02 | F19: 314.43 | G19: 305.72 | H19: 334.32 | I19: 343.03 | J19: 348.62 | K19: 337.45 | L19: 323.15 | M19: 50.44028
A20: 10 | B20: ADANIPOWER | C20: 49.3 | D20: 49.63 | E20: 48.32 | F20: 47.33 | G20: 46.02 | H20: 50.62 | I20: 51.93 | J20: 52.92 | K20: 50.95 | L20: 48.65 | M20: 169.91636
A21: 11 | B21: ADANITRANS | C21: 178.6 | D21: 180.65 | E21: 174.40 | F21: 170.20 | G21: 163.95 | H21: 184.85 | I21: 191.10 | J21: 195.30 | K21: 186.9 | L21: 176.45 | M21: 2.41176
A22: 12 | B22: ADVENZYMES | C22: 188.55 | D22: 188.30 | E22: 186.35 | F22: 184.15 | G22: 182.20 | H22: 190.50 | I22: 192.45 | J22: 194.65 | K22: 190.25 | L22: 186.1 | M22: 0.34142
A23: 13 | B23: AEGISCHEM | C23: 218.85 | D23: 219.53 | E23: 214.07 | F23: 209.28 | G23: 203.82 | H23: 224.32 | I23: 229.78 | J23: 234.57 | K23: 225 | L23: 214.75 | M23: 0.67646
A24: 14 | B24: AIAENG | C24: 1724.95 | D24: 1719.23 | E24: 1706.77 | F24: 1688.58 | G24: 1676.12 | H24: 1737.42 | I24: 1749.88 | J24: 1768.07 | K24: 1731.7 | L24: 1701.05 | M24: 0.05941
A25: 15 | B25: AJANTPHARM | C25: 1060.05 | D25: 1070.02 | E25: 1044.03 | F25: 1028.02 | G25: 1002.03 | H25: 1086.03 | I25: 1112.02 | J25: 1128.03 | K25: 1096 | L25: 1054 | M25: 1.75986
A26: 16 | B26: AKZOINDIA | C26: 1566.85 | D26: 1571.30 | E26: 1551.40 | F26: 1535.95 | G26: 1516.05 | H26: 1586.75 | I26: 1606.65 | J26: 1622.10 | K26: 1591.2 | L26: 1555.85 | M26: 0.0147
A27: 17 | B27: ALBK | C27: 43.55 | D27: 43.97 | E27: 42.88 | F27: 42.22 | G27: 41.13 | H27: 44.63 | I27: 45.72 | J27: 46.38 | K27: 45.05 | L27: 43.3 | M27: 38.73972
A28: 18 | B28: ALKEM | C28: 1880.75 | D28: 1889.90 | E28: 1864.85 | F28: 1848.95 | G28: 1823.90 | H28: 1905.80 | I28: 1930.85 | J28: 1946.75 | K28: 1914.95 | L28: 1874 | M28: 1.39047
A29: 19 | B29: ALLCARGO | C29: 106.7 | D29: 105.95 | E29: 103.90 | F29: 101.10 | G29: 99.05 | H29: 108.75 | I29: 110.80 | J29: 113.60 | K29: 108 | L29: 103.15 | M29: 2.92817
A30: 20 | B30: AMARAJABAT | C30: 773.25 | D30: 773.78 | E30: 765.37 | F30: 757.48 | G30: 749.07 | H30: 781.67 | I30: 790.08 | J30: 797.97 | K30: 782.2 | L30: 765.9 | M30: 3.2559
A31: 21 | B31: AMBUJACEM | C31: 204.2 | D31: 204.80 | E31: 202.65 | F31: 201.10 | G31: 198.95 | H31: 206.35 | I31: 208.50 | J31: 210.05 | K31: 206.95 | L31: 203.25 | M31: 17.57806
A32: 22 | B32: ANDHRABANK | C32: 29.7 | D32: 30.00 | E32: 28.75 | F32: 27.80 | G32: 26.55 | H32: 30.95 | I32: 32.20 | J32: 33.15 | K32: 31.25 | L32: 29.05 | M32: 43.33522
A33: 23 | B33: APLAPOLLO | C33: 1237.35 | D33: 1225.78 | E33: 1186.57 | F33: 1135.78 | G33: 1096.57 | H33: 1276.57 | I33: 1315.78 | J33: 1366.57 | K33: 1265 | L33: 1175 | M33: 0.38189
A34: 24 | B34: APLLTD | C34: 590.45 | D34: 591.15 | E34: 587.30 | F34: 584.15 | G34: 580.30 | H34: 594.30 | I34: 598.15 | J34: 601.30 | K34: 595 | L34: 588 | M34: 0.16256
A35: 25 | B35: APOLLOHOSP | C35: 1127.35 | D35: 1139.07 | E35: 1109.43 | F35: 1091.52 | G35: 1061.88 | H35: 1156.98 | I35: 1186.62 | J35: 1204.53 | K35: 1168.7 | L35: 1121.15 | M35: 4.60744
A36: 26 | B36: APOLLOTYRE | C36: 212.75 | D36: 214.85 | E36: 209.80 | F36: 206.85 | G36: 201.80 | H36: 217.80 | I36: 222.85 | J36: 225.80 | K36: 219.9 | L36: 211.9 | M36: 22.7204
A37: 27 | B37: ARVIND | C37: 316.8 | D37: 318.93 | E37: 312.87 | F37: 308.93 | G37: 302.87 | H37: 322.87 | I37: 328.93 | J37: 332.87 | K37: 325 | L37: 315 | M37: 13.76082
A38: 28 | B38: ASAHIINDIA | C38: 285.45 | D38: 288.00 | E38: 282.45 | F38: 279.45 | G38: 273.90 | H38: 291.00 | I38: 296.55 | J38: 299.55 | K38: 293.55 | L38: 285 | M38: 0.08045
A39: 29 | B39: ASHOKA | C39: 123.1 | D39: 121.53 | E39: 118.82 | F39: 114.53 | G39: 111.82 | H39: 125.82 | I39: 128.53 | J39: 132.82 | K39: 124.25 | L39: 117.25 | M39: 1.11833
A40: 30 | B40: ASHOKLEY | C40: 120.9 | D40: 120.58 | E40: 119.02 | F40: 117.13 | G40: 115.57 | H40: 122.47 | I40: 124.03 | J40: 125.92 | K40: 122.15 | L40: 118.7 | M40: 168.6226
A41: 31 | B41: ASIANPAINT | C41: 1238.5 | D41: 1242.83 | E41: 1230.67 | F41: 1222.83 | G41: 1210.67 | H41: 1250.67 | I41: 1262.83 | J41: 1270.67 | K41: 1255 | L41: 1235 | M41: 8.15046
A42: 32 | B42: ASTRAL | C42: 967.05 | D42: 960.18 | E42: 948.02 | F42: 928.98 | G42: 916.82 | H42: 979.22 | I42: 991.38 | J42: 1010.42 | K42: 972.35 | L42: 941.15 | M42: 0.11043
A43: 33 | B43: ATUL | C43: 3363.1 | D43: 3357.95 | E43: 3330.15 | F43: 3297.20 | G43: 3269.40 | H43: 3390.90 | I43: 3418.70 | J43: 3451.65 | K43: 3385.75 | L43: 3325 | M43: 0.0675
A44: 34 | B44: AUBANK | C44: 549.25 | D44: 550.43 | E44: 544.87 | F44: 540.48 | G44: 534.92 | H44: 554.82 | I44: 560.38 | J44: 564.77 | K44: 556 | L44: 546.05 | M44: 0.63045
A45: 35 | B45: AUROPHARMA | C45: 785.9 | D45: 785.70 | E45: 777.70 | F45: 769.50 | G45: 761.50 | H45: 793.90 | I45: 801.90 | J45: 810.10 | K45: 793.7 | L45: 777.5 | M45: 16.75997
A46: 36 | B46: AVANTIFEED | C46: 438.4 | D46: 435.80 | E46: 419.60 | F46: 400.80 | G46: 384.60 | H46: 454.60 | I46: 470.80 | J46: 489.60 | K46: 452 | L46: 417 | M46: 10.74941
A47: 37 | B47: AXISBANK | C47: 607.45 | D47: 611.87 | E47: 595.63 | F47: 583.82 | G47: 567.58 | H47: 623.68 | I47: 639.92 | J47: 651.73 | K47: 628.1 | L47: 600.05 | M47: 153.54794
A48: 38 | B48: BAJAJ-AUTO | C48: 2674.6 | D48: 2677.18 | E48: 2656.37 | F48: 2638.13 | G48: 2617.32 | H48: 2695.42 | I48: 2716.23 | J48: 2734.47 | K48: 2698 | L48: 2658.95 | M48: 2.78587
A49: 39 | B49: BAJAJCORP | C49: 354.35 | D49: 354.03 | E49: 350.82 | F49: 347.28 | G49: 344.07 | H49: 357.57 | I49: 360.78 | J49: 364.32 | K49: 357.25 | L49: 350.5 | M49: 0.15868
A50: 40 | B50: BAJAJELEC | C50: 501.7 | D50: 505.70 | E50: 494.10 | F50: 486.50 | G50: 474.90 | H50: 513.30 | I50: 524.90 | J50: 532.50 | K50: 517.3 | L50: 498.1 | M50: 1.78048
A51: 41 | B51: BAJAJFINSV | C51: 5591 | D51: 5615.25 | E51: 5540.70 | F51: 5490.40 | G51: 5415.85 | H51: 5665.55 | I51: 5740.10 | J51: 5790.40 | K51: 5689.8 | L51: 5564.95 | M51: 2.0835
A52: 42 | B52: BAJAJHIND | C52: 10.9 | D52: 10.97 | E52: 10.73 | F52: 10.57 | G52: 10.33 | H52: 11.13 | I52: 11.37 | J52: 11.53 | K52: 11.2 | L52: 10.8 | M52: 22.70176
A53: 43 | B53: BAJAJHLDNG | C53: 2799.05 | D53: 2802.95 | E53: 2788.10 | F53: 2777.15 | G53: 2762.30 | H53: 2813.90 | I53: 2828.75 | J53: 2839.70 | K53: 2817.8 | L53: 2792 | M53: 0.0225
A54: 44 | B54: BAJFINANCE | C54: 2339.75 | D54: 2354.00 | E54: 2318.10 | F54: 2296.45 | G54: 2260.55 | H54: 2375.65 | I54: 2411.55 | J54: 2433.20 | K54: 2389.9 | L54: 2332.35 | M54: 13.68682
A55: 45 | B55: BALKRISIND | C55: 943.95 | D55: 974.32 | E55: 909.63 | F55: 875.32 | G55: 810.63 | H55: 1008.63 | I55: 1073.32 | J55: 1107.63 | K55: 1039 | L55: 940 | M55: 52.92843
A56: 46 | B56: BALLARPUR | C56: 6.4 | D56: 6.38 | E56: 6.27 | F56: 6.13 | G56: 6.02 | H56: 6.52 | I56: 6.63 | J56: 6.77 | K56: 6.5 | L56: 6.25 | M56: 3.21626
A57: 47 | B57: BALMLAWRIE | C57: 203.8 | D57: 201.58 | E57: 193.77 | F57: 183.73 | G57: 175.92 | H57: 211.62 | I57: 219.43 | J57: 229.47 | K57: 209.4 | L57: 191.55 | M57: 3.87522
A58: 48 | B58: BALRAMCHIN | C58: 103.9 | D58: 104.22 | E58: 102.43 | F58: 100.97 | G58: 99.18 | H58: 105.68 | I58: 107.47 | J58: 108.93 | K58: 106 | L58: 102.75 | M58: 24.5087
A59: 49 | B59: BANKBARODA | C59: 110.45 | D59: 110.98 | E59: 109.32 | F59: 108.18 | G59: 106.52 | H59: 112.12 | I59: 113.78 | J59: 114.92 | K59: 112.65 | L59: 109.85 | M59: 172.83224
A60: 50 | B60: BANKINDIA | C60: 85.9 | D60: 86.13 | E60: 84.87 | F60: 83.83 | G60: 82.57 | H60: 87.17 | I60: 88.43 | J60: 89.47 | K60: 87.4 | L60: 85.1 | M60: 51.54173
A61: 51 | B61: BASF | C61: 1585.35 | D61: 1598.37 | E61: 1554.93 | F61: 1524.52 | G61: 1481.08 | H61: 1628.78 | I61: 1672.22 | J61: 1702.63 | K61: 1641.8 | L61: 1567.95 | M61: 0.04941
A62: 52 | B62: BATAINDIA | C62: 1010.95 | D62: 1012.57 | E62: 999.13 | F62: 987.32 | G62: 973.88 | H62: 1024.38 | I62: 1037.82 | J62: 1049.63 | K62: 1026 | L62: 1000.75 | M62: 13.88239
A63: 53 | B63: BBTC | C63: 1379.35 | D63: 1384.45 | E63: 1357.90 | F63: 1336.45 | G63: 1309.90 | H63: 1405.90 | I63: 1432.45 | J63: 1453.90 | K63: 1411 | L63: 1363 | M63: 2.11375
A64: 54 | B64: BEL | C64: 95.25 | D64: 95.57 | E64: 94.38 | F64: 93.52 | G64: 92.33 | H64: 96.43 | I64: 97.62 | J64: 98.48 | K64: 96.75 | L64: 94.7 | M64: 43.1178
A65: 55 | B65: BEML | C65: 714.4 | D65: 711.15 | E65: 700.05 | F65: 685.70 | G65: 674.60 | H65: 725.50 | I65: 736.60 | J65: 750.95 | K65: 722.25 | L65: 696.8 | M65: 18.32217
A66: 56 | B66: BERGEPAINT | C66: 297.65 | D66: 299.48 | E66: 294.72 | F66: 291.78 | G66: 287.02 | H66: 302.42 | I66: 307.18 | J66: 310.12 | K66: 304.25 | L66: 296.55 | M66: 5.04292
A67: 57 | B67: BFUTILITIE | C67: 217.7 | D67: 218.48 | E67: 215.27 | F67: 212.83 | G67: 209.62 | H67: 220.92 | I67: 224.13 | J67: 226.57 | K67: 221.7 | L67: 216.05 | M67: 2.11549
A68: 58 | B68: BGRENERGY | C68: 57.8 | D68: 57.95 | E68: 56.90 | F68: 56.00 | G68: 54.95 | H68: 58.85 | I68: 59.90 | J68: 60.80 | K68: 59 | L68: 57.05 | M68: 0.70228
A69: 59 | B69: BHARATFIN | C69: 904.35 | D69: 908.63 | E69: 887.27 | F69: 870.18 | G69: 848.82 | H69: 925.72 | I69: 947.08 | J69: 964.17 | K69: 930 | L69: 891.55 | M69: 10.39097
A70: 60 | B70: BHARATFORG | C70: 586.25 | D70: 591.90 | E70: 577.55 | F70: 568.85 | G70: 554.50 | H70: 600.60 | I70: 614.95 | J70: 623.65 | K70: 606.25 | L70: 583.2 | M70: 7.60322
A71: 61 | B71: BHARTIARTL | C71: 305.05 | D71: 305.30 | E71: 302.65 | F71: 300.25 | G71: 297.60 | H71: 307.70 | I71: 310.35 | J71: 312.75 | K71: 307.95 | L71: 302.9 | M71: 26.53071
A72: 62 | B72: BHEL | C72: 69.3 | D72: 69.80 | E72: 68.50 | F72: 67.70 | G72: 66.40 | H72: 70.60 | I72: 71.90 | J72: 72.70 | K72: 71.1 | L72: 69 | M72: 93.97104
A73: 63 | B73: BHUSANSTL | C73: 27.9 | D73: 28.02 | E73: 27.58 | F73: 27.27 | G73: 26.83 | H73: 28.33 | I73: 28.77 | J73: 29.08 | K73: 28.45 | L73: 27.7 | M73: 3.87117
A74: 64 | B74: BIOCON | C74: 629.35 | D74: 630.43 | E74: 622.92 | F74: 616.48 | G74: 608.97 | H74: 636.87 | I74: 644.38 | J74: 650.82 | K74: 637.95 | L74: 624 | M74: 15.95662
A75: 65 | B75: BIRLACORPN | C75: 605.8 | D75: 608.07 | E75: 599.73 | F75: 593.67 | G75: 585.33 | H75: 614.13 | I75: 622.47 | J75: 628.53 | K75: 616.4 | L75: 602 | M75: 0.15928
A76: 66 | B76: BLISSGVS | C76: 171.75 | D76: 172.90 | E76: 169.00 | F76: 166.25 | G76: 162.35 | H76: 175.65 | I76: 179.55 | J76: 182.30 | K76: 176.8 | L76: 170.15 | M76: 1.77966
A77: 67 | B77: BLUEDART | C77: 2799.15 | D77: 2812.62 | E77: 2740.23 | F77: 2681.32 | G77: 2608.93 | H77: 2871.53 | I77: 2943.92 | J77: 3002.83 | K77: 2885 | L77: 2753.7 | M77: 0.12755
A78: 68 | B78: BLUESTARCO | C78: 575.5 | D78: 573.12 | E78: 568.73 | F78: 561.97 | G78: 557.58 | H78: 579.88 | I78: 584.27 | J78: 591.03 | K78: 577.5 | L78: 566.35 | M78: 0.10458
A79: 69 | B79: BOMDYEING | C79: 109.95 | D79: 112.30 | E79: 107.60 | F79: 105.25 | G79: 100.55 | H79: 114.65 | I79: 119.35 | J79: 121.70 | K79: 117 | L79: 109.95 | M79: 19.94623
A80: 70 | B80: BOSCHLTD | C80: 19376.75 | D80: 19425.00 | E80: 19228.80 | F80: 19080.85 | G80: 18884.65 | H80: 19572.95 | I80: 19769.15 | J80: 19917.10 | K80: 19621.2 | L80: 19277.05 | M80: 0.11241
A81: 71 | B81: BPCL | C81: 285.1 | D81: 287.83 | E81: 281.27 | F81: 277.43 | G81: 270.87 | H81: 291.67 | I81: 298.23 | J81: 302.07 | K81: 294.4 | L81: 284 | M81: 32.5828
A82: 72 | B82: BRFL | C82: 15.3 | D82: 14.98 | E82: 14.62 | F82: 13.93 | G82: 13.57 | H82: 15.67 | I82: 16.03 | J82: 16.72 | K82: 15.35 | L82: 14.3 | M82: 0.65917
A83: 73 | B83: BRIGADE | C83: 176.1 | D83: 176.43 | E83: 170.92 | F83: 165.73 | G83: 160.22 | H83: 181.62 | I83: 187.13 | J83: 192.32 | K83: 181.95 | L83: 171.25 | M83: 0.12432
A84: 74 | B84: BRITANNIA | C84: 5721.25 | D84: 5723.82 | E84: 5648.63 | F84: 5576.02 | G84: 5500.83 | H84: 5796.43 | I84: 5871.62 | J84: 5944.23 | K84: 5799 | L84: 5651.2 | M84: 1.15086
A85: 75 | B85: BSE | C85: 607.2 | D85: 609.53 | E85: 602.82 | F85: 598.43 | G85: 591.72 | H85: 613.92 | I85: 620.63 | J85: 625.02 | K85: 616.25 | L85: 605.15 | M85: 0.49309
A86: 77 | B86: CADILAHC | C86: 350.25 | D86: 353.90 | E86: 343.45 | F86: 336.65 | G86: 326.20 | H86: 360.70 | I86: 371.15 | J86: 377.95 | K86: 364.35 | L86: 347.1 | M86: 11.07634
A87: 78 | B87: CANBK | C87: 242.05 | D87: 243.60 | E87: 238.70 | F87: 235.35 | G87: 230.45 | H87: 246.95 | I87: 251.85 | J87: 255.20 | K87: 248.5 | L87: 240.25 | M87: 42.98701
A88: 79 | B88: CANFINHOME | C88: 277 | D88: 280.17 | E88: 271.58 | F88: 266.17 | G88: 257.58 | H88: 285.58 | I88: 294.17 | J88: 299.58 | K88: 288.75 | L88: 274.75 | M88: 15.21755
A89: 80 | B89: CAPF | C89: 476.5 | D89: 477.23 | E89: 472.57 | F89: 468.63 | G89: 463.97 | H89: 481.17 | I89: 485.83 | J89: 489.77 | K89: 481.9 | L89: 473.3 | M89: 4.36085
A90: 81 | B90: CAPLIPOINT | C90: 413.25 | D90: 414.08 | E90: 409.17 | F90: 405.08 | G90: 400.17 | H90: 418.17 | I90: 423.08 | J90: 427.17 | K90: 419 | L90: 410 | M90: 0.18502
A91: 82 | B91: CARBORUNIV | C91: 358.2 | D91: 359.43 | E91: 355.87 | F91: 353.53 | G91: 349.97 | H91: 361.77 | I91: 365.33 | J91: 367.67 | K91: 363 | L91: 357.1 | M91: 0.12129
A92: 83 | B92: CARERATING | C92: 1063.05 | D92: 1064.37 | E92: 1058.73 | F92: 1054.42 | G92: 1048.78 | H92: 1068.68 | I92: 1074.32 | J92: 1078.63 | K92: 1070 | L92: 1060.05 | M92: 0.13007
A93: 84 | B93: CASTROLIND | C93: 145.25 | D93: 145.60 | E93: 143.25 | F93: 141.25 | G93: 138.90 | H93: 147.60 | I93: 149.95 | J93: 151.95 | K93: 147.95 | L93: 143.6 | M93: 4.54549
A94: 85 | B94: CCL | C94: 270.7 | D94: 269.50 | E94: 265.55 | F94: 260.40 | G94: 256.45 | H94: 274.65 | I94: 278.60 | J94: 283.75 | K94: 273.45 | L94: 264.35 | M94: 0.5949
A95: 86 | B95: CDSL | C95: 248.1 | D95: 249.67 | E95: 244.43 | F95: 240.77 | G95: 235.53 | H95: 253.33 | I95: 258.57 | J95: 262.23 | K95: 254.9 | L95: 246 | M95: 1.14657
A96: 87 | B96: CEATLTD | C96: 1155.75 | D96: 1161.65 | E96: 1140.60 | F96: 1125.45 | G96: 1104.40 | H96: 1176.80 | I96: 1197.85 | J96: 1213.00 | K96: 1182.7 | L96: 1146.5 | M96: 4.30174
A97: 88 | B97: CENTRALBK | C97: 31.85 | D97: 31.90 | E97: 31.45 | F97: 31.05 | G97: 30.60 | H97: 32.30 | I97: 32.75 | J97: 33.15 | K97: 32.35 | L97: 31.5 | M97: 5.80828
A98: 89 | B98: CENTURYPLY | C98: 171.45 | D98: 172.50 | E98: 168.95 | F98: 166.45 | G98: 162.90 | H98: 175.00 | I98: 178.55 | J98: 181.05 | K98: 176.05 | L98: 170 | M98: 1.51571
A99: 90 | B99: CENTURYTEX | C99: 862.65 | D99: 868.22 | E99: 852.43 | F99: 842.22 | G99: 826.43 | H99: 878.43 | I99: 894.22 | J99: 904.43 | K99: 884 | L99: 858 | M99: 4.45939
A100: 91 | B100: CERA | C100: 2401.2 | D100: 2418.42 | E100: 2379.83 | F100: 2358.47 | G100: 2319.88 | H100: 2439.78 | I100: 2478.37 | J100: 2499.73 | K100: 2457 | L100: 2397.05 | M100: 0.07222
A101: 92 | B101: CGPOWER | C101: 35.8 | D101: 36.03 | E101: 35.32 | F101: 34.83 | G101: 34.12 | H101: 36.52 | I101: 37.23 | J101: 37.72 | K101: 36.75 | L101: 35.55 | M101: 28.11813
A102: 93 | B102: CHAMBLFERT | C102: 141.65 | D102: 141.80 | E102: 139.90 | F102: 138.15 | G102: 136.25 | H102: 143.55 | I102: 145.45 | J102: 147.20 | K102: 143.7 | L102: 140.05 | M102: 1.19377
A103: 94 | B103: CHENNPETRO | C103: 269.15 | D103: 270.40 | E103: 265.50 | F103: 261.85 | G103: 256.95 | H103: 274.05 | I103: 278.95 | J103: 282.60 | K103: 275.3 | L103: 266.75 | M103: 3.8358
A104: 95 | B104: CHOLAFIN | C104: 1290.35 | D104: 1305.40 | E104: 1270.80 | F104: 1251.25 | G104: 1216.65 | H104: 1324.95 | I104: 1359.55 | J104: 1379.10 | K104: 1340 | L104: 1285.85 | M104: 1.17149
A105: 96 | B105: CIPLA | C105: 530.8 | D105: 537.72 | E105: 520.43 | F105: 510.07 | G105: 492.78 | H105: 548.08 | I105: 565.37 | J105: 575.73 | K105: 555 | L105: 527.35 | M105: 169.41828
A106: 97 | B106: COALINDIA | C106: 265.9 | D106: 265.58 | E106: 264.52 | F106: 263.13 | G106: 262.07 | H106: 266.97 | I106: 268.03 | J106: 269.42 | K106: 266.65 | L106: 264.2 | M106: 30.82375
A107: 98 | B107: COCHINSHIP | C107: 385.8 | D107: 386.88 | E107: 383.82 | F107: 381.83 | G107: 378.77 | H107: 388.87 | I107: 391.93 | J107: 393.92 | K107: 389.95 | L107: 384.9 | M107: 0.48092
A108: 99 | B108: COFFEEDAY | C108: 279.6 | D108: 281.37 | E108: 275.28 | F108: 270.97 | G108: 264.88 | H108: 285.68 | I108: 291.77 | J108: 296.08 | K108: 287.45 | L108: 277.05 | M108: 4.32077
A109: 100 | B109: COLPAL | C109: 1099.55 | D109: 1104.32 | E109: 1091.63 | F109: 1083.72 | G109: 1071.03 | H109: 1112.23 | I109: 1124.92 | J109: 1132.83 | K109: 1117 | L109: 1096.4 | M109: 1.64065
A110: 101 | B110: CONCOR | C110: 671.55 | D110: 672.18 | E110: 654.37 | F110: 637.18 | G110: 619.37 | H110: 689.37 | I110: 707.18 | J110: 724.37 | K110: 690 | L110: 655 | M110: 13.4666
A111: 102 | B111: COROMANDEL | C111: 417.6 | D111: 422.98 | E111: 409.62 | F111: 401.63 | G111: 388.27 | H111: 430.97 | I111: 444.33 | J111: 452.32 | K111: 436.35 | L111: 415 | M111: 0.45607
A112: 103 | B112: COX&KINGS | C112: 190.45 | D112: 192.25 | E112: 186.60 | F112: 182.75 | G112: 177.10 | H112: 196.10 | I112: 201.75 | J112: 205.60 | K112: 197.9 | L112: 188.4 | M112: 0.16678
A113: 104 | B113: CRISIL | C113: 1493.4 | D113: 1498.93 | E113: 1477.92 | F113: 1462.43 | G113: 1441.42 | H113: 1514.42 | I113: 1535.43 | J113: 1550.92 | K113: 1519.95 | L113: 1483.45 | M113: 0.0904
A114: 105 | B114: CROMPTON | C114: 211.9 | D114: 213.28 | E114: 209.62 | F114: 207.33 | G114: 203.67 | H114: 215.57 | I114: 219.23 | J114: 221.52 | K114: 216.95 | L114: 211 | M114: 7.82504
A115: 106 | B115: CUB | C115: 166.25 | D115: 166.27 | E115: 164.53 | F115: 162.82 | G115: 161.08 | H115: 167.98 | I115: 169.72 | J115: 171.43 | K115: 168 | L115: 164.55 | M115: 2.75936
A116: 107 | B116: CUMMINSIND | C116: 776.65 | D116: 774.15 | E116: 759.55 | F116: 742.45 | G116: 727.85 | H116: 791.25 | I116: 805.85 | J116: 822.95 | K116: 788.75 | L116: 757.05 | M116: 7.00286
A117: 108 | B117: CYIENT | C117: 619.7 | D117: 618.57 | E117: 615.63 | F117: 611.57 | G117: 608.63 | H117: 622.63 | I117: 625.57 | J117: 629.63 | K117: 621.5 | L117: 614.5 | M117: 2.54567
A118: 109 | B118: DABUR | C118: 365.95 | D118: 366.17 | E118: 363.78 | F118: 361.62 | G118: 359.23 | H118: 368.33 | I118: 370.72 | J118: 372.88 | K118: 368.55 | L118: 364 | M118: 36.81999
A119: 110 | B119: DBCORP | C119: 167.1 | D119: 167.02 | E119: 164.53 | F119: 161.97 | G119: 159.48 | H119: 169.58 | I119: 172.07 | J119: 174.63 | K119: 169.5 | L119: 164.45 | M119: 0.16096
A120: 111 | B120: DBL | C120: 409.15 | D120: 412.70 | E120: 402.45 | F120: 395.75 | G120: 385.50 | H120: 419.40 | I120: 429.65 | J120: 436.35 | K120: 422.95 | L120: 406 | M120: 1.8903
A121: 112 | B121: DBREALTY | C121: 22.9 | D121: 23.27 | E121: 22.03 | F121: 21.17 | G121: 19.93 | H121: 24.13 | I121: 25.37 | J121: 26.23 | K121: 24.5 | L121: 22.4 | M121: 4.54237
A122: 113 | B122: DCAL | C122: 228.2 | D122: 229.13 | E122: 226.07 | F122: 223.93 | G122: 220.87 | H122: 231.27 | I122: 234.33 | J122: 236.47 | K122: 232.2 | L122: 227 | M122: 0.67565
A123: 114 | B123: DCBBANK | C123: 166.3 | D123: 164.48 | E123: 161.47 | F123: 156.63 | G123: 153.62 | H123: 169.32 | I123: 172.33 | J123: 177.17 | K123: 167.5 | L123: 159.65 | M123: 17.09367
A124: 115 | B124: DCMSHRIRAM | C124: 400.6 | D124: 397.85 | E124: 392.25 | F124: 383.90 | G124: 378.30 | H124: 406.20 | I124: 411.80 | J124: 420.15 | K124: 403.45 | L124: 389.5 | M124: 0.43833
A125: 116 | B125: DEEPAKFERT | C125: 214.3 | D125: 213.25 | E125: 211.05 | F125: 207.80 | G125: 205.60 | H125: 216.50 | I125: 218.70 | J125: 221.95 | K125: 215.45 | L125: 210 | M125: 1.3256
A126: 117 | B126: DELTACORP | C126: 245 | D126: 244.93 | E126: 241.07 | F126: 237.13 | G126: 233.27 | H126: 248.87 | I126: 252.73 | J126: 256.67 | K126: 248.8 | L126: 241 | M126: 8.24772
A127: 118 | B127: DEN | C127: 68.85 | D127: 68.70 | E127: 68.35 | F127: 67.85 | G127: 67.50 | H127: 69.20 | I127: 69.55 | J127: 70.05 | K127: 69.05 | L127: 68.2 | M127: 0.92185
A128: 119 | B128: DENABANK | C128: 17.15 | D128: 17.47 | E128: 16.03 | F128: 14.92 | G128: 13.48 | H128: 18.58 | I128: 20.02 | J128: 21.13 | K128: 18.9 | L128: 16.35 | M128: 41.70086
A129: 120 | B129: DHFL | C129: 228 | D129: 228.68 | E129: 222.87 | F129: 217.73 | G129: 211.92 | H129: 233.82 | I129: 239.63 | J129: 244.77 | K129: 234.5 | L129: 223.55 | M129: 149.39699
A130: 121 | B130: DISHTV | C130: 42.3 | D130: 42.23 | E130: 41.77 | F130: 41.23 | G130: 40.77 | H130: 42.77 | I130: 43.23 | J130: 43.77 | K130: 42.7 | L130: 41.7 | M130: 36.00051
A131: 122 | B131: DIVISLAB | C131: 1477.8 | D131: 1468.52 | E131: 1453.03 | F131: 1428.27 | G131: 1412.78 | H131: 1493.28 | I131: 1508.77 | J131: 1533.53 | K131: 1484 | L131: 1443.75 | M131: 8.73983
A132: 123 | B132: DIXON | C132: 2124.45 | D132: 2135.63 | E132: 2108.97 | F132: 2093.48 | G132: 2066.82 | H132: 2151.12 | I132: 2177.78 | J132: 2193.27 | K132: 2162.3 | L132: 2120.15 | M132: 0.12575
A133: 124 | B133: DLF | C133: 172.5 | D133: 172.70 | E133: 170.90 | F133: 169.30 | G133: 167.50 | H133: 174.30 | I133: 176.10 | J133: 177.70 | K133: 174.5 | L133: 171.1 | M133: 32.41788
A134: 125 | B134: DMART | C134: 1424 | D134: 1430.58 | E134: 1396.82 | F134: 1369.63 | G134: 1335.87 | H134: 1457.77 | I134: 1491.53 | J134: 1518.72 | K134: 1464.35 | L134: 1403.4 | M134: 6.00576
A135: 126 | B135: DREDGECORP | C135: 330.8 | D135: 331.90 | E135: 325.90 | F135: 321.00 | G135: 315.00 | H135: 336.80 | I135: 342.80 | J135: 347.70 | K135: 337.9 | L135: 327 | M135: 1.39846
A136: 127 | B136: DRREDDY | C136: 2450.85 | D136: 2440.95 | E136: 2421.90 | F136: 2392.95 | G136: 2373.90 | H136: 2469.90 | I136: 2488.95 | J136: 2517.90 | K136: 2460 | L136: 2412 | M136: 3.7883
A137: 128 | B137: ECLERX | C137: 1057.85 | D137: 1062.43 | E137: 1045.12 | F137: 1032.38 | G137: 1015.07 | H137: 1075.17 | I137: 1092.48 | J137: 1105.22 | K137: 1079.75 | L137: 1049.7 | M137: 0.01614
A138: 129 | B138: EDELWEISS | C138: 164.4 | D138: 165.58 | E138: 159.47 | F138: 154.53 | G138: 148.42 | H138: 170.52 | I138: 176.63 | J138: 181.57 | K138: 171.7 | L138: 160.65 | M138: 13.41231
A139: 130 | B139: EICHERMOT | C139: 22559.65 | D139: 22585.65 | E139: 22344.00 | F139: 22128.35 | G139: 21886.70 | H139: 22801.30 | I139: 23042.95 | J139: 23258.60 | K139: 22827.3 | L139: 22370 | M139: 0.50764
A140: 131 | B140: EIDPARRY | C140: 218.75 | D140: 219.78 | E140: 217.07 | F140: 215.38 | G140: 212.67 | H140: 221.47 | I140: 224.18 | J140: 225.87 | K140: 222.5 | L140: 218.1 | M140: 0.4697
A141: 132 | B141: EIHOTEL | C141: 171.5 | D141: 170.27 | E141: 167.53 | F141: 163.57 | G141: 160.83 | H141: 174.23 | I141: 176.97 | J141: 180.93 | K141: 173 | L141: 166.3 | M141: 0.64124
A142: 133 | B142: EMAMILTD | C142: 417.15 | D142: 419.05 | E142: 413.10 | F142: 409.05 | G142: 403.10 | H142: 423.10 | I142: 429.05 | J142: 433.10 | K142: 425 | L142: 415 | M142: 0.84007
A143: 134 | B143: ENDURANCE | C143: 1261.95 | D143: 1250.28 | E143: 1225.57 | F143: 1189.18 | G143: 1164.47 | H143: 1286.67 | I143: 1311.38 | J143: 1347.77 | K143: 1275 | L143: 1213.9 | M143: 0.153
A144: 135 | B144: ENGINERSIN | C144: 117.1 | D144: 118.25 | E144: 115.60 | F144: 114.10 | G144: 111.45 | H144: 119.75 | I144: 122.40 | J144: 123.90 | K144: 120.9 | L144: 116.75 | M144: 13.98076
A145: 136 | B145: EQUITAS | C145: 104.45 | D145: 105.87 | E145: 101.13 | F145: 97.82 | G145: 93.08 | H145: 109.18 | I145: 113.92 | J145: 117.23 | K145: 110.6 | L145: 102.55 | M145: 65.5965
A146: 137 | B146: ERIS | C146: 637.8 | D146: 641.30 | E146: 628.30 | F146: 618.80 | G146: 605.80 | H146: 650.80 | I146: 663.80 | J146: 673.30 | K146: 654.3 | L146: 631.8 | M146: 0.3738
A147: 138 | B147: EROSMEDIA | C147: 105.5 | D147: 103.65 | E147: 100.30 | F147: 95.10 | G147: 91.75 | H147: 108.85 | I147: 112.20 | J147: 117.40 | K147: 107 | L147: 98.45 | M147: 14.19614
A148: 139 | B148: ESCORTS | C148: 673.4 | D148: 678.98 | E148: 663.27 | F148: 653.13 | G148: 637.42 | H148: 689.12 | I148: 704.83 | J148: 714.97 | K148: 694.7 | L148: 668.85 | M148: 18.03631
A149: 140 | B149: EVEREADY | C149: 192.25 | D149: 188.25 | E149: 179.00 | F149: 165.75 | G149: 156.50 | H149: 201.50 | I149: 210.75 | J149: 224.00 | K149: 197.5 | L149: 175 | M149: 4.37074
A150: 141 | B150: EXIDEIND | C150: 253.1 | D150: 253.47 | E150: 249.63 | F150: 246.17 | G150: 242.33 | H150: 256.93 | I150: 260.77 | J150: 264.23 | K150: 257.3 | L150: 250 | M150: 25.77634
A151: 142 | B151: FCONSUMER | C151: 45.2 | D151: 45.07 | E151: 44.43 | F151: 43.67 | G151: 43.03 | H151: 45.83 | I151: 46.47 | J151: 47.23 | K151: 45.7 | L151: 44.3 | M151: 12.63462
A152: 143 | B152: FEDERALBNK | C152: 80.1 | D152: 80.73 | E152: 79.12 | F152: 78.13 | G152: 76.52 | H152: 81.72 | I152: 83.33 | J152: 84.32 | K152: 82.35 | L152: 79.75 | M152: 83.91875
A153: 144 | B153: FINCABLES | C153: 504.3 | D153: 504.43 | E153: 499.97 | F153: 495.63 | G153: 491.17 | H153: 508.77 | I153: 513.23 | J153: 517.57 | K153: 508.9 | L153: 500.1 | M153: 0.15176
A154: 145 | B154: FINPIPE | C154: 514.65 | D154: 519.90 | E154: 506.75 | F154: 498.85 | G154: 485.70 | H154: 527.80 | I154: 540.95 | J154: 548.85 | K154: 533.05 | L154: 512 | M154: 0.13192
A155: 146 | B155: FLFL | C155: 370.6 | D155: 368.00 | E155: 364.00 | F155: 357.40 | G155: 353.40 | H155: 374.60 | I155: 378.60 | J155: 385.20 | K155: 372 | L155: 361.4 | M155: 0.16349
A156: 147 | B156: FSL | C156: 57.05 | D156: 57.50 | E156: 56.35 | F156: 55.65 | G156: 54.50 | H156: 58.20 | I156: 59.35 | J156: 60.05 | K156: 58.65 | L156: 56.8 | M156: 14.87408
A157: 148 | B157: GAIL | C157: 375.15 | D157: 375.97 | E157: 369.93 | F157: 364.72 | G157: 358.68 | H157: 381.18 | I157: 387.22 | J157: 392.43 | K157: 382 | L157: 370.75 | M157: 74.0341
A158: 149 | B158: GATI | C158: 81.9 | D158: 82.33 | E158: 79.77 | F158: 77.63 | G158: 75.07 | H158: 84.47 | I158: 87.03 | J158: 89.17 | K158: 84.9 | L158: 80.2 | M158: 9.21937
A159: 150 | B159: GDL | C159: 134 | D159: 134.52 | E159: 132.53 | F159: 131.07 | G159: 129.08 | H159: 135.98 | I159: 137.97 | J159: 139.43 | K159: 136.5 | L159: 133.05 | M159: 0.62952
A160: 151 | B160: GEPIL | C160: 848.55 | D160: 847.47 | E160: 825.13 | F160: 801.72 | G160: 779.38 | H160: 870.88 | I160: 893.22 | J160: 916.63 | K160: 869.8 | L160: 824.05 | M160: 0.15751
A161: 152 | B161: GESHIP | C161: 299.25 | D161: 300.52 | E161: 292.78 | F161: 286.32 | G161: 278.58 | H161: 306.98 | I161: 314.72 | J161: 321.18 | K161: 308.25 | L161: 294.05 | M161: 0.23365
A162: 153 | B162: GET&D | C162: 228.3 | D162: 231.50 | E162: 224.15 | F162: 220.00 | G162: 212.65 | H162: 235.65 | I162: 243.00 | J162: 247.15 | K162: 238.85 | L162: 227.35 | M162: 0.52275
A163: 154 | B163: GHCL | C163: 215.3 | D163: 216.47 | E163: 211.83 | F163: 208.37 | G163: 203.73 | H163: 219.93 | I163: 224.57 | J163: 228.03 | K163: 221.1 | L163: 213 | M163: 1.29594
A164: 155 | B164: GICRE | C164: 323.8 | D164: 324.15 | E164: 321.30 | F164: 318.80 | G164: 315.95 | H164: 326.65 | I164: 329.50 | J164: 332.00 | K164: 327 | L164: 321.65 | M164: 0.15441
A165: 156 | B165: GILLETTE | C165: 6429.95 | D165: 6421.97 | E165: 6363.98 | F165: 6298.02 | G165: 6240.03 | H165: 6487.93 | I165: 6545.92 | J165: 6611.88 | K165: 6479.95 | L165: 6356 | M165: 0.05434
A166: 157 | B166: GLAXO | C166: 1357.05 | D166: 1361.70 | E166: 1342.35 | F166: 1327.65 | G166: 1308.30 | H166: 1376.40 | I166: 1395.75 | J166: 1410.45 | K166: 1381.05 | L166: 1347 | M166: 0.10348
A167: 158 | B167: GLENMARK | C167: 657.5 | D167: 648.67 | E167: 635.83 | F167: 614.17 | G167: 601.33 | H167: 670.33 | I167: 683.17 | J167: 704.83 | K167: 661.5 | L167: 627 | M167: 23.61968
A168: 159 | B168: GMDCLTD | C168: 86.05 | D168: 86.63 | E168: 84.67 | F168: 83.28 | G168: 81.32 | H168: 88.02 | I168: 89.98 | J168: 91.37 | K168: 88.6 | L168: 85.25 | M168: 2.36943
A169: 160 | B169: GMRINFRA | C169: 16.4 | D169: 16.60 | E169: 16.10 | F169: 15.80 | G169: 15.30 | H169: 16.90 | I169: 17.40 | J169: 17.70 | K169: 17.1 | L169: 16.3 | M169: 245.94507
A170: 161 | B170: GNFC | C170: 375.65 | D170: 378.48 | E170: 370.27 | F170: 364.88 | G170: 356.67 | H170: 383.87 | I170: 392.08 | J170: 397.47 | K170: 386.7 | L170: 373.1 | M170: 3.17639
A171: 162 | B171: GODFRYPHLP | C171: 777.9 | D171: 781.63 | E171: 766.27 | F171: 754.63 | G171: 739.27 | H171: 793.27 | I171: 808.63 | J171: 820.27 | K171: 797 | L171: 770 | M171: 0.90448
A172: 163 | B172: GODREJAGRO | C172: 524 | D172: 528.73 | E172: 517.57 | F172: 511.13 | G172: 499.97 | H172: 535.17 | I172: 546.33 | J172: 552.77 | K172: 539.9 | L172: 522.3 | M172: 0.80473
A173: 164 | B173: GODREJCP | C173: 699.15 | D173: 699.40 | E173: 684.90 | F173: 670.65 | G173: 656.15 | H173: 713.65 | I173: 728.15 | J173: 742.40 | K173: 713.9 | L173: 685.15 | M173: 13.12473
A174: 165 | B174: GODREJIND | C174: 470.7 | D174: 473.87 | E174: 463.78 | F174: 456.87 | G174: 446.78 | H174: 480.78 | I174: 490.87 | J174: 497.78 | K174: 483.95 | L174: 466.95 | M174: 1.49314
A175: 166 | B175: GODREJPROP | C175: 613.8 | D175: 616.82 | E175: 605.78 | F175: 597.77 | G175: 586.73 | H175: 624.83 | I175: 635.87 | J175: 643.88 | K175: 627.85 | L175: 608.8 | M175: 0.5235
A176: 167 | B176: GPPL | C176: 99.6 | D176: 99.78 | E176: 98.82 | F176: 98.03 | G176: 97.07 | H176: 100.57 | I176: 101.53 | J176: 102.32 | K176: 100.75 | L176: 99 | M176: 0.81085
A177: 168 | B177: GRANULES | C177: 103.65 | D177: 104.13 | E177: 102.07 | F177: 100.48 | G177: 98.42 | H177: 105.72 | I177: 107.78 | J177: 109.37 | K177: 106.2 | L177: 102.55 | M177: 25.48594
A178: 169 | B178: GRAPHITE | C178: 981.1 | D178: 977.53 | E178: 955.17 | F178: 929.23 | G178: 906.87 | H178: 1003.47 | I178: 1025.83 | J178: 1051.77 | K178: 999.9 | L178: 951.6 | M178: 17.22192
A179: 170 | B179: GRASIM | C179: 851 | D179: 851.80 | E179: 841.60 | F179: 832.20 | G179: 822.00 | H179: 861.20 | I179: 871.40 | J179: 880.80 | K179: 862 | L179: 842.4 | M179: 5.07408
A180: 171 | B180: GREAVESCOT | C180: 120.6 | D180: 120.53 | E180: 119.57 | F180: 118.53 | G180: 117.57 | H180: 121.57 | I180: 122.53 | J180: 123.57 | K180: 121.5 | L180: 119.5 | M180: 1.66029
A181: 172 | B181: GREENPLY | C181: 140.1 | D181: 141.07 | E181: 137.63 | F181: 135.17 | G181: 131.73 | H181: 143.53 | I181: 146.97 | J181: 149.43 | K181: 144.5 | L181: 138.6 | M181: 1.54925
A182: 173 | B182: GRUH | C182: 296.5 | D182: 296.32 | E182: 293.58 | F182: 290.67 | G182: 287.93 | H182: 299.23 | I182: 301.97 | J182: 304.88 | K182: 299.05 | L182: 293.4 | M182: 1.70861
A183: 174 | B183: GSFC | C183: 113.85 | D183: 114.55 | E183: 112.60 | F183: 111.35 | G183: 109.40 | H183: 115.80 | I183: 117.75 | J183: 119.00 | K183: 116.5 | L183: 113.3 | M183: 16.66631
A184: 175 | B184: GSKCONS | C184: 7086.45 | D184: 7099.48 | E184: 7048.97 | F184: 7011.48 | G184: 6960.97 | H184: 7136.97 | I184: 7187.48 | J184: 7224.97 | K184: 7150 | L184: 7062 | M184: 0.04179
A185: 176 | B185: GSPL | C185: 184.3 | D185: 183.90 | E185: 182.50 | F185: 180.70 | G185: 179.30 | H185: 185.70 | I185: 187.10 | J185: 188.90 | K185: 185.3 | L185: 182.1 | M185: 2.89593
A186: 177 | B186: GUJALKALI | C186: 587.35 | D186: 590.45 | E186: 581.90 | F186: 576.45 | G186: 567.90 | H186: 595.90 | I186: 604.45 | J186: 609.90 | K186: 599 | L186: 585 | M186: 0.61873
A187: 178 | B187: GUJFLUORO | C187: 874.25 | D187: 878.47 | E187: 866.98 | F187: 859.72 | G187: 848.23 | H187: 885.73 | I187: 897.22 | J187: 904.48 | K187: 889.95 | L187: 871.2 | M187: 0.30457
A188: 179 | B188: GUJGASLTD | C188: 637.55 | D188: 635.47 | E188: 631.93 | F188: 626.32 | G188: 622.78 | H188: 641.08 | I188: 644.62 | J188: 650.23 | K188: 639 | L188: 629.85 | M188: 0.13247
A189: 180 | B189: GULFOILLUB | C189: 779.45 | D189: 765.48 | E189: 742.97 | F189: 706.48 | G189: 683.97 | H189: 801.97 | I189: 824.48 | J189: 860.97 | K189: 788 | L189: 729 | M189: 0.09099
A190: 181 | B190: GVKPIL | C190: 7.75 | D190: 7.78 | E190: 7.57 | F190: 7.38 | G190: 7.17 | H190: 7.97 | I190: 8.18 | J190: 8.37 | K190: 8 | L190: 7.6 | M190: 13.54261
A191: 182 | B191: HATHWAY | C191: 30.05 | D191: 30.08 | E191: 30.02 | F191: 29.98 | G191: 29.92 | H191: 30.12 | I191: 30.18 | J191: 30.22 | K191: 30.15 | L191: 30.05 | M191: 6.6772
A192: 183 | B192: HATSUN | C192: 628.5 | D192: 633.90 | E192: 620.00 | F192: 611.50 | G192: 597.60 | H192: 642.40 | I192: 656.30 | J192: 664.80 | K192: 647.8 | L192: 625.4 | M192: 0.0321
A193: 184 | B193: HAVELLS | C193: 647.45 | D193: 648.15 | E193: 639.30 | F193: 631.15 | G193: 622.30 | H193: 656.30 | I193: 665.15 | J193: 673.30 | K193: 657 | L193: 640 | M193: 7.87114
A194: 185 | B194: HCC | C194: 13.6 | D194: 13.70 | E194: 13.40 | F194: 13.20 | G194: 12.90 | H194: 13.90 | I194: 14.20 | J194: 14.40 | K194: 14 | L194: 13.5 | M194: 41.7738
A195: 186 | B195: HCL-INSYS | C195: 28.25 | D195: 27.73 | E195: 26.77 | F195: 25.28 | G195: 24.32 | H195: 29.22 | I195: 30.18 | J195: 31.67 | K195: 28.7 | L195: 26.25 | M195: 23.29046
A196: 187 | B196: HCLTECH | C196: 1028.9 | D196: 1028.17 | E196: 1014.33 | F196: 999.77 | G196: 985.93 | H196: 1042.73 | I196: 1056.57 | J196: 1071.13 | K196: 1042 | L196: 1013.6 | M196: 14.60942
A197: 188 | B197: HDFC | C197: 1805.9 | D197: 1801.00 | E197: 1788.00 | F197: 1770.10 | G197: 1757.10 | H197: 1818.90 | I197: 1831.90 | J197: 1849.80 | K197: 1814 | L197: 1783.1 | M197: 20.33692
A198: 189 | B198: HDFCBANK | C198: 1946.55 | D198: 1955.17 | E198: 1934.33 | F198: 1922.12 | G198: 1901.28 | H198: 1967.38 | I198: 1988.22 | J198: 2000.43 | K198: 1976 | L198: 1942.95 | M198: 21.21397
A199: 190 | B199: HDIL | C199: 21.2 | D199: 21.23 | E199: 20.77 | F199: 20.33 | G199: 19.87 | H199: 21.67 | I199: 22.13 | J199: 22.57 | K199: 21.7 | L199: 20.8 | M199: 14.49069
A200: 191 | B200: HEG | C200: 4125.9 | D200: 4162.20 | E200: 4074.70 | F200: 4023.50 | G200: 3936.00 | H200: 4213.40 | I200: 4300.90 | J200: 4352.10 | K200: 4249.7 | L200: 4111 | M200: 2.04349
A201: 192 | B201: HEIDELBERG | C201: 148.15 | D201: 148.27 | E201: 145.53 | F201: 142.92 | G201: 140.18 | H201: 150.88 | I201: 153.62 | J201: 156.23 | K201: 151 | L201: 145.65 | M201: 0.66184
A202: 193 | B202: HERITGFOOD | C202: 529.7 | D202: 527.90 | E202: 500.80 | F202: 471.90 | G202: 444.80 | H202: 556.80 | I202: 583.90 | J202: 612.80 | K202: 555 | L202: 499 | M202: 3.68751
A203: 194 | B203: HEROMOTOCO | C203: 2856.05 | D203: 2882.60 | E203: 2801.25 | F203: 2746.45 | G203: 2665.10 | H203: 2937.40 | I203: 3018.75 | J203: 3073.55 | K203: 2963.95 | L203: 2827.8 | M203: 2.48605
A204: 195 | B204: HEXAWARE | C204: 312 | D204: 313.78 | E204: 307.97 | F204: 303.93 | G204: 298.12 | H204: 317.82 | I204: 323.63 | J204: 327.67 | K204: 319.6 | L204: 309.75 | M204: 13.41546
A205: 196 | B205: HFCL | C205: 20.45 | D205: 20.53 | E205: 20.22 | F205: 19.98 | G205: 19.67 | H205: 20.77 | I205: 21.08 | J205: 21.32 | K205: 20.85 | L205: 20.3 | M205: 15.10797
A206: 197 | B206: HIMATSEIDE | C206: 242.6 | D206: 245.23 | E206: 238.57 | F206: 234.53 | G206: 227.87 | H206: 249.27 | I206: 255.93 | J206: 259.97 | K206: 251.9 | L206: 241.2 | M206: 0.55194
... 304 more rows

Sheet Bulk Deals
E6: Back To Main Page
A7: Subject : | B7: BULK DEAL | D7: =Main!B10 -> 2018-11-07
A9: Date | B9: Scrip code | C9: Scrip Name | D9: Client Name | E9: Buy / Sell | F9: Quantity Traded | G9: Trade Price / Wt.Avg.trade price | H9: Exchange
A10: 2018-11-06 | B10: 541006 | C10: ANGEL | D10: GUINESS SECURITIES LIMITED | E10: SELL | F10: 244,000 | G10: 28.49 | H10: BSE
A11: 2018-11-06 | B11: 542057 | C11: BCPL | D11: VISHWAMANI MATAMANI TIWARI . | E11: BUY | F11: 100,000 | G11: 36.07 | H11: BSE
A12: 2018-11-06 | B12: 539275 | C12: MSL | D12: BIPIN KANTIBHAI PRAJAPATI | E12: BUY | F12: 73,500 | G12: 45.15 | H12: BSE
A13: 2018-11-06 | B13: 539275 | C13: MSL | D13: KULKARNI | E13: SELL | F13: 63,000 | G13: 44.58 | H13: BSE
A14: 2018-11-06 | B14: 531512 | C14: ORIENTTR | D14: ANURADHA KHERIA | E14: SELL | F14: 81,203 | G14: 10.48 | H14: BSE
A15: 2018-11-06 | B15: 531512 | C15: ORIENTTR | D15: RAVINDER KAUR BEDI | E15: BUY | F15: 55,896 | G15: 10.54 | H15: BSE
A16: 2018-11-06 | B16: 531802 | C16: PRERINFRA | D16: VARSHA SHAH | E16: BUY | F16: 100,000 | G16: 18.06 | H16: BSE
A17: 2018-11-06 | B17: 531802 | C17: PRERINFRA | D17: AK LIMBACHIYA | E17: SELL | F17: 95,000 | G17: 18.05 | H17: BSE
A18: 2018-11-06 | B18: 534618 | C18: SAREL | D18: ILA JAYESH THAR | E18: BUY | F18: 83,416 | G18: 19.4 | H18: BSE
A19: 2018-11-06 | B19: 534618 | C19: SAREL | D19: ALTIUS CAPITAL FUND | E19: SELL | F19: 56,790 | G19: 18.95 | H19: BSE
A20: 2018-11-06 | B20: 539201 | C20: SATIA | D20: AMIT MUNDRA HUF | E20: BUY | F20: 51,160 | G20: 536 | H20: BSE
A21: 2018-11-06 | B21: 539520 | C21: SHAILJA | D21: BIRENDRA KUMAR JHA | E21: SELL | F21: 20,000 | G21: 12.41 | H21: BSE
A22: 2018-11-06 | B22: 539520 | C22: SHAILJA | D22: BIRENDRA KUMAR JHA | E22: BUY | F22: 20,000 | G22: 12.42 | H22: BSE
A23: 2018-11-06 | B23: 539520 | C23: SHAILJA | D23: DHAVAL GANPATBHAI PARMAR | E23: SELL | F23: 20,000 | G23: 12.42 | H23: BSE
A24: 2018-11-06 | B24: 539520 | C24: SHAILJA | D24: DHAVAL GANPATBHAI PARMAR | E24: BUY | F24: 20,000 | G24: 12.41 | H24: BSE
A25: 2018-11-06 | B25: 539520 | C25: SHAILJA | D25: PRAMOD GEMAWAT | E25: BUY | F25: 40,000 | G25: 11.92 | H25: BSE
A26: 2018-11-06 | B26: 542019 | C26: SHUBHAM | D26: GAURAV JITENDRAKUMAR SHAH (HUF) | E26: SELL | F26: 30,000 | G26: 43.37 | H26: BSE
A27: 2018-11-06 | B27: 542019 | C27: SHUBHAM | D27: VINODKUMAR SHANKARLAL BAJORIA | E27: BUY | F27: 30,000 | G27: 43.37 | H27: BSE
A28: 2018-11-06 | B28: 532531 | C28: STAR | D28: KARUNA BUSINESS SOLUTIONS LLP | E28: BUY | F28: 601,000 | G28: 427 | H28: NSE
A29: 2018-11-06 | B29: 8KMILES | C29: 8K Miles Soft Serv Ltd | D29: BP FINTRADE PRIVATE LIMITED | E29: BUY | F29: 140,828 | G29: 78.26 | H29: NSE
A30: 2018-11-06 | B30: 8KMILES | C30: 8K Miles Soft Serv Ltd | D30: CHETAN RASIKLAL SHAH | E30: BUY | F30: 100,002 | G30: 80.65 | H30: NSE
A31: 2018-11-06 | B31: AGROPHOS | C31: Agro Phos India Limited | D31: ARVIND SHANTILAL SHAH | E31: BUY | F31: 132,000 | G31: 35.54 | H31: NSE
A32: 2018-11-06 | B32: JETAIRWAYS | C32: Jet Airways (India) Ltd. | D32: CENTILLION RESEARCH INDIA LLP | E32: BUY | F32: 923,944 | G32: 257.49 | H32: NSE
A33: 2018-11-06 | B33: JETAIRWAYS | C33: Jet Airways (India) Ltd. | D33: CROSSLAND TRADING CO | E33: BUY | F33: 1,948,472 | G33: 257.07 | H33: NSE
A34: 2018-11-06 | B34: JETAIRWAYS | C34: Jet Airways (India) Ltd. | D34: GRAVITON RESEARCH CAPITAL LLP | E34: BUY | F34: 617,777 | G34: 257.67 | H34: NSE
A35: 2018-11-06 | B35: JETAIRWAYS | C35: Jet Airways (India) Ltd. | D35: SHAASTRA SECURITIES TRADING PRIVATE LIMITED | E35: BUY | F35: 1,890,408 | G35: 257.13 | H35: NSE
A36: 2018-11-06 | B36: KWALITY | C36: Kwality Limited | D36: BP FINTRADE PRIVATE LIMITED | E36: BUY | F36: 1,279,263 | G36: 6.98 | H36: NSE
A37: 2018-11-06 | B37: PCJEWELLER | C37: PC Jeweller Ltd | D37: CENTILLION RESEARCH INDIA LLP | E37: BUY | F37: 5,286,019 | G37: 86.62 | H37: NSE
A38: 2018-11-06 | B38: PCJEWELLER | C38: PC Jeweller Ltd | D38: CROSSLAND TRADING CO | E38: BUY | F38: 3,081,165 | G38: 86.97 | H38: NSE
A39: 2018-11-06 | B39: PCJEWELLER | C39: PC Jeweller Ltd | D39: SHAASTRA SECURITIES TRADING PRIVATE LIMITED | E39: BUY | F39: 3,936,742 | G39: 87.55 | H39: NSE
A40: 2018-11-06 | B40: UNIPLY | C40: Uniply Industries Limited | D40: CAISHEN ENTERPRISE LLP | E40: BUY | F40: 1,100,000 | G40: 61.87 | H40: NSE
A41: 2018-11-06 | B41: 8KMILES | C41: 8K Miles Soft Serv Ltd | D41: BP FINTRADE PRIVATE LIMITED | E41: SELL | F41: 159,612 | G41: 80.52 | H41: NSE
A42: 2018-11-06 | B42: 8KMILES | C42: 8K Miles Soft Serv Ltd | D42: CHETAN RASIKLAL SHAH | E42: SELL | F42: 175,029 | G42: 80.65 | H42: NSE
A43: 2018-11-06 | B43: AGROPHOS | C43: Agro Phos India Limited | D43: ARVIND SHANTILAL SHAH | E43: SELL | F43: 132,000 | G43: 35.6 | H43: NSE
A44: 2018-11-06 | B44: AGROPHOS | C44: Agro Phos India Limited | D44: VISHWAMANI MATAMANI TIWARI | E44: SELL | F44: 108,000 | G44: 35.57 | H44: NSE
A45: 2018-11-06 | B45: CLEDUCATE | C45: CL Educate Limited | D45: OCEAN DIAL GATEWAY TO INDIA MAURITIUS LIMITED | E45: SELL | F45: 179,031 | G45: 114.02 | H45: NSE
A46: 2018-11-06 | B46: JETAIRWAYS | C46: Jet Airways (India) Ltd. | D46: CENTILLION RESEARCH INDIA LLP | E46: SELL | F46: 923,944 | G46: 257.57 | H46: NSE
A47: 2018-11-06 | B47: JETAIRWAYS | C47: Jet Airways (India) Ltd. | D47: CROSSLAND TRADING CO | E47: SELL | F47: 1,948,472 | G47: 257.34 | H47: NSE
A48: 2018-11-06 | B48: JETAIRWAYS | C48: Jet Airways (India) Ltd. | D48: GRAVITON RESEARCH CAPITAL LLP | E48: SELL | F48: 615,377 | G48: 257.37 | H48: NSE
A49: 2018-11-06 | B49: JETAIRWAYS | C49: Jet Airways (India) Ltd. | D49: SHAASTRA SECURITIES TRADING PRIVATE LIMITED | E49: SELL | F49: 1,890,408 | G49: 257.3 | H49: NSE
A50: 2018-11-06 | B50: KWALITY | C50: Kwality Limited | D50: BP FINTRADE PRIVATE LIMITED | E50: SELL | F50: 2,082,776 | G50: 7 | H50: NSE
A51: 2018-11-06 | B51: NAUKRI | C51: Info Edge (India) Limited | D51: ARANDA INVEST(MAURI) PTE LTD | E51: SELL | F51: 1,500,000 | G51: 1370.04 | H51: NSE
A52: 2018-11-06 | B52: PCJEWELLER | C52: PC Jeweller Ltd | D52: CENTILLION RESEARCH INDIA LLP | E52: SELL | F52: 5,286,019 | G52: 86.68 | H52: NSE
A53: 2018-11-06 | B53: PCJEWELLER | C53: PC Jeweller Ltd | D53: CROSSLAND TRADING CO | E53: SELL | F53: 3,081,165 | G53: 87.04 | H53: NSE
A54: 2018-11-06 | B54: PCJEWELLER | C54: PC Jeweller Ltd | D54: SHAASTRA SECURITIES TRADING PRIVATE LIMITED | E54: SELL | F54: 3,936,742 | G54: 87.67 | H54: NSE
A55: 2018-11-06 | B55: UNIPLY | C55: Uniply Industries Limited | D55: FOUNDATION OUTSOURCING INDIA P | E55: SELL | F55: 1,100,000 | G55: 61.87 | H55: NSE

Sheet Call Tracker (Equity & F&O)
M5: Back To Main Page
A6: Retail Research Technical Calls & Fundamental Performance Report for the month of November -2018
M7: =Main!B10 -> 2018-11-07
B8: Positional Call
A9: Sr.no | B9: Date | D9: Company | E9: Rec | F9: Rec Price | G9: Stop Loss*** | H9: Call Closed At | I9: Target | J9: Remark | K9: Profit / Loss per Share | L9: Gain / Loss % | M9: Status | N9: Closed Date | O9: NSE Closed Price
A10: 1 | B10: 2018-10-25 | D10: SUNPHARMA | E10: Buy | F10: 566-572 | G10: 528 | I10: 620-630 | J10: Open | R10: H
A11: 2 | B11: 2018-10-02 | D11: MARUTI | E11: Buy{} | F11: 6860 | G11: 6580 | H11: 7140 | I11: 7300-7500 | J11: Profit of Rs.280/- | K11: =H11-F11 -> 280 | L11: =K11/F11 -> 4.08% | M11: Successful | N11: 2018-10-05 | R11: H
A24: CLBS = Closing Basis *** | F24: Reinitiated $
A25: Dividend adjusted <> | F25: Revised stoploss #
A26: Part book {}
A27: Master Trade High Risk
A28: Sr.no | B28: Date | D28: Company | E28: Rec | F28: Rec Price | G28: Stop Loss | H28: Call Closed At | I28: Target | J28: Remark | K28: Profit / Loss per share | L28: Gain / Loss per Lot | M28: Lot | N28: Status | O28: Closed Date
A29: 1 | B29: 2018-11-01 | D29: NIFTY NOV FUT | E29: Sell | F29: 10435 | G29: 10620 | H29: 10355 | I29: 10250 | J29: Profit of Rs 53/- | K29: =F29-H29 -> 80 | L29: =M29*53 -> 3975 | M29: 75 | N29: Successful | O29: 2018-11-01 | R29: H
D30: NIFTY NOV 10300 PE | E30: Sell | F30: 165 | H30: 192 | K30: -27
A31: 2 | B31: 2018-11-01 | D31: WIPRO NOV FUT | E31: Sell | F31: 330 | G31: 338 | H31: 324.75 | I31: 315 | J31: Profit of Rs 4.25/- | K31: 5.25 | L31: =M31*4.25 -> 10200 | M31: 2400 | N31: Successful | O31: 2018-11-02 | R31: H
D32: WIPRO Nov 320 PE | E32: Sell | F32: 6.25 | H32: 7.25 | K32: -1
A33: 3 | B33: 2018-11-01 | D33: NIFTY NOV FUT | E33: Sell | F33: 10445 | G33: 10620 | H33: 10575 | I33: 10250 | J33: Loss of Rs.67.5/- | K33: -130 | L33: =M33*67.5 -> 5062.5 | M33: 75 | N33: Unsuccessful | O33: 2018-11-02 | R33: H
D34: NIFTY NOV 10300 PE | E34: Sell | F34: 155 | H34: 92.5 | K34: 62.5
A35: 4 | B35: 2018-11-05 | D35: WIPRO NOV FUT | E35: Sell | F35: 321-322 | G35: 331 | I35: 305
D36: WIPRO Nov 320 PE | E36: Sell | F36: 6.0-7.0
A38: Master Trade Medium Risk
A39: Sr.no | B39: Date | D39: Company | E39: Rec | F39: Rec Price | G39: Stop Loss | H39: Call Closed At | I39: Target | J39: Remark | K39: Profit/ Loss per lot | L39: Gain / Loss per Lot | M39: Lot | N39: Status | O39: Closed Date
A40: 1 | B40: 2018-10-05 | D40: HDFCBANK NOV 2000 CE | E40: Buy | F40: 22 | G40: 8 | H40: 26.5 | I40: 45 | J40: Profit of Rs.4.50/- | K40: 4.5 | L40: =M40*K40 -> 1125 | M40: 250 | N40: Successful
B47: Smart Delivery Trade
A48: Sr.no | B48: Date | D48: Company | E48: Rec | F48: Rec Price | G48: Stop Loss*** | H48: Call Closed At | I48: Target | J48: Remark | K48: Profit / Loss per Share | L48: Gain / Loss % | M48: Status | N48: Closed Date | O48: NSE Closed Price
A49: 1 | B49: 2018-10-02 | D49: JSWSTEEL | E49: Buy | F49: 346 | G49: 331 | H49: 354 | I49: 375 | J49: Profit of Rs.8/- | K49: =H49-F49 -> 8 | L49: =K49/F49 -> 2.31% | M49: Successful | N49: 2018-10-02 | R49: H
A50: 2 | B50: 2018-10-02 | D50: DABUR | E50: Buy | F50: 371-374 | G50: 358 | I50: 390-400 | J50: Open | R50: H
A51: 3 | B51: 2018-10-02 | D51: BHARATFORG | E51: Buy | F51: 608-612 | G51: 589 | I51: 640-650 | J51: Open | R51: H
A64: CLBS = Closing Basis *** | F64: Reinitiated $
A65: Dividend adjusted <> | F65: Revised stoploss #
B68: Momentum Call
A69: Sr.no | B69: Date | D69: Company | E69: Rec | F69: Rec Price | G69: Stop Loss | H69: Call Closed At | I69: Target | J69: Remark | K69: Profit / Loss per Share/Lot | L69: Gain / Loss % | M69: Gain / Loss per Lot | N69: Lot | O69: Status | P69: Closed Date
A70: 1 | B70: 2018-10-30 | D70: AMBUJACEM | E70: Buy | F70: 194.5 | G70: 189.5 | H70: 199.5 | I70: 202-205 | J70: Profit of Rs.5/- | K70: =H70-F70 -> 5 | L70: =K70/F70 -> 2.57% | O70: Successful | P70: 2018-11-01 | R70: H
A71: 2 | B71: 2018-10-31 | D71: EXIDEIND NOV FUT | E71: Sell | F71: 261.5 | G71: 266.6 | H71: 258.25 | I71: 250-247 | J71: Profit of Rs.3.25/- | K71: =F71-H71 -> 3.25 | M71: =N71*K71 -> 6500 | N71: 2000 | O71: Successful | P71: 2018-11-01 | R71: R
A72: 3 | B72: 2018-10-31 | D72: BAJFINANCE NOV FUT | E72: Sell | F72: 2365 | G72: 2411 | H72: 2411 | I72: 2250-2200 | J72: Loss of Rs.46/- | K72: =F72-H72 -> -46 | M72: =N72*K72 -> -11500 | N72: 250 | O72: Unsuccessful | P72: 2018-11-01 | R72: R
A73: 4 | B73: 2018-11-01 | D73: EXIDEIND NOV FUT | E73: Buy | F73: 255.5 | G73: 249.8 | H73: 259.5 | I73: 262-264 | J73: Profit of Rs.3.25/- | K73: =H73-F73 -> 4 | M73: 8000 | N73: 2000 | O73: Successful | P73: 2018-11-02 | R73: N
A74: 5 | B74: 2018-11-02 | D74: HDFCBANK | E74: Buy | F74: 1925 | G74: 1890 | H74: 1956.5 | I74: 1980-2000 | J74: Profit of Rs.31.5/- | K74: 31.5 | L74: =K74/F74 -> 1.64% | O74: Successful | P74: 2018-11-02 | R74: H
A75: 6 | B75: 2018-11-02 | D75: ICICIBANK NOV FUT | E75: Sell | F75: 356 | G75: 361.8 | H75: 350 | I75: 345 | J75: Profit of Rs.6/- | K75: =F75-H75 -> 6 | M75: =N75*K75 -> 16500 | N75: 2750 | O75: Successful | P75: 2018-11-05 | R75: R
A76: 7 | B76: 2018-11-05 | D76: CONCOR | E76: Buy | F76: 652.5 | G76: 634 | H76: 678 | I76: 680-690 | J76: Profit of Rs.25.50/- | K76: =H76-F76 -> 25.5 | L76: =K76/F76 -> 3.91% | O76: Successful | P76: 2018-11-06
A77: 8 | B77: 2018-11-05 | D77: AMARAJABAT NOV FUT | E77: Buy | F77: 781.5 | G77: 765 | H77: 769 | I77: 800-810 | J77: Loss of Rs.12.50/- | K77: =F77-H77 -> 12.5 | M77: =N77*K77 -> 7500 | N77: 600 | O77: Unsuccessful | P77: 2018-11-06
A78: 9 | B78: 2018-11-06 | D78: HDFC NOV FUT | E78: Buy | F78: 1805-1810 | G78: 1785 | I78: 1840 | J78: Open
A79: 10 | B79: 2018-11-06 | D79: HINDUNILVR NOV FUT | E79: Buy | F79: 1626-169 | G79: 1608 | I79: 1670 | J79: Open
A90: CLBS = Closing Basis ***
A91: Dividend adjusted <> | F91: Reinitiated $
F92: Revised stoploss #
B93: Quick Pick Intraday
A94: Sr.no | B94: Date | D94: Company | E94: Rec | F94: Rec Price | G94: Stop Loss*** | H94: Call Closed At | I94: Target | J94: Remark | K94: Profit / Loss per Share | L94: Status | M94: Closed Date
A108: Techno -Funda (positional)
A109: Sr.no | B109: Date | D109: Company | E109: Rec | F109: Rec Price | G109: Stop Loss*** | H109: Call Closed At | I109: Target | J109: Remark | K109: Profit / Loss per Share | L109: Gain / Loss % | M109: Status | N109: Closed Date | O109: NSE Closed Price
A112: CLBS = Closing Basis *** | F112: Reinitiated $
A113: Dividend adjusted <> | F113: Revised stoploss #
B118: Investment Idea
A119: Sr.no | B119: Date | D119: Company | E119: Rec | F119: Rec Price | G119: Point of Review | H119: Close Rate | I119: Target | J119: Remark | K119: Profit / Loss per Share | L119: Gain / Loss % | M119: Status | N119: Closed Date
A120: 1 | B120: 2013-11-01 | D120: L&T Finance Holding | E120: Accu | F120: 82.00 | G120: - | H120: 100 | I120: 100.00 | J120: Target Achieved | K120: =H120-F120 -> 18.00 | L120: =K120/F120 -> 21.95% | M120: Successful | N120: 2016-10-14
A121: 2 | B121: 2014-06-04 | D121: Finolex Inds | E121: Buy | F121: 257.00 | G121: - | H121: 300 | I121: 300.00 | J121: Target Achieved | K121: =H121-F121 -> 43.00 | L121: 16.73% | M121: Successful | N121: 2014-07-02
A122: =1+A121 -> 3 | B122: 2014-07-08 | D122: JK Cement | E122: Buy | F122: 393.00 | G122: - | H122: 468 | I122: 468.00 | J122: Target Achieved | K122: =H122-F122 -> 75.00 | L122: 19.08% | M122: Successful | N122: 2014-08-12
A123: 4 | B123: 2014-08-06 | D123: Finolex Cables | E123: Buy | F123: 205.00 | G123: - | H123: 275 | I123: 250.00 | J123: Target Achieved | K123: 70.00 | L123: 34.15% | M123: Successful | N123: 2014-11-19
A124: 5 | B124: 2014-09-04 | D124: Exide Inds | E124: Buy | F124: 162.00 | G124: - | H124: 190 | I124: 190.00 | J124: Target Achieved | K124: 28.00 | L124: 17.28% | M124: Successful | N124: 2015-01-02
A125: 6 | B125: 2014-09-04 | D125: Deepak Nitrite | E125: Buy | F125: 75.00 | G125: - | H125: 91.5 | I125: 95-100 | J125: Profit of Rs.16.50/- | K125: 16.50 | L125: 22.00% | M125: Successful | N125: 2014-11-11
A126: 7 | B126: 2014-10-01 | D126: Mercks | E126: Buy | F126: 850.00 | G126: - | H126: 982.5 | I126: 1050.00 | J126: Profit of Rs.132.50/- | K126: 132.50 | L126: 15.59% | M126: Successful | N126: 2015-02-04
A127: 8 | B127: 2014-10-01 | D127: Grindwell Norton | E127: Buy | F127: 475.00 | G127: - | H127: 515 | I127: 600.00 | J127: Profit of Rs.40/- | K127: 40.00 | L127: 8.42% | M127: Successful | N127: 2014-10-27
A128: 9 | B128: 2014-10-01 | D128: Snowman Logistics | E128: Buy | F128: 86.00 | G128: - | H128: 99 | I128: 140.00 | J128: Profit of Rs.13.00/- | K128: 13.00 | L128: 15.12% | M128: Successful | N128: 2014-10-27
A129: 10 | B129: 2014-10-14 | D129: Birla Corp | E129: Buy | F129: 496.60 | G129: - | H129: 621 | I129: 580.00 | J129: Target Achieved | K129: 124.40 | L129: 25.05% | M129: Successful | N129: 2016-08-23
A130: 11 | B130: 2014-10-14 | D130: Ultratech Cem | E130: Buy | F130: 2481.90 | G130: - | H130: 2840 | I130: 2870.00 | J130: Profit of Rs.358.10/- | K130: 358.10 | L130: 14.43% | M130: Successful | N130: 2015-01-13
A131: =1+A128 -> 10 | B131: 2014-10-16 | D131: Sintex Inds | E131: Buy | F131: 84.50 | G131: - | H131: 93 | I131: 110.00 | J131: Profit of Rs.8.50/- | K131: 8.50 | L131: 10.06% | M131: Successful | N131: 2014-10-27
A132: =1+A131 -> 11 | B132: 2014-10-16 | D132: HSIL | E132: Buy | F132: 401.00 | G132: - | H132: 428 | I132: 450.00 | J132: Profit of Rs.27.00/- | K132: 27.00 | L132: 6.73% | M132: Successful | N132: 2015-01-16
A133: 12 | B133: 2014-10-16 | D133: Eveready Inds | E133: Buy | F133: 101.00 | G133: - | H133: 112 | I133: 120.00 | J133: Profit of Rs.11.00/- | K133: 11.00 | L133: 10.89% | M133: Successful | N133: 2014-10-27
A134: 13 | B134: 2014-11-11 | D134: Pennar Inds | E134: Buy | F134: 59.00 | G134: - | H134: 76 | I134: 76.00 | J134: Target Achieved | K134: 17.00 | L134: 28.81% | M134: Successful | N134: 2017-10-24
A135: 14 | B135: 2014-11-11 | D135: Snowman Logistics | E135: Buy | F135: 99.00 | G135: - | H135: 120 | I135: 120.00 | J135: Profit of Rs.21/- | K135: 21.00 | L135: 21.21% | M135: Successful | N135: 2014-11-17
A136: 15 | B136: 2014-11-13 | D136: Dharamsi Morarji Chem | E136: Buy | F136: 22.00 | G136: - | H136: 33.55 | I136: 32.00 | J136: Profit of Rs 11.55/- | K136: 11.55 | L136: 52.50% | M136: Successful | N136: 2015-07-03
A137: 16 | B137: 2014-12-03 | D137: Tatachem | E137: Buy | F137: 440.00 | G137: - | H137: 520 | I137: 520.00 | J137: Profit of Rs 80.00/- | K137: 80.00 | L137: 18.18% | M137: Successful | N137: 2015-07-23
A138: 17 | B138: 2014-12-03 | D138: Advanta | E138: Buy | F138: 360.00 | G138: - | H138: 427 | I138: 425.00 | J138: Profit of Rs.67.00/- | K138: 67.00 | L138: 18.61% | M138: Successful | N138: 2015-02-23
A139: 18 | B139: 2015-01-08 | D139: GDL | E139: Buy | F139: 360.00 | G139: - | H139: 455 | I139: 420.00 | J139: Profit of Rs.95.00/- | K139: 95.00 | L139: 26.39% | M139: Successful | N139: 2015-01-20
A140: 19 | B140: 2015-01-08 | D140: NRB Bearing | E140: Buy | F140: 130.00 | H140: 175.5 | I140: 165.00 | J140: Profit of Rs 45.50/- | K140: 45.50 | L140: 35.00% | M140: Successful | N140: 2017-12-19
A141: 20 | B141: 2015-02-05 | D141: GSFC | E141: Accu | F141: 98.00 | H141: 120 | I141: 120.00 | J141: Target Achieved | K141: 22.00 | L141: 22.45% | M141: Successful | N141: 2017-01-18
A142: 21 | B142: 2015-02-05 | D142: Sundrmfast | E142: Accu | F142: 196.00 | H142: 262 | I142: 255.00 | J142: Target Achieved | K142: 66.00 | L142: 33.67% | M142: Successful | N142: 2016-08-17
A143: 22 | B143: 2015-03-04 | D143: GPPL | E143: Accu | F143: 230-240 | I143: 280-285 | J143: Open
A144: 23 | B144: 2015-03-04 | D144: ORIENTCEM | E144: Accu | F144: 185.00 | H144: 224 | I144: 220-225 | J144: Target Achieved | K144: 39.00 | L144: =K144/F144 -> 21.08% | M144: Successful | N144: 2016-10-04
A145: 24 | B145: 2015-03-27 | D145: PFS | E145: Accu | F145: 49-50 | I145: 67.00 | J145: Open
A146: 25 | B146: 2015-03-30 | D146: Walchandnagar Ind Ltd | E146: Accu | F146: 183.50 | H146: 219 | I146: 218.00 | J146: Profit of Rs.35.50/- | K146: 35.50 | L146: =K146/F146 -> 19.35% | M146: Successful | N146: 2015-04-09
A147: 26 | B147: 2015-04-20 | D147: Kalpataru Power Transmission Ltd | E147: Accu | F147: =(227+237)/2 -> 232.00 | H147: 298 | I147: 298.00 | J147: Target Achieved | K147: 66.00 | L147: 28.45% | M147: Successful | N147: 2017-03-29
A148: 27 | B148: 2015-05-04 | D148: Mastek Ltd | E148: Buy | F148: 385.00 | H148: =212.5+331 -> 543.5 | I148: 510.00 | J148: Profit of Rs 158.50/- | K148: 158.50 | L148: 41.17% | M148: Successful | N148: 2015-08-19
A149: 28 | B149: 2015-05-04 | D149: Suprajit Eng | E149: Buy | F149: 115.50 | H149: 146 | I149: 142.00 | J149: Profit of Rs 30.50/- | K149: 30.50 | L149: 26.41% | M149: Successful | N149: 2015-07-17
A150: 29 | B150: 2015-05-27 | D150: TCI | E150: Buy | F150: 237.50 | H150: 279.5 | I150: 278.00 | J150: Target Achieved | K150: 42.00 | L150: 17.68% | M150: Successful | N150: 2015-08-06
A151: 30 | B151: 2015-06-19 | D151: HSIL | E151: Accu | F151: 340.00 | H151: 448 | I151: 448.00 | J151: Target Achieved | K151: 108.00 | L151: 31.76% | M151: Successful | N151: 2017-10-10
A152: 31 | B152: 2015-07-06 | D152: Capital First | E152: Accu | F152: 390.00 | H152: 460 | I152: 460.00 | J152: Target Achieved | K152: 70.00 | L152: 17.95% | M152: Successful | N152: 2016-04-18
A153: 32 | B153: 2015-07-10 | D153: Dolphin OffShore | E153: Accu | F153: 122.5 | H153: 61.00 | I153: 172.00 | J153: Loss of Rs.61.50/- | K153: -61.50 | L153: -50.20% | M153: Unsuccessful | N153: 2018-08-21
A154: 33 | B154: 2015-08-03 | D154: Allcargo logistics | E154: Accu | F154: 297.50 | H154: 350 | I154: 360.00 | J154: Profit of Rs 52.50/- | K154: 52.50 | L154: =K154/F154 -> 17.65% | M154: Successful | N154: 2015-08-16
A155: 34 | B155: 2015-08-03 | D155: Camline Fine | E155: Accu | F155: 115.50 | H155: 149 | I155: 140.00 | J155: Profit of Rs 33.50/- | K155: 33.50 | L155: 29.00% | M155: Successful | N155: 2017-01-05
A156: 35 | B156: 2015-09-04 | D156: TCI | E156: Accu | F156: 226.00 | H156: 292 | I156: 292.00 | J156: Target Achieved | K156: 66.00 | L156: 29.20% | M156: Successful | N156: 2015-10-09
A157: 36 | B157: 2015-09-07 | D157: Kalpataru Power Transmission Ltd | E157: Accu | F157: 232.50 | H157: 312.5 | I157: 310.00 | J157: Target Achieved | K157: 80.00 | L157: 34.41% | M157: Successful | N157: 2017-03-29
A158: 37 | B158: 2015-09-21 | D158: LLOYD ELECTRIC & ENG LTD | E158: Accu | F158: 196.50 | H158: 238 | I158: 238.00 | J158: Target Achieved | K158: 41.50 | L158: 21.12% | M158: Successful | N158: 2015-10-14
A159: 38 | B159: 2015-09-24 | D159: L&T Finance Holding | E159: Accu | F159: 65.00 | H159: 82 | I159: 82.00 | J159: Target Achieved | K159: 17.00 | L159: 26.15% | M159: Successful | N159: 2016-07-27
A160: 39 | B160: 2015-10-14 | D160: KEC International ltd | E160: Accu | F160: 144.00 | H160: 182.5 | I160: 181.00 | J160: Target Achieved | K160: 38.50 | L160: 26.74% | M160: Successful | N160: 2017-03-23
A161: 40 | B161: 2015-10-14 | D161: Gruh Finance | E161: Accu | F161: 264.00 | H161: 311 | I161: 311.00 | J161: Target Achieved | K161: 47.00 | L161: 17.80% | M161: Successful | N161: 2016-08-22
A162: 41 | B162: 2015-11-10 | D162: Pidilitind | E162: Buy | F162: 549.50 | H162: 630 | I162: 630.00 | J162: Target Achieved | K162: 80.50 | L162: 14.65% | M162: Successful | N162: 2016-02-19
A163: 42 | B163: 2015-12-04 | D163: Zensar Technology | E163: Accu | F163: 1027.50 | H163: 1315 | I163: 1250.00 | J163: Target Achieved | K163: =H163-F163 -> 287.50 | L163: 27.98% | M163: Successful | N163: 2018-05-24
A164: 43 | B164: 2015-12-29 | D164: Vinati Organics Ltd | E164: Accu | F164: 465.00 | H164: 540 | I164: 540.00 | J164: Target Achieved | K164: 75.00 | L164: =K164/F164 -> 16.13% | M164: Successful | N164: 2016-06-09
A165: 44 | B165: 2016-01-11 | D165: GSFC | E165: Buy | F165: 81.00 | H165: 110 | I165: 110.00 | J165: Target Achieved | K165: 29.00 | L165: 35.80% | M165: Successful | N165: 2017-01-10
A166: 45 | B166: 2016-01-13 | D166: SSWL | E166: Buy | F166: 417.50 | H166: 547 | I166: 535.00 | J166: Target Achieved | K166: 129.50 | L166: 31.02% | M166: Successful | N166: 2016-07-27
A167: 46 | B167: 2016-02-08 | D167: Persistent System Ltd | E167: Accu | F167: 650.00 | H167: 800 | I167: 800.00 | J167: Target Achieved | K167: 150.00 | L167: 23.08% | M167: Successful | N167: 2018-02-23
A168: 47 | B168: 2016-03-04 | D168: UPL | E168: Accu | F168: 437.50 | H168: 504.5 | I168: 522.00 | J168: Profit of Rs.67/- | K168: 67.00 | L168: 15.31% | M168: Successful | N168: 2016-04-20
A169: 48 | B169: 2016-03-09 | D169: Ashoka Buildcon Ltd | E169: Accu | F169: 189.50 | H169: 218 | I169: 218.00 | J169: Target Achieved | K169: 28.50 | L169: 15.04% | M169: Successful | N169: 2017-10-26
A170: 49 | B170: 2016-04-11 | D170: PTC INDIA FIN SERV LTD | E170: Accu | F170: 36-37 | I170: 60.00 | J170: Open
A171: 50 | B171: 2016-04-12 | D171: CAMLINFINE $ | E171: Accu | F171: 93.00 | H171: 149 | I171: 140.00 | J171: Profit of Rs 56/- | K171: 56.00 | L171: =K171/F171 -> 60.22% | M171: Successful | N171: 2017-01-05
A172: 51 | B172: 2016-04-12 | D172: Greaves Cotton Ltd. | E172: Accu | F172: 130.00 | H172: 150 | I172: 150-155 | J172: Target Achieved | K172: 20.00 | L172: 15.38% | M172: Successful | N172: 2016-07-13
A173: 52 | B173: 2016-04-13 | D173: DHFL | E173: Accu | F173: 196.00 | H173: 299 | I173: 299.00 | J173: Target Achieved | K173: 103.00 | L173: 52.55% | M173: Successful | N173: 2016-09-07
A174: 53 | B174: 2016-04-13 | D174: Magma | E174: Accu | F174: 88.00 | H174: 103 | I174: 103.00 | J174: Target Achieved | K174: 15.00 | L174: 17.05% | M174: Successful | N174: 2016-06-09
A175: 54 | B175: 2016-05-02 | D175: KEC International ltd $ | E175: Accu | F175: 127.50 | H175: 148 | I175: 148-150 | J175: Target Achieved | K175: 20.50 | L175: 16.08% | M175: Successful | N175: 2016-07-13
A176: 55 | B176: 2016-05-03 | D176: Mindtree | E176: Accu | F176: 675.00 | H176: 815 | I176: 790-800 | J176: Target Achieved | K176: 140.00 | L176: 20.74% | M176: Successful | N176: 2018-02-23
A177: 56 | B177: 2016-06-01 | D177: Atulauto | E177: Accu | F177: 495-505 | I177: 565-570 | J177: Open
A178: 57 | B178: 2016-06-06 | D178: TRITURBINE | E178: Accu | F178: 110.00 | H178: 126.5 | I178: 125.00 | J178: Profit of Rs.16.50/- | K178: 16.50 | L178: =K178/F178 -> 15.00% | M178: Successful | N178: 2016-07-01
A179: 58 | B179: 2016-06-17 | D179: Pennar Industries Ltd | E179: Accu | F179: 44.00 | H179: 69.5 | I179: 69.50 | J179: Profit of Rs.25.50/- | K179: 25.50 | L179: =K179/F179 -> 57.95% | M179: Successful | N179: 2017-08-30
A180: 59 | B180: 2016-06-28 | D180: EVEREADY INDS. IND. LTD. | E180: Accu | F180: 262.50 | H180: 340 | I180: 333.00 | J180: Profit of Rs.77.50/- | K180: 77.50 | L180: =K180/F180 -> 29.52% | M180: Successful | N180: 2017-10-09
A181: 60 | B181: 2016-06-28 | D181: FIEM INDUSTRIES LIMITED | E181: Accu | F181: 840.00 | H181: 1230 | I181: 1230.00 | J181: Target Achieved | K181: 390.00 | L181: =K181/F181 -> 46.43% | M181: Successful | N181: 2016-10-06
A182: 61 | B182: 2016-07-05 | D182: Bajaj Corp Ltd | E182: Accu | F182: 395 | H182: 468.50 | I182: 510.00 | J182: Part profit of Rs.73.50/- | K182: 73.50 | L182: =K182/F182 -> 19% | M182: Successful | N182: 2017-08-30
A183: 62 | B183: 2016-08-02 | D183: GPPL $ | E183: Buy | F183: 167-172 | I183: 198-200 | J183: Open
A184: 63 | B184: 2016-08-04 | D184: WONDERLA HOLIDAYS LTD | E184: Accu | F184: 395-405 | I184: 475.00 | J184: Open
A185: 64 | B185: 2016-08-11 | D185: CAMLINFINE | E185: Accu | F185: 86.50 | H185: 130 | I185: 130.00 | J185: Profit of Rs.43.50/- | K185: =H185-F185 -> 43.50 | L185: =K185/F185 -> 50.29% | M185: Successful | N185: 2017-12-22
A186: 65 | B186: 2016-08-18 | D186: GRANULES | E186: Accu | F186: 133.5 | H186: 126.50 | I186: 178.00 | J186: Exit | K186: -7.00 | L186: -5.24% | M186: Unsuccessful | N186: 2016-09-02
A187: 66 | B187: 2016-08-31 | D187: VA TECH WABAG | E187: Accu | F187: 560.00 | H187: 725 | I187: 725.00 | J187: Target Achieved | K187: 165.00 | L187: 29.46% | M187: Successful | N187: 2016-03-27
A188: 67 | B188: 2016-09-01 | D188: SKIPPER LIMITED | E188: Accu | F188: 160.50 | H188: 210 | I188: 210.00 | J188: Target Achieved | K188: 49.50 | L188: 30.84% | M188: Successful | N188: 2017-05-16
A189: 68 | B189: 2016-10-03 | D189: IFB Industries | E189: Accu | F189: 430.00 | H189: 596 | I189: 575.00 | J189: Profit of Rs.166/- | K189: 166.00 | L189: 38.60% | M189: Successful | N189: 2017-02-03
A190: 69 | B190: 2016-10-14 | D190: ASIANTILES | E190: Accu | F190: 280.00 | H190: 345 | I190: 345.00 | J190: Target Achieved | K190: 65.00 | L190: 23.21% | M190: Successful | N190: 2017-03-20
A191: 70 | B191: 2016-10-14 | D191: DEEPIND | E191: Accu | F191: 245.00 | H191: 325.5 | I191: 330.00 | J191: Profit of Rs.80.5/- | K191: 80.50 | L191: 32.86% | M191: Successful | N191: 2017-02-03
A192: 71 | B192: 2016-10-17 | D192: DCBBANK | E192: Accu | F192: 125.00 | H192: 160 | I192: 160.00 | J192: Target Achieved | K192: 35.00 | L192: 28.00% | M192: Successful | N192: 2017-03-09
A193: 72 | B193: 2016-10-17 | D193: ORIENTREF | E193: Accu | F193: 114.00 | H193: 145 | I193: 145.00 | J193: Target Achieved | K193: 31.00 | L193: =K193/F193 -> 27.19% | M193: Successful | N193: 2017-05-04
A194: 73 | B194: 2016-10-17 | D194: GANECOS | E194: Accu | F194: 212.00 | H194: 280 | I194: 276.00 | J194: Profit of Rs.68/- | K194: 68.00 | L194: =K194/F194 -> 32.08% | M194: Successful | N194: 2017-05-03
A195: 74 | B195: 2016-11-04 | D195: NBCC | E195: Accu | F195: 155.00 | H195: 210 | I195: 210.00 | J195: Profit of Rs.55/- | K195: 55.00 | L195: =K195/F195 -> 35.48% | M195: Successful | N195: 2017-07-28
A196: 75 | B196: 2016-12-06 | D196: PRECAM | E196: Accu | F196: 150.5 | H196: 72.50 | I196: 174.00 | J196: Loss of Rs.78/- | K196: -78.00 | L196: =K196/F196 -> -51.83% | M196: Unsuccessful | N196: 2018-08-21
A197: 76 | B197: 2016-12-08 | D197: INFRATEL | E197: Accu | F197: 380.00 | H197: 478 | I197: 468.00 | J197: Target Achieved | K197: 98.00 | L197: =K197/F197 -> 25.79% | M197: Successful | N197: 2017-10-17
A198: 77 | B198: 2016-12-30 | D198: GODREJPROP | E198: Accu | F198: 305.00 | H198: 375 | I198: 375.00 | J198: Target Achieved | K198: 70.00 | L198: 22.95% | M198: Successful | N198: 2017-02-02
A199: 78 | B199: 2017-01-04 | D199: DEEPAKNTR | E199: Accu | F199: 99.50 | H199: 158 | I199: 158.00 | J199: Target Achieved | K199: 58.50 | L199: 58.79% | M199: Successful | N199: 2017-06-12
A200: 79 | B200: 2017-02-20 | D200: SUBROS | E200: Accu | F200: 202.50 | H200: 234 | I200: 234.00 | J200: Target Achieved | K200: 31.50 | L200: 15.56% | M200: Successful | N200: 2017-04-11
A201: 80 | B201: 2017-02-20 | D201: RECLTD | E201: Accu | F201: 140.50 | H201: 220 | I201: 220.00 | J201: Target Achieved | K201: 79.50 | L201: 56.58% | M201: Successful | N201: 2017-05-09
A202: 81 | B202: 2017-03-24 | D202: VRLLOG | E202: Accu | F202: 300.50 | H202: 417.5 | I202: 420.00 | J202: Profit of Rs.117/- | K202: 117.00 | L202: 38.94% | M202: Successful | N202: 2017-12-01
A203: 82 | B203: 2017-03-24 | D203: FIEMIND | E203: Accu | F203: 850.00 | H203: 1042.5 | I203: 1023.00 | J203: Profit of Rs 192.50/- | K203: 192.50 | L203: 22.65% | M203: Successful | N203: 2017-04-05
A204: 83 | B204: 2017-04-05 | D204: RATNAMANI | E204: Accu | F204: 785.00 | H204: 930 | I204: 920.00 | J204: Profit of Rs.145/- | K204: 145.00 | L204: 18.47% | M204: Successful | N204: 2017-08-29
A205: 84 | B205: 2017-04-06 | D205: ZEEMEDIA | E205: Accu | F205: 39-41 | I205: 60.00 | J205: Open
A206: 85 | B206: 2017-04-12 | D206: DABUR | E206: Accu | F206: 289.50 | H206: 354 | I206: 360.00 | J206: Profit of Rs.64.5/- | K206: 64.50 | L206: =K206/F206 -> 22.28% | M206: Successful | N206: 2017-11-01
A207: 86 | B207: 2017-04-20 | D207: KPRMILL | E207: Accu | F207: 700.00 | H207: 840 | I207: 840.00 | J207: Profit of Rs.140/- | K207: 140.00 | L207: =K207/F207 -> 20.00% | M207: Successful | N207: 2017-06-07
A208: 87 | B208: 2017-05-22 | D208: GREAVESCOT | E208: Accu | F208: 153-158 | I208: 190.00 | J208: Open
A209: 88 | B209: 2017-06-01 | D209: ESSELPACK | E209: Accu | F209: 260 | H209: 311.00 | I209: 340.00 | J209: Part profit of Rs.51/- | K209: =H209-F209 -> 51.00 | L209: =K209/F209 -> 20% | M209: Successful | N209: 2017-11-17
A210: 89 | B210: 2017-06-15 | D210: KEI | E210: Accu | F210: 214.50 | H210: 262 | I210: 262.00 | J210: Profit of Rs.47.5/- | K210: =H210-F210 -> 47.50 | L210: 22.14% | M210: Successful | N210: 2017-08-30
A211: 90 | B211: 2017-07-17 | D211: MAYURUNIQ | E211: Accu | F211: 370.00 | H211: 447.5 | I211: 450.00 | J211: Target Achieved | K211: 77.50 | L211: 20.95% | M211: Successful | N211: 2017-10-27
A212: 91 | B212: 2017-07-27 | D212: RAMCOCEM | E212: Accu | F212: 657.50 | H212: 825 | I212: 820.00 | J212: Target Achieved | K212: 167.50 | L212: 25.48% | M212: Successful | N212: 2017-12-21
A213: 92 | B213: 2017-08-17 | D213: FINPIPE | E213: Accu | F213: 605.00 | H213: 750 | I213: 750.00 | J213: Profit of Rs.145/- | K213: 145.00 | L213: 23.97% | M213: Successful | N213: 2017-10-19
A214: 93 | B214: 2017-09-01 | D214: SHK | E214: Accu | F214: 255 | H214: 307.50 | I214: 320.00 | J214: Part profit of Rs.52.5/- | K214: 52.50 | L214: 21% | M214: Successful | N214: 2017-12-29
A215: 94 | B215: 2017-09-19 | D215: SKIPPER | E215: Accu | F215: 215.00 | H215: 258 | I215: 258.00 | J215: Target Achieved | K215: 43.00 | L215: 20.00% | M215: Successful | N215: 2017-11-01
A216: 95 | B216: 2017-09-20 | D216: CAMLINFINE | E216: Accu | F216: 75.00 | H216: 90 | I216: 90.00 | J216: Profit of Rs.15.00/- | K216: 15.00 | L216: 20.00% | M216: Successful | N216: 2017-10-11
A217: 96 | B217: 2017-10-03 | D217: GNA | E217: Accu | F217: 315.00 | H217: 392 | I217: 384.00 | J217: Profit of Rs.77/- | K217: 77.00 | L217: 24.44% | M217: Successful | N217: 2017-10-09
A218: 97 | B218: 2017-10-05 | D218: NOCIL | E218: Accu | F218: 145.00 | H218: 179 | I218: 180.00 | J218: Profit of Rs.34/- | K218: 34.00 | L218: 23.45% | M218: Successful | N218: 2017-10-17
A219: 98 | B219: 2017-10-06 | D219: CENTURYPLY | E219: Accu | F219: 256.00 | H219: 323 | I219: 320.00 | J219: Target Achieved | K219: 67.00 | L219: 26.17% | M219: Successful | N219: 2017-11-28
A220: 99 | B220: 2017-10-09 | D220: RECLTD | E220: Accu | F220: 152.5 | H220: 183.50 | I220: 210.00 | J220: Part Profit of Rs.31/- | K220: 31.00 | L220: 20% | M220: Successful | N220: 2017-11-03
A221: 100 | B221: 2017-10-09 | D221: EIHOTEL | E221: Accu | F221: 137.50 | H221: 184 | I221: 183.00 | J221: Profit of Rs.46.5/- | K221: 46.50 | L221: 33.82% | M221: Successful | N221: 2018-01-08
A222: 101 | B222: 2017-10-10 | D222: BOROSIL | E222: Accu | F222: 895.00 | H222: 1122.5 | I222: 1078.00 | J222: Profit of Rs.227.5/- | K222: 227.50 | L222: 25.42% | M222: Successful | N222: 2018-01-17
A223: 102 | B223: 2017-10-10 | D223: NRBBEARING | E223: Accu | F223: 125.50 | H223: 158 | I223: 155.00 | J223: Profit of Rs.32.5/- | K223: 32.50 | L223: 25.90% | M223: Successful | N223: 2017-11-28
A224: 103 | B224: 2017-10-12 | D224: CYIENT | E224: Accu | F224: 525.00 | H224: 629 | I224: 629.00 | J224: Target Achieved | K224: 104.00 | L224: 19.81% | M224: Successful | N224: 2018-01-19
A225: 104 | B225: 2017-11-07 | D225: HATSUN | E225: Accu | F225: 740.00 | H225: 892.5 | I225: 900.00 | J225: Profit of Rs.152.5/- | K225: 152.50 | L225: 20.61% | M225: Successful | N225: 2017-11-13
A226: 105 | B226: 2017-12-04 | D226: SANGHIIND | E226: Accu | F226: 118.50 | H226: 143.5 | I226: 145.00 | J226: Profit of Rs.25/- | K226: 25.00 | L226: 21.10% | M226: Successful | N226: 2017-12-28
A227: 106 | B227: 2017-12-05 | D227: ALLCARGO | E227: Accu | F227: 177.5 | H227: 215.00 | I227: 230.00 | J227: Part Profit of Rs.37.5/- | K227: 37.50 | L227: 21% | M227: Successful | N227: 2017-12-27
A228: 107 | B228: 2017-12-21 | D228: KAJARIACER | E228: Accu | F228: 710-720 | I228: 872.00 | J228: Open
A229: 108 | B229: 2017-12-29 | D229: GNA | E229: Accu | F229: 435.00 | H229: 542.5 | I229: 539.00 | J229: Target Achieved | K229: =H229-F229 -> 107.50 | L229: =K229/F229 -> 24.71% | M229: Successful | N229: 2018-04-16
A230: 109 | B230: 2017-12-29 | D230: ZENSARTECH | E230: Accu | F230: 885.00 | H230: 1090 | I230: 1084.00 | J230: Target Achieved | K230: 205.00 | L230: =K230/F230 -> 23.16% | M230: Successful | N230: 2018-04-23
A231: 110 | B231: 2018-02-07 | D231: GREAVESCOT | E231: Accu | F231: 130-132 | I231: 190.00 | J231: Open
A232: 111 | B232: 2018-02-27 | D232: MOLDTKPAC | E232: Accu | F232: 320-330 | I232: 398.00 | J232: Open
A233: 112 | B233: 2018-03-05 | D233: LICHSGFIN | E233: Accu | F233: 505-515 | I233: 672.00 | J233: Open
A234: 113 | B234: 2018-04-02 | D234: EVERESTIND | E234: Accu | F234: 492.5 | H234: 589.00 | I234: 613.00 | J234: Part Profit of Rs.37.5/- | K234: =H234-F234 -> 96.50 | L234: =K234/F234 -> 20% | M234: Successful | N234: 2018-08-21
A235: 114 | B235: 2018-04-04 | D235: GPPL | E235: Accu | F235: 140-143 | I235: 180.00 | J235: Open
A236: 115 | B236: 2018-04-19 | D236: MANPASAND | E236: Accu | F236: 430 | H236: 220.00 | I236: 537.00 | J236: Loss of Rs.210/- | K236: =H236-F236 -> -210.00 | L236: =K236/F236 -> -48.84% | M236: Unsuccessful | N236: 2018-06-01
A237: 116 | B237: 2018-04-30 | D237: HEIDELBERG | E237: Accu | F237: 154-158 | I237: 196.00 | J237: Open
A238: 117 | B238: 2018-05-17 | D238: PHILIPCARB | E238: Accu | F238: 230-240 | I238: 348.00 | J238: Open
A239: 118 | B239: 2018-06-07 | D239: KEC | E239: Accu | F239: 340-345 | I239: 439.00 | J239: Open
A240: 119 | B240: 2018-07-04 | D240: ASHOKLEY | E240: Accu | F240: 125-130 | I240: 170.00 | J240: Open
A241: 120 | B241: 2018-07-13 | D241: FCONSUMER | E241: Accu | F241: 46-47 | I241: 59.00 | J241: Open
A242: 121 | B242: 2018-07-25 | D242: ZEEMEDIA | E242: Accu | F242: 27-28 | I242: 44.00 | J242: Open
A243: 122 | B243: 2018-08-06 | D243: GABRIEL | E243: Accu | F243: 148-152 | I243: 182.00 | J243: Open
A244: 123 | B244: 2018-08-23 | D244: INDIANHUME | E244: Accu | F244: 280-290 | I244: 364.00 | J244: Open
A245: 124 | B245: 2018-08-29 | D245: GRINDWELL | E245: Accu | F245: 520-530 | I245: 635.00 | J245: Open
A246: 125 | B246: 2018-10-22 | D246: FINPIPE | E246: Accu | F246: 475.00 | H246: 574 | I246: 570.00 | J246: Target Achieved | K246: =H246-F246 -> 99.00 | L246: =K246/F246 -> 20.84% | M246: Successful | N246: 2018-10-30
A247: 126 | B247: 2018-10-23 | D247: JKPAPER | E247: Accu | F247: 158-162 | I247: 191.00 | J247: Open
A248: 127 | B248: 2018-10-24 | D248: GULFOILLUB | E248: Accu | F248: 700-715 | I248: 872.00 | J248: Open
A249: 128 | B249: 2018-10-25 | D249: GODREJCP | E249: Accu | F249: 700-715 | I249: 890.00 | J249: Open
A250: 129 | B250: 2018-10-25 | D250: DBCORP | E250: Accu | F250: 161-167 | I250: 209.00 | J250: Open
A251: 130 | B251: 2018-10-26 | D251: RITES | E251: Accu | F251: 237-243 | I251: 297.00 | J251: Open
F254: Reinitiated $
A256: Disclaimer:
A257: This document has been prepared by the Retail Research Desk of Asit C Mehta
A258: Investment Intermediates Ltd. and is meant for use of the recipient only
A259: and is not for circulation. This document is not to be reported or
A260: copied or made available to others. It should not be considered to be
A261: taken as an offer to sell or a solicitation to buy any security. The
A262: information contained herein is from sources believed reliable. We do
A263: not represent that it is accurate or complete and it should not be
A264: relied upon as such. We may from time to time have positions in and buy
A265: and sell securities referred to herein

Sheet Sheet2 (hidden)
A1: SYMBOL | B1: SERIES | C1: OPEN | D1: HIGH | E1: LOW | F1: CLOSE | G1: LAST | H1: PREVCLOSE | I1: TOTTRDQTY | J1: TOTTRDVAL | K1: TIMESTAMP | L1: TOTALTRADES | M1: ISIN | N1: ISIN
A2: 20MICRONS | B2: EQ | C2: 43.35 | D2: 44.15 | E2: 42.25 | F2: 42.85 | G2: 42.95 | H2: 43.05 | I2: 40692 | J2: 1745361.65 | K2: 2018-11-06 | L2: 353 | M2: INE144J01027
A3: 21STCENMGM | B3: EQ | C3: 22.9 | D3: 23.45 | E3: 22.8 | F3: 22.8 | G3: 22.8 | H3: 23.25 | I3: 2031 | J3: 46371.8 | K3: 2018-11-06 | L3: 26 | M3: INE253B01015
A4: 3IINFOTECH | B4: EQ | C4: 3.45 | D4: 3.45 | E4: 3.3 | F4: 3.3 | G4: 3.35 | H4: 3.4 | I4: 705204 | J4: 2363457.05 | K4: 2018-11-06 | L4: 388 | M4: INE748C01020
A5: 3MINDIA | B5: EQ | C5: 20397.6 | D5: 20397.6 | E5: 19600 | F5: 19845.7 | G5: 19800 | H5: 20077.85 | I5: 1445 | J5: 28788376.05 | K5: 2018-11-06 | L5: 550 | M5: INE470A01017
A6: 3PLAND | B6: BE | C6: 11.5 | D6: 11.5 | E6: 11.5 | F6: 11.5 | G6: 11.5 | H6: 11.5 | I6: 277 | J6: 3185.5 | K6: 2018-11-06 | L6: 1 | M6: INE105C01023
A7: 5PAISA | B7: EQ | C7: 185.5 | D7: 187.9 | E7: 180.7 | F7: 182.6 | G7: 182.15 | H7: 185.3 | I7: 3019 | J7: 550042.9 | K7: 2018-11-06 | L7: 157 | M7: INE618L01018
A8: 63MOONS | B8: EQ | C8: 78.7 | D8: 83.75 | E8: 78.7 | F8: 81.25 | G8: 81.1 | H8: 79.9 | I8: 374001 | J8: 30678779.5 | K8: 2018-11-06 | L8: 4444 | M8: INE111B01023
A9: 8KMILES | B9: EQ | C9: 80.65 | D9: 80.65 | E9: 75.2 | F9: 80.65 | G9: 80.65 | H9: 73.35 | I9: 1224007 | J9: 97531623.3 | K9: 2018-11-06 | L9: 3472 | M9: INE650K01021
A10: A2ZINFRA | B10: EQ | C10: 12.35 | D10: 12.6 | E10: 12.15 | F10: 12.45 | G10: 12.55 | H10: 12.35 | I10: 180996 | J10: 2246225.5 | K10: 2018-11-06 | L10: 402 | M10: INE619I01012
A11: AARTIDRUGS | B11: EQ | C11: 581.1 | D11: 581.1 | E11: 570 | F11: 577.35 | G11: 578 | H11: 577.6 | I11: 11133 | J11: 6411979.5 | K11: 2018-11-06 | L11: 791 | M11: INE767A01016
A12: AARTIIND | B12: EQ | C12: 1374.4 | D12: 1406.95 | E12: 1371 | F12: 1394.1 | G12: 1398 | H12: 1364.1 | I12: 33405 | J12: 46458250 | K12: 2018-11-06 | L12: 2284 | M12: INE769A01020
A13: AARVEEDEN | B13: EQ | C13: 24.55 | D13: 25.25 | E13: 24.3 | F13: 24.45 | G13: 24.4 | H13: 24.9 | I13: 4560 | J13: 111948.95 | K13: 2018-11-06 | L13: 55 | M13: INE273D01019
A14: AAVAS | B14: EQ | C14: 650.2 | D14: 665.65 | E14: 649.95 | F14: 662.35 | G14: 665 | H14: 650.2 | I14: 36501 | J14: 24019873.15 | K14: 2018-11-06 | L14: 2883 | M14: INE216P01012
A15: ABAN | B15: EQ | C15: 80.6 | D15: 83.55 | E15: 79.8 | F15: 82.2 | G15: 81.95 | H15: 80.15 | I15: 704502 | J15: 57805411.4 | K15: 2018-11-06 | L15: 7352 | M15: INE421A01028
A16: ABB | B16: EQ | C16: 1319 | D16: 1331 | E16: 1302.3 | F16: 1305.15 | G16: 1305 | H16: 1306.95 | I16: 98447 | J16: 129597826.3 | K16: 2018-11-06 | L16: 10658 | M16: INE117A01022
A17: ABBOTINDIA | B17: EQ | C17: 7552 | D17: 7659 | E17: 7501 | F17: 7532.4 | G17: 7514 | H17: 7600.8 | I17: 856 | J17: 6486547 | K17: 2018-11-06 | L17: 287 | M17: INE358A01014
A18: ABCAPITAL | B18: EQ | C18: 106.75 | D18: 108.85 | E18: 105.25 | F18: 107.35 | G18: 106.6 | H18: 106.15 | I18: 1536545 | J18: 164631780.1 | K18: 2018-11-06 | L18: 12251 | M18: INE674K01013
A19: ABFRL | B19: EQ | C19: 192 | D19: 192.7 | E19: 184.05 | F19: 187.2 | G19: 186.6 | H19: 192.5 | I19: 787200 | J19: 148009995.2 | K19: 2018-11-06 | L19: 7843 | M19: INE647O01011
A20: ABMINTLTD | B20: BE | C20: 15.7 | D20: 15.7 | E20: 15.7 | F20: 15.7 | G20: 15.7 | H20: 16.15 | I20: 25 | J20: 392.5 | K20: 2018-11-06 | L20: 3 | M20: INE251C01017
A21: ACC | B21: EQ | C21: 1479 | D21: 1489.3 | E21: 1441.8 | F21: 1447.45 | G21: 1444.9 | H21: 1474.35 | I21: 363874 | J21: 532993179.6 | K21: 2018-11-06 | L21: 22324 | M21: INE012A01025
A22: ACCELYA | B22: EQ | C22: 960 | D22: 979.9 | E22: 960 | F22: 964.45 | G22: 963.25 | H22: 973.55 | I22: 1900 | J22: 1838623.1 | K22: 2018-11-06 | L22: 245 | M22: INE793A01012
A23: ACE | B23: EQ | C23: 101.65 | D23: 101.65 | E23: 98.05 | F23: 98.45 | G23: 98.95 | H23: 100.35 | I23: 91993 | J23: 9145311.75 | K23: 2018-11-06 | L23: 1273 | M23: INE731H01025
A24: ADANIENT | B24: EQ | C24: 168.25 | D24: 169 | E24: 162 | F24: 164.45 | G24: 164.3 | H24: 168.5 | I24: 5834504 | J24: 963985341.4 | K24: 2018-11-06 | L24: 29021 | M24: INE423A01024
A25: ADANIGAS | B25: BE | C25: 77 | D25: 79.35 | E25: 75.7 | F25: 78.1 | G25: 78.45 | H25: 75.6 | I25: 2528961 | J25: 197393653.3 | K25: 2018-11-06 | L25: 9884 | M25: INE399L01023
A26: ADANIGREEN | B26: EQ | C26: 45 | D26: 45.5 | E26: 42.5 | F26: 43.1 | G26: 43.5 | H26: 43.35 | I26: 1558886 | J26: 69501984.2 | K26: 2018-11-06 | L26: 9159 | M26: INE364U01010
A27: ADANIPORTS | B27: EQ | C27: 331 | D27: 337.45 | E27: 323.15 | F27: 325.6 | G27: 324.35 | H27: 329.55 | I27: 5044028 | J27: 1668844845 | K27: 2018-11-06 | L27: 47317 | M27: INE742F01042
A28: ADANIPOWER | B28: EQ | C28: 50.7 | D28: 50.95 | E28: 48.65 | F28: 49.3 | G28: 49.65 | H28: 50.3 | I28: 16991636 | J28: 849324773.4 | K28: 2018-11-06 | L28: 29630 | M28: INE814H01011
A29: ADANITRANS | B29: EQ | C29: 186.9 | D29: 186.9 | E29: 176.45 | F29: 178.6 | G29: 179.35 | H29: 182.25 | I29: 241176 | J29: 43461852.5 | K29: 2018-11-06 | L29: 2153 | M29: INE931S01010
A30: ADFFOODS | B30: EQ | C30: 259.95 | D30: 270.9 | E30: 254 | F30: 262.85 | G30: 262.15 | H30: 253.35 | I30: 675396 | J30: 178166884.4 | K30: 2018-11-06 | L30: 13670 | M30: INE982B01019
A31: ADHUNIK | B31: EQ | C31: 3 | D31: 3 | E31: 2.8 | F31: 2.8 | G31: 2.8 | H31: 2.9 | I31: 38206 | J31: 110146.45 | K31: 2018-11-06 | L31: 50 | M31: INE400H01019
A32: ADHUNIKIND | B32: EQ | C32: 41 | D32: 42.9 | E32: 40.95 | F32: 42.45 | G32: 42.45 | H32: 41.8 | I32: 2097 | J32: 87548.65 | K32: 2018-11-06 | L32: 22 | M32: INE452L01012
A33: ADLABS | B33: EQ | C33: 15.25 | D33: 15.25 | E33: 14 | F33: 14 | G33: 14 | H33: 14.7 | I33: 266864 | J33: 3817273.1 | K33: 2018-11-06 | L33: 771 | M33: INE172N01012
A34: ADORWELD | B34: EQ | C34: 361.2 | D34: 366.5 | E34: 353.25 | F34: 361.45 | G34: 361 | H34: 361.2 | I34: 10364 | J34: 3758006.7 | K34: 2018-11-06 | L34: 335 | M34: INE045A01017
A35: ADROITINFO | B35: EQ | C35: 19 | D35: 19 | E35: 19 | F35: 19 | G35: 19 | H35: 19.05 | I35: 484 | J35: 9196 | K35: 2018-11-06 | L35: 2 | M35: INE737B01033
A36: ADSL | B36: EQ | C36: 13.9 | D36: 14.3 | E36: 13.5 | F36: 14 | G36: 14 | H36: 14.2 | I36: 9822 | J36: 136983.2 | K36: 2018-11-06 | L36: 68 | M36: INE102I01027
A37: ADVANIHOTR | B37: EQ | C37: 57.1 | D37: 60 | E37: 56.55 | F37: 58.4 | G37: 58 | H37: 58.85 | I37: 13058 | J37: 764122.3 | K37: 2018-11-06 | L37: 160 | M37: INE199C01026
A38: ADVENZYMES | B38: EQ | C38: 186.1 | D38: 190.25 | E38: 186.1 | F38: 188.55 | G38: 189.5 | H38: 187 | I38: 34142 | J38: 6444415.05 | K38: 2018-11-06 | L38: 798 | M38: INE837H01020
A39: AEGISCHEM | B39: EQ | C39: 225 | D39: 225 | E39: 214.75 | F39: 218.85 | G39: 218 | H39: 220.25 | I39: 67646 | J39: 14746815.95 | K39: 2018-11-06 | L39: 6959 | M39: INE208C01025
A40: AGARIND | B40: EQ | C40: 193.95 | D40: 196 | E40: 190 | F40: 195.25 | G40: 196 | H40: 188.55 | I40: 354 | J40: 69065 | K40: 2018-11-06 | L40: 36 | M40: INE204E01012
A41: AGCNET | B41: EQ | C41: 62 | D41: 64.9 | E41: 60 | F41: 63.3 | G41: 63 | H41: 59.85 | I41: 5482 | J41: 341812.85 | K41: 2018-11-06 | L41: 118 | M41: INE676A01019
A42: AGLSL | B42: EQ | C42: 80 | D42: 80 | E42: 75.55 | F42: 75.75 | G42: 75.75 | H42: 76 | I42: 280 | J42: 21617.05 | K42: 2018-11-06 | L42: 28 | M42: INE517U01013
A43: AGRITECH | B43: EQ | C43: 54.85 | D43: 54.85 | E43: 52.55 | F43: 53.1 | G43: 52.7 | H43: 54.55 | I43: 5380 | J43: 288292.75 | K43: 2018-11-06 | L43: 161 | M43: INE449G01018
A44: AHLEAST | B44: EQ | C44: 257.9 | D44: 257.9 | E44: 240.15 | F44: 248.7 | G44: 250 | H44: 249.6 | I44: 430 | J44: 106896.65 | K44: 2018-11-06 | L44: 78 | M44: INE926K01017
A45: AHLUCONT | B45: EQ | C45: 311 | D45: 315.95 | E45: 305 | F45: 315.5 | G45: 315.95 | H45: 311 | I45: 10920 | J45: 3387870.45 | K45: 2018-11-06 | L45: 379 | M45: INE758C01029
A46: AHLWEST | B46: EQ | C46: 304.85 | D46: 305.6 | E46: 290.55 | F46: 295.55 | G46: 305.6 | H46: 299 | I46: 1146 | J46: 339889.15 | K46: 2018-11-06 | L46: 76 | M46: INE915K01010
A47: AIAENG | B47: EQ | C47: 1705.2 | D47: 1731.7 | E47: 1701.05 | F47: 1724.95 | G47: 1720 | H47: 1721.1 | I47: 5941 | J47: 10225464.75 | K47: 2018-11-06 | L47: 916 | M47: INE212H01026
A48: AIFL | B48: EQ | C48: 68.25 | D48: 68.25 | E48: 68.25 | F48: 68.25 | G48: 68.25 | H48: 71.8 | I48: 5385 | J48: 367526.25 | K48: 2018-11-06 | L48: 71 | M48: INE428O01016
A49: AIONJSW | B49: EQ | C49: 34 | D49: 34.25 | E49: 33.8 | F49: 34.25 | G49: 34.25 | H49: 32.65 | I49: 23917 | J49: 815626.35 | K49: 2018-11-06 | L49: 51 | M49: INE743C01021
A50: AJANTPHARM | B50: EQ | C50: 1094.8 | D50: 1096 | E50: 1054 | F50: 1060.05 | G50: 1054 | H50: 1086.9 | I50: 175986 | J50: 188146808.5 | K50: 2018-11-06 | L50: 8616 | M50: INE031B01049
A51: AJMERA | B51: EQ | C51: 163.35 | D51: 169.7 | E51: 161 | F51: 166.95 | G51: 167 | H51: 161.2 | I51: 150740 | J51: 25229905.15 | K51: 2018-11-06 | L51: 3249 | M51: INE298G01027
A52: AKSHARCHEM | B52: EQ | C52: 478.3 | D52: 478.3 | E52: 462.5 | F52: 468.3 | G52: 466.25 | H52: 478.3 | I52: 1199 | J52: 562491.3 | K52: 2018-11-06 | L52: 125 | M52: INE542B01011
A53: AKSHOPTFBR | B53: EQ | C53: 27.5 | D53: 27.65 | E53: 26.9 | F53: 27.25 | G53: 27.2 | H53: 27.55 | I53: 1033501 | J53: 28207827.1 | K53: 2018-11-06 | L53: 2337 | M53: INE523B01011
A54: AKZOINDIA | B54: EQ | C54: 1588.65 | D54: 1591.2 | E54: 1555.85 | F54: 1566.85 | G54: 1567.95 | H54: 1584.15 | I54: 1470 | J54: 2306362.4 | K54: 2018-11-06 | L54: 274 | M54: INE133A01011
A55: ALANKIT | B55: EQ | C55: 21.25 | D55: 21.9 | E55: 21.15 | F55: 21.3 | G55: 21.25 | H55: 21.45 | I55: 273876 | J55: 5866062.2 | K55: 2018-11-06 | L55: 459 | M55: INE914E01040
A56: ALBERTDAVD | B56: EQ | C56: 523.1 | D56: 533.35 | E56: 516 | F56: 521.75 | G56: 522.1 | H56: 524.7 | I56: 2692 | J56: 1413121.2 | K56: 2018-11-06 | L56: 245 | M56: INE155C01010
A57: ALBK | B57: EQ | C57: 44 | D57: 45.05 | E57: 43.3 | F57: 43.55 | G57: 43.45 | H57: 43.7 | I57: 3873972 | J57: 170424187.9 | K57: 2018-11-06 | L57: 9297 | M57: INE428A01015
A58: ALCHEM | B58: BE | C58: 3.3 | D58: 3.5 | E58: 3.2 | F58: 3.2 | G58: 3.2 | H58: 3.35 | I58: 69684 | J58: 224280.3 | K58: 2018-11-06 | L58: 51 | M58: INE964B01033
A59: ALEMBICLTD | B59: EQ | C59: 43.6 | D59: 44.8 | E59: 43.2 | F59: 44.35 | G59: 44.4 | H59: 43.3 | I59: 257174 | J59: 11321599.6 | K59: 2018-11-06 | L59: 1735 | M59: INE426A01027
A60: ALICON | B60: EQ | C60: 616.8 | D60: 625.2 | E60: 603.4 | F60: 615.05 | G60: 606 | H60: 624.25 | I60: 1352 | J60: 830380.55 | K60: 2018-11-06 | L60: 134 | M60: INE062D01024
A61: ALKALI | B61: EQ | C61: 59 | D61: 61 | E61: 58 | F61: 58.45 | G61: 58.6 | H61: 57.85 | I61: 4287 | J61: 251994.2 | K61: 2018-11-06 | L61: 108 | M61: INE773I01017
A62: ALKEM | B62: EQ | C62: 1912.1 | D62: 1914.95 | E62: 1874 | F62: 1880.75 | G62: 1893 | H62: 1911.85 | I62: 139047 | J62: 262754258.2 | K62: 2018-11-06 | L62: 6005 | M62: INE540L01014
A63: ALKYLAMINE | B63: EQ | C63: 685.8 | D63: 702 | E63: 680.6 | F63: 699.15 | G63: 695.5 | H63: 685.8 | I63: 9197 | J63: 6435922.05 | K63: 2018-11-06 | L63: 253 | M63: INE150B01021
A64: ALLCARGO | B64: EQ | C64: 105 | D64: 108 | E64: 103.15 | F64: 106.7 | G64: 107.1 | H64: 102.8 | I64: 292817 | J64: 31208196.1 | K64: 2018-11-06 | L64: 4101 | M64: INE418H01029
A65: ALLSEC | B65: EQ | C65: 241.55 | D65: 251 | E65: 241.55 | F65: 246.8 | G65: 246 | H65: 247.1 | I65: 2206 | J65: 540624.85 | K65: 2018-11-06 | L65: 267 | M65: INE835G01018
A66: ALMONDZ | B66: EQ | C66: 23.3 | D66: 23.3 | E66: 23.3 | F66: 23.3 | G66: 23.3 | H66: 23.75 | I66: 9 | J66: 209.7 | K66: 2018-11-06 | L66: 2 | M66: INE326B01027
A67: ALOKTEXT | B67: EQ | C67: 3.2 | D67: 3.2 | E67: 3.1 | F67: 3.15 | G67: 3.15 | H67: 3.1 | I67: 2410440 | J67: 7590693.3 | K67: 2018-11-06 | L67: 717 | M67: INE270A01011
A68: ALPA | B68: EQ | C68: 26.85 | D68: 27 | E68: 26 | F68: 26.15 | G68: 26.65 | H68: 26.5 | I68: 9505 | J68: 249754.2 | K68: 2018-11-06 | L68: 78 | M68: INE385I01010
A69: ALPHAGEO | B69: EQ | C69: 509.65 | D69: 509.65 | E69: 500 | F69: 504.65 | G69: 506.1 | H69: 503.35 | I69: 2014 | J69: 1017155.15 | K69: 2018-11-06 | L69: 153 | M69: INE137C01018
A70: ALPSINDUS | B70: BE | C70: 2.6 | D70: 2.6 | E70: 2.4 | F70: 2.6 | G70: 2.6 | H70: 2.5 | I70: 3836 | J70: 9357.6 | K70: 2018-11-06 | L70: 11 | M70: INE093B01015
A71: AMARAJABAT | B71: EQ | C71: 773.9 | D71: 782.2 | E71: 765.9 | F71: 773.25 | G71: 772.15 | H71: 769.6 | I71: 325590 | J71: 251506035.4 | K71: 2018-11-06 | L71: 16453 | M71: INE885A01032
A72: AMBER | B72: EQ | C72: 861.1 | D72: 870 | E72: 858.05 | F72: 864.95 | G72: 865 | H72: 859.9 | I72: 3965 | J72: 3426758.3 | K72: 2018-11-06 | L72: 290 | M72: INE371P01015
A73: AMBIKCO | B73: EQ | C73: 1182.95 | D73: 1216.35 | E73: 1170.3 | F73: 1182.3 | G73: 1178 | H73: 1170.75 | I73: 1202 | J73: 1431902.8 | K73: 2018-11-06 | L73: 256 | M73: INE540G01014
A74: AMBUJACEM | B74: EQ | C74: 206 | D74: 206.95 | E74: 203.25 | F74: 204.2 | G74: 204 | H74: 205.45 | I74: 1757806 | J74: 360821663 | K74: 2018-11-06 | L74: 43804 | M74: INE079A01024
A75: AMDIND | B75: EQ | C75: 20.2 | D75: 21 | E75: 20.1 | F75: 20.55 | G75: 20.55 | H75: 20.95 | I75: 1104 | J75: 22579.95 | K75: 2018-11-06 | L75: 12 | M75: INE005I01014
A76: AMJLAND | B76: EQ | C76: 22.45 | D76: 22.5 | E76: 22 | F76: 22.3 | G76: 22.5 | H76: 22.35 | I76: 4308 | J76: 95987.5 | K76: 2018-11-06 | L76: 25 | M76: INE606A01024
A77: AMRUTANJAN | B77: EQ | C77: 254 | D77: 269.8 | E77: 246.55 | F77: 255.95 | G77: 254.55 | H77: 249.25 | I77: 85181 | J77: 22147849.1 | K77: 2018-11-06 | L77: 2977 | M77: INE098F01031
A78: ANANTRAJ | B78: EQ | C78: 37.05 | D78: 37.25 | E78: 35.95 | F78: 36.55 | G78: 36.55 | H78: 36.95 | I78: 272150 | J78: 9960974.6 | K78: 2018-11-06 | L78: 1662 | M78: INE242C01024
A79: ANDHRABANK | B79: EQ | C79: 29.05 | D79: 31.25 | E79: 29.05 | F79: 29.7 | G79: 29.75 | H79: 28.55 | I79: 4333522 | J79: 130853516.3 | K79: 2018-11-06 | L79: 13999 | M79: INE434A01013
A80: ANDHRACEMT | B80: EQ | C80: 6.35 | D80: 6.35 | E80: 6.2 | F80: 6.2 | G80: 6.25 | H80: 6.2 | I80: 43284 | J80: 270669.75 | K80: 2018-11-06 | L80: 111 | M80: INE666E01012
A81: ANDHRSUGAR | B81: EQ | C81: 368 | D81: 383 | E81: 366 | F81: 375.45 | G81: 375 | H81: 367.65 | I81: 68083 | J81: 25690893.65 | K81: 2018-11-06 | L81: 1567 | M81: INE715B01013
A82: ANGIND | B82: BE | C82: 1.55 | D82: 1.55 | E82: 1.45 | F82: 1.45 | G82: 1.45 | H82: 1.5 | I82: 2771 | J82: 4104.75 | K82: 2018-11-06 | L82: 26 | M82: INE017D01010
A83: ANIKINDS | B83: EQ | C83: 27.2 | D83: 27.5 | E83: 26.8 | F83: 27.35 | G83: 27.4 | H83: 26.55 | I83: 35832 | J83: 971171.6 | K83: 2018-11-06 | L83: 17 | M83: INE087B01017
A84: ANKITMETAL | B84: BE | C84: 0.45 | D84: 0.5 | E84: 0.45 | F84: 0.5 | G84: 0.5 | H84: 0.5 | I84: 16361 | J84: 7464.7 | K84: 2018-11-06 | L84: 12 | M84: INE106I01010
A85: ANSALAPI | B85: EQ | C85: 11.25 | D85: 12.1 | E85: 11.1 | F85: 11.35 | G85: 11.25 | H85: 11.3 | I85: 46331 | J85: 529925.8 | K85: 2018-11-06 | L85: 152 | M85: INE436A01026
A86: ANSALHSG | B86: EQ | C86: 11 | D86: 11 | E86: 10.65 | F86: 10.8 | G86: 10.8 | H86: 10.8 | I86: 13958 | J86: 150736.5 | K86: 2018-11-06 | L86: 84 | M86: INE880B01015
A87: ANTGRAPHIC | B87: BE | C87: 0.5 | D87: 0.55 | E87: 0.5 | F87: 0.55 | G87: 0.55 | H87: 0.5 | I87: 10629 | J87: 5606 | K87: 2018-11-06 | L87: 20 | M87: INE414B01021
A88: APARINDS | B88: EQ | C88: 569.7 | D88: 572 | E88: 565.1 | F88: 571.15 | G88: 570 | H88: 565.75 | I88: 6389 | J88: 3637633 | K88: 2018-11-06 | L88: 348 | M88: INE372A01015
A89: APCL | B89: EQ | C89: 132.9 | D89: 132.9 | E89: 125 | F89: 126.85 | G89: 125 | H89: 130.75 | I89: 817 | J89: 104905.5 | K89: 2018-11-06 | L89: 41 | M89: INE071F01012
A90: APCOTEXIND | B90: EQ | C90: 550 | D90: 552.7 | E90: 530.6 | F90: 545.7 | G90: 550.1 | H90: 545.2 | I90: 999 | J90: 547300.7 | K90: 2018-11-06 | L90: 139 | M90: INE116A01024
A91: APEX | B91: EQ | C91: 398.55 | D91: 411.25 | E91: 395.15 | F91: 400.95 | G91: 400.7 | H91: 395.35 | I91: 106042 | J91: 42734114.3 | K91: 2018-11-06 | L91: 4384 | M91: INE346W01013
A92: APLAPOLLO | B92: EQ | C92: 1241.05 | D92: 1265 | E92: 1175 | F92: 1237.35 | G92: 1228.45 | H92: 1257.15 | I92: 38189 | J92: 46944875.5 | K92: 2018-11-06 | L92: 3341 | M92: INE702C01019
A93: APLLTD | B93: EQ | C93: 588 | D93: 595 | E93: 588 | F93: 590.45 | G93: 591.95 | H93: 590.25 | I93: 16256 | J93: 9603714.35 | K93: 2018-11-06 | L93: 763 | M93: INE901L01018
A94: APOLLO | B94: EQ | C94: 127.8 | D94: 131.05 | E94: 121 | F94: 126.4 | G94: 126.55 | H94: 125.25 | I94: 29370 | J94: 3739285.15 | K94: 2018-11-06 | L94: 1044 | M94: INE713T01010
A95: APOLLOHOSP | B95: EQ | C95: 1164 | D95: 1168.7 | E95: 1121.15 | F95: 1127.35 | G95: 1126.1 | H95: 1164.55 | I95: 460744 | J95: 522616538.6 | K95: 2018-11-06 | L95: 25872 | M95: INE437A01024
A96: APOLLOTYRE | B96: EQ | C96: 216.75 | D96: 219.9 | E96: 211.9 | F96: 212.75 | G96: 212.75 | H96: 215.2 | I96: 2272040 | J96: 492670643.1 | K96: 2018-11-06 | L96: 22288 | M96: INE438A01022
A97: APOLSINHOT | B97: EQ | C97: 727 | D97: 734.95 | E97: 699 | F97: 700.8 | G97: 712.7 | H97: 722.85 | I97: 418 | J97: 295791.25 | K97: 2018-11-06 | L97: 63 | M97: INE451F01024
A98: APTECHT | B98: EQ | C98: 158.05 | D98: 162.3 | E98: 157.95 | F98: 159.15 | G98: 158.8 | H98: 158.8 | I98: 161969 | J98: 25895698.5 | K98: 2018-11-06 | L98: 3423 | M98: INE266F01018
A99: ARCHIDPLY | B99: EQ | C99: 45 | D99: 45.9 | E99: 44.5 | F99: 45.3 | G99: 45.7 | H99: 44.9 | I99: 14553 | J99: 655121.9 | K99: 2018-11-06 | L99: 90 | M99: INE877I01016
A100: ARCHIES | B100: EQ | C100: 29.15 | D100: 29.5 | E100: 27.8 | F100: 27.9 | G100: 27.95 | H100: 29.15 | I100: 79285 | J100: 2248953.3 | K100: 2018-11-06 | L100: 591 | M100: INE731A01020
A101: ARCOTECH | B101: EQ | C101: 8.25 | D101: 8.25 | E101: 8.25 | F101: 8.25 | G101: 8.25 | H101: 7.9 | I101: 33825 | J101: 279056.25 | K101: 2018-11-06 | L101: 44 | M101: INE574I01035
A102: ARIES | B102: EQ | C102: 104.35 | D102: 105.15 | E102: 102.5 | F102: 103.7 | G102: 103.7 | H102: 103.45 | I102: 10137 | J102: 1052644.25 | K102: 2018-11-06 | L102: 289 | M102: INE298I01015
A103: ARIHANT | B103: EQ | C103: 28.85 | D103: 30.6 | E103: 25.25 | F103: 27.15 | G103: 27.15 | H103: 25.5 | I103: 22967 | J103: 655439.95 | K103: 2018-11-06 | L103: 215 | M103: INE413D01011
A104: ARIHANTSUP | B104: EQ | C104: 53 | D104: 56.3 | E104: 48.6 | F104: 53.15 | G104: 53.35 | H104: 52.85 | I104: 25792 | J104: 1365525.6 | K104: 2018-11-06 | L104: 992 | M104: INE643K01018
A105: ARMANFIN | B105: EQ | C105: 354.5 | D105: 354.5 | E105: 336.15 | F105: 337.1 | G105: 337.1 | H105: 341.8 | I105: 394 | J105: 134891.05 | K105: 2018-11-06 | L105: 17 | M105: INE109C01017
A106: AROGRANITE | B106: EQ | C106: 53.2 | D106: 53.2 | E106: 51.25 | F106: 52.3 | G106: 52.4 | H106: 51.4 | I106: 11633 | J106: 606290.3 | K106: 2018-11-06 | L106: 88 | M106: INE210C01013
A107: ARROWGREEN | B107: EQ | C107: 106.05 | D107: 110.1 | E107: 104 | F107: 108.35 | G107: 108 | H107: 106.05 | I107: 10248 | J107: 1106816.9 | K107: 2018-11-06 | L107: 158 | M107: INE570D01018
A108: ARROWTEX | B108: EQ | C108: 26 | D108: 26 | E108: 24.75 | F108: 25.8 | G108: 25.9 | H108: 24.6 | I108: 6181 | J108: 158879.65 | K108: 2018-11-06 | L108: 41 | M108: INE933J01015
A109: ARSHIYA | B109: EQ | C109: 32.95 | D109: 35.5 | E109: 32.95 | F109: 34.5 | G109: 34.75 | H109: 34.95 | I109: 122092 | J109: 4238495.8 | K109: 2018-11-06 | L109: 396 | M109: INE968D01022
A110: ARSSINFRA | B110: EQ | C110: 23 | D110: 23.4 | E110: 22.6 | F110: 22.9 | G110: 22.7 | H110: 22.9 | I110: 3624 | J110: 83219.2 | K110: 2018-11-06 | L110: 70 | M110: INE267I01010
A111: ARVIND | B111: EQ | C111: 323.3 | D111: 325 | E111: 315 | F111: 316.8 | G111: 317.5 | H111: 320.35 | I111: 1376082 | J111: 438204268.3 | K111: 2018-11-06 | L111: 31628 | M111: INE034A01011
A112: ARVSMART | B112: EQ | C112: 120 | D112: 120.85 | E112: 118.3 | F112: 119.1 | G112: 120 | H112: 119.35 | I112: 5136 | J112: 615386.15 | K112: 2018-11-06 | L112: 123 | M112: INE034S01021
A113: ASAHIINDIA | B113: EQ | C113: 291.95 | D113: 293.55 | E113: 285 | F113: 285.45 | G113: 285.3 | H113: 287.7 | I113: 8045 | J113: 2316954.95 | K113: 2018-11-06 | L113: 388 | M113: INE439A01020
A114: ASAHISONG | B114: EQ | C114: 251 | D114: 252.95 | E114: 241.7 | F114: 243.35 | G114: 242.2 | H114: 253.2 | I114: 2120 | J114: 521411.3 | K114: 2018-11-06 | L114: 176 | M114: INE228I01012
A115: ASAL | B115: EQ | C115: 52.85 | D115: 53.35 | E115: 49.5 | F115: 52.6 | G115: 52.5 | H115: 52 | I115: 20656 | J115: 1088150.4 | K115: 2018-11-06 | L115: 240 | M115: INE900C01027
A116: ASHAPURMIN | B116: EQ | C116: 29.35 | D116: 31 | E116: 29.25 | F116: 29.7 | G116: 29.75 | H116: 29.55 | I116: 54043 | J116: 1624316.8 | K116: 2018-11-06 | L116: 429 | M116: INE348A01023
A117: ASHIANA | B117: EQ | C117: 125.1 | D117: 126.25 | E117: 122 | F117: 124.85 | G117: 125 | H117: 125 | I117: 226257 | J117: 28256269.35 | K117: 2018-11-06 | L117: 1370 | M117: INE365D01021
A118: ASHIMASYN | B118: EQ | C118: 14.75 | D118: 15.55 | E118: 14.7 | F118: 14.95 | G118: 15.05 | H118: 14.7 | I118: 48496 | J118: 739548.05 | K118: 2018-11-06 | L118: 288 | M118: INE440A01010
A119: ASHOKA | B119: EQ | C119: 121.55 | D119: 124.25 | E119: 117.25 | F119: 123.1 | G119: 123 | H119: 120.55 | I119: 111833 | J119: 13547384.9 | K119: 2018-11-06 | L119: 2878 | M119: INE442H01029
A120: ASHOKLEY | B120: EQ | C120: 121.35 | D120: 122.15 | E120: 118.7 | F120: 120.9 | G120: 120.9 | H120: 120.7 | I120: 16862260 | J120: 2035481065 | K120: 2018-11-06 | L120: 67894 | M120: INE208A01029
A121: ASIANHOTNR | B121: EQ | C121: 160.5 | D121: 160.5 | E121: 149.1 | F121: 149.1 | G121: 149.1 | H121: 150 | I121: 1512 | J121: 229396.8 | K121: 2018-11-06 | L121: 21 | M121: INE363A01022
A122: ASIANPAINT | B122: EQ | C122: 1242.2 | D122: 1255 | E122: 1235 | F122: 1238.5 | G122: 1236 | H122: 1244.05 | I122: 815046 | J122: 1012806239 | K122: 2018-11-06 | L122: 30739 | M122: INE021A01026
A123: ASIANTILES | B123: EQ | C123: 182.8 | D123: 183 | E123: 178.65 | F123: 180.8 | G123: 180.35 | H123: 180 | I123: 29007 | J123: 5250888.15 | K123: 2018-11-06 | L123: 772 | M123: INE022I01019
A124: ASPINWALL | B124: EQ | C124: 197.5 | D124: 197.5 | E124: 192 | F124: 195 | G124: 195 | H124: 197.5 | I124: 313 | J124: 60651.5 | K124: 2018-11-06 | L124: 8 | M124: INE991I01015
A125: ASSAMCO | B125: BE | C125: 1.9 | D125: 1.9 | E125: 1.9 | F125: 1.9 | G125: 1.9 | H125: 1.95 | I125: 184537 | J125: 350620.3 | K125: 2018-11-06 | L125: 69 | M125: INE442A01024
A126: ASTEC | B126: EQ | C126: 536 | D126: 536 | E126: 524.05 | F126: 529.55 | G126: 527 | H126: 527.45 | I126: 6104 | J126: 3235113 | K126: 2018-11-06 | L126: 460 | M126: INE563J01010
A127: ASTERDM | B127: EQ | C127: 159.4 | D127: 159.95 | E127: 155.2 | F127: 156.65 | G127: 156.3 | H127: 159.2 | I127: 34620 | J127: 5461416.75 | K127: 2018-11-06 | L127: 1119 | M127: INE914M01019
A128: ASTRAL | B128: EQ | C128: 952.3 | D128: 972.35 | E128: 941.15 | F128: 967.05 | G128: 955.05 | H128: 956.55 | I128: 11043 | J128: 10585489.9 | K128: 2018-11-06 | L128: 1127 | M128: INE006I01046
A129: ASTRAMICRO | B129: EQ | C129: 81.45 | D129: 81.45 | E129: 78.75 | F129: 79.25 | G129: 79.1 | H129: 80.75 | I129: 62152 | J129: 4966877.05 | K129: 2018-11-06 | L129: 1073 | M129: INE386C01029
A130: ASTRAZEN | B130: EQ | C130: 1697.95 | D130: 1710 | E130: 1675.25 | F130: 1697.55 | G130: 1685.5 | H130: 1697.55 | I130: 7201 | J130: 12207262.05 | K130: 2018-11-06 | L130: 827 | M130: INE203A01020
A131: ASTRON | B131: EQ | C131: 119.8 | D131: 119.8 | E131: 114.1 | F131: 114.65 | G131: 114.65 | H131: 119 | I131: 180303 | J131: 21041997.05 | K131: 2018-11-06 | L131: 1913 | M131: INE646X01014
A132: ATFL | B132: EQ | C132: 514.05 | D132: 531.95 | E132: 513.75 | F132: 517.5 | G132: 516.3 | H132: 524.15 | I132: 2030 | J132: 1060015.35 | K132: 2018-11-06 | L132: 234 | M132: INE209A01019
A133: ATLANTA | B133: EQ | C133: 30.45 | D133: 30.45 | E133: 28.2 | F133: 28.4 | G133: 28.2 | H133: 29.45 | I133: 30043 | J133: 866866.35 | K133: 2018-11-06 | L133: 396 | M133: INE285H01022
A134: ATUL | B134: EQ | C134: 3364.9 | D134: 3385.75 | E134: 3325 | F134: 3363.1 | G134: 3365 | H134: 3345.85 | I134: 6750 | J134: 22709344.35 | K134: 2018-11-06 | L134: 1071 | M134: INE100A01010
A135: ATULAUTO | B135: EQ | C135: 352 | D135: 354.25 | E135: 340 | F135: 342.1 | G135: 341 | H135: 350.25 | I135: 5270 | J135: 1821527.25 | K135: 2018-11-06 | L135: 541 | M135: INE951D01028
A136: AUBANK | B136: EQ | C136: 552.55 | D136: 556 | E136: 546.05 | F136: 549.25 | G136: 547 | H136: 554.8 | I136: 63045 | J136: 34688295.15 | K136: 2018-11-06 | L136: 6050 | M136: INE949L01017
A137: AURIONPRO | B137: EQ | C137: 167 | D137: 172.4 | E137: 164.7 | F137: 171.25 | G137: 170 | H137: 163.3 | I137: 20810 | J137: 3516275.4 | K137: 2018-11-06 | L137: 446 | M137: INE132H01018
A138: AUROPHARMA | B138: EQ | C138: 782.2 | D138: 793.7 | E138: 777.5 | F138: 785.9 | G138: 783.9 | H138: 779.15 | I138: 1675997 | J138: 1316605438 | K138: 2018-11-06 | L138: 43289 | M138: INE406A01037
A139: AUSOMENT | B139: EQ | C139: 49.95 | D139: 53.55 | E139: 49.6 | F139: 50.1 | G139: 50.05 | H139: 49.85 | I139: 1119 | J139: 57353.9 | K139: 2018-11-06 | L139: 82 | M139: INE218C01016
A140: AUTOAXLES | B140: EQ | C140: 1180.3 | D140: 1288 | E140: 1180.3 | F140: 1264.65 | G140: 1260.1 | H140: 1178.3 | I140: 192587 | J140: 238296533.5 | K140: 2018-11-06 | L140: 13652 | M140: INE449A01011
A141: AUTOIND | B141: EQ | C141: 59.7 | D141: 61.05 | E141: 59 | F141: 59.5 | G141: 59.2 | H141: 59.55 | I141: 10283 | J141: 613527.45 | K141: 2018-11-06 | L141: 175 | M141: INE718H01014
A142: AUTOLITIND | B142: EQ | C142: 42.6 | D142: 44.5 | E142: 41.7 | F142: 43.35 | G142: 43.4 | H142: 42.85 | I142: 3883 | J142: 169033.05 | K142: 2018-11-06 | L142: 107 | M142: INE448A01013
A143: AVADHSUGAR | B143: EQ | C143: 404.55 | D143: 428.95 | E143: 399 | F143: 410.3 | G143: 411.5 | H143: 414.4 | I143: 64956 | J143: 26849293.65 | K143: 2018-11-06 | L143: 2793 | M143: INE349W01017
A144: AVANTIFEED | B144: EQ | C144: 417.5 | D144: 452 | E144: 417 | F144: 438.4 | G144: 436.6 | H144: 414.2 | I144: 1074941 | J144: 470834465.4 | K144: 2018-11-06 | L144: 34786 | M144: INE871C01038
A145: AVTNPL | B145: EQ | C145: 27.1 | D145: 27.1 | E145: 26 | F145: 26.65 | G145: 26.5 | H145: 26.9 | I145: 38780 | J145: 1034567.7 | K145: 2018-11-06 | L145: 244 | M145: INE488D01021
A146: AXISBANK | B146: EQ | C146: 626 | D146: 628.1 | E146: 600.05 | F146: 607.45 | G146: 608.1 | H146: 624.4 | I146: 15354794 | J146: 9377663628 | K146: 2018-11-06 | L146: 217745 | M146: INE238A01034
A147: AXISCADES | B147: EQ | C147: 84.75 | D147: 85 | E147: 82.5 | F147: 83.25 | G147: 83 | H147: 85.4 | I147: 66726 | J147: 5578002.7 | K147: 2018-11-06 | L147: 916 | M147: INE555B01013
A148: AXISGOLD | B148: EQ | C148: 2900 | D148: 2900 | E148: 2822 | F148: 2845.2 | G148: 2860 | H148: 2858.65 | I148: 454 | J148: 1294292.1 | K148: 2018-11-06 | L148: 57 | M148: INF846K01347
A149: AXISNIFTY | B149: EQ | C149: 1082.18 | D149: 1082.18 | E149: 1067.78 | F149: 1067.78 | G149: 1067.78 | H149: 1064.41 | I149: 14 | J149: 15103.32 | K149: 2018-11-06 | L149: 6 | M149: INF846K01ZL0
A150: AYMSYNTEX | B150: EQ | C150: 42.3 | D150: 43.2 | E150: 41.05 | F150: 42.85 | G150: 43 | H150: 41.75 | I150: 10140 | J150: 430920 | K150: 2018-11-06 | L150: 63 | M150: INE193B01039
A151: BAFNAPHARM | B151: EQ | C151: 14.25 | D151: 14.25 | E151: 13.5 | F151: 13.8 | G151: 13.7 | H151: 13.8 | I151: 6278 | J151: 86068.4 | K151: 2018-11-06 | L151: 66 | M151: INE878I01014
A152: BAGFILMS | B152: EQ | C152: 4.65 | D152: 4.75 | E152: 4.6 | F152: 4.65 | G152: 4.7 | H152: 4.65 | I152: 71530 | J152: 333466.55 | K152: 2018-11-06 | L152: 112 | M152: INE116D01028
A153: BAJAJ-AUTO | B153: EQ | C153: 2673.2 | D153: 2698 | E153: 2658.95 | F153: 2674.6 | G153: 2670 | H153: 2672.55 | I153: 278587 | J153: 746924974 | K153: 2018-11-06 | L153: 19902 | M153: INE917I01010
A154: BAJAJCORP | B154: EQ | C154: 352.2 | D154: 357.25 | E154: 350.5 | F154: 354.35 | G154: 352.25 | H154: 350.05 | I154: 15868 | J154: 5628190.2 | K154: 2018-11-06 | L154: 700 | M154: INE933K01021
A155: BAJAJELEC | B155: EQ | C155: 508 | D155: 517.3 | E155: 498.1 | F155: 501.7 | G155: 500.9 | H155: 505.7 | I155: 178048 | J155: 90430374.5 | K155: 2018-11-06 | L155: 4756 | M155: INE193E01025
A156: BAJAJFINSV | B156: EQ | C156: 5598.8 | D156: 5689.8 | E156: 5564.95 | F156: 5591 | G156: 5570 | H156: 5569.6 | I156: 208350 | J156: 1174383658 | K156: 2018-11-06 | L156: 19719 | M156: INE918I01018
A157: BAJAJHIND | B157: EQ | C157: 10.9 | D157: 11.2 | E157: 10.8 | F157: 10.9 | G157: 10.95 | H157: 10.95 | I157: 2270176 | J157: 24932647.4 | K157: 2018-11-06 | L157: 2960 | M157: INE306A01021
A158: BAJAJHLDNG | B158: EQ | C158: 2817.8 | D158: 2817.8 | E158: 2792 | F158: 2799.05 | G158: 2800 | H158: 2833.45 | I158: 2250 | J158: 6302722.3 | K158: 2018-11-06 | L158: 452 | M158: INE118A01012
A159: BAJFINANCE | B159: EQ | C159: 2370 | D159: 2389.9 | E159: 2332.35 | F159: 2339.75 | G159: 2335 | H159: 2359.4 | I159: 1368682 | J159: 3225758929 | K159: 2018-11-06 | L159: 58423 | M159: INE296A01024
A160: BALAJITELE | B160: EQ | C160: 98.3 | D160: 105.3 | E160: 98.3 | F160: 102.95 | G160: 103 | H160: 97.65 | I160: 73284 | J160: 7509974.4 | K160: 2018-11-06 | L160: 1101 | M160: INE794B01026
A161: BALAMINES | B161: EQ | C161: 438.45 | D161: 443 | E161: 434.55 | F161: 437.8 | G161: 438.8 | H161: 434.95 | I161: 11977 | J161: 5243503.35 | K161: 2018-11-06 | L161: 631 | M161: INE050E01027
A162: BALKRISHNA | B162: EQ | C162: 55.7 | D162: 57.35 | E162: 53 | F162: 53.25 | G162: 53.1 | H162: 55.45 | I162: 26127 | J162: 1409980.05 | K162: 2018-11-06 | L162: 399 | M162: INE875R01011
A163: BALKRISIND | B163: EQ | C163: 1033 | D163: 1039 | E163: 940 | F163: 943.95 | G163: 942.6 | H163: 1068.85 | I163: 5292843 | J163: 5118450712 | K163: 2018-11-06 | L163: 200179 | M163: INE787D01026
A164: BALLARPUR | B164: EQ | C164: 6.4 | D164: 6.5 | E164: 6.25 | F164: 6.4 | G164: 6.45 | H164: 6.4 | I164: 321626 | J164: 2049734.95 | K164: 2018-11-06 | L164: 560 | M164: INE294A01037
A165: BALMLAWRIE | B165: EQ | C165: 196.05 | D165: 209.4 | E165: 191.55 | F165: 203.8 | G165: 203.4 | H165: 193.2 | I165: 387522 | J165: 78718976.1 | K165: 2018-11-06 | L165: 7102 | M165: INE164A01016
A166: BALPHARMA | B166: EQ | C166: 81.5 | D166: 84.2 | E166: 81.5 | F166: 82.4 | G166: 83.75 | H166: 83.6 | I166: 7174 | J166: 593093.7 | K166: 2018-11-06 | L166: 177 | M166: INE083D01012
A167: BALRAMCHIN | B167: EQ | C167: 104.3 | D167: 106 | E167: 102.75 | F167: 103.9 | G167: 103.9 | H167: 103.55 | I167: 2450870 | J167: 255835008.9 | K167: 2018-11-06 | L167: 15315 | M167: INE119A01028
A168: BANARBEADS | B168: EQ | C168: 50.45 | D168: 50.45 | E168: 48.85 | F168: 50.4 | G168: 50.4 | H168: 49.9 | I168: 574 | J168: 28924.05 | K168: 2018-11-06 | L168: 7 | M168: INE655B01011
A169: BANARISUG | B169: EQ | C169: 1777.9 | D169: 1777.9 | E169: 1752.05 | F169: 1769.85 | G169: 1772 | H169: 1772.75 | I169: 102 | J169: 180378.05 | K169: 2018-11-06 | L169: 31 | M169: INE459A01010
A170: BANCOINDIA | B170: EQ | C170: 182.35 | D170: 185.05 | E170: 181.5 | F170: 183.4 | G170: 184 | H170: 182.8 | I170: 16889 | J170: 3101504.3 | K170: 2018-11-06 | L170: 405 | M170: INE213C01025
A171: BANDHANBNK | B171: EQ | C171: 444.9 | D171: 445.7 | E171: 435 | F171: 437.55 | G171: 437.3 | H171: 435.95 | I171: 317131 | J171: 139240141.4 | K171: 2018-11-06 | L171: 11143 | M171: INE545U01014
A172: BANG | B172: EQ | C172: 51 | D172: 51 | E172: 49.15 | F172: 50.3 | G172: 50.35 | H172: 49.9 | I172: 6327 | J172: 319312.05 | K172: 2018-11-06 | L172: 34 | M172: INE863I01016
A173: BANKBARODA | B173: EQ | C173: 112.25 | D173: 112.65 | E173: 109.85 | F173: 110.45 | G173: 110.3 | H173: 111.2 | I173: 17283224 | J173: 1925931683 | K173: 2018-11-06 | L173: 51332 | M173: INE028A01039
A174: BANKBEES | B174: EQ | C174: 2634.97 | D174: 2638.95 | E174: 2605 | F174: 2605.7 | G174: 2613.97 | H174: 2624.2 | I174: 1347 | J174: 3524415.59 | K174: 2018-11-06 | L174: 297 | M174: INF732E01078
A175: BANKINDIA | B175: EQ | C175: 86.5 | D175: 87.4 | E175: 85.1 | F175: 85.9 | G175: 86 | H175: 86 | I175: 5154173 | J175: 444684822.7 | K175: 2018-11-06 | L175: 15493 | M175: INE084A01016
A176: BANSWRAS | B176: EQ | C176: 70.05 | D176: 74.85 | E176: 68.05 | F176: 74.55 | G176: 74.75 | H176: 70 | I176: 1139 | J176: 80830.8 | K176: 2018-11-06 | L176: 46 | M176: INE629D01012
A177: BARTRONICS | B177: EQ | C177: 7.15 | D177: 7.45 | E177: 7.05 | F177: 7.3 | G177: 7.3 | H177: 7.25 | I177: 15277 | J177: 110450.8 | K177: 2018-11-06 | L177: 58 | M177: INE855F01034
A178: BASF | B178: EQ | C178: 1629.55 | D178: 1641.8 | E178: 1567.95 | F178: 1585.35 | G178: 1589.95 | H178: 1618.55 | I178: 4941 | J178: 7915162.1 | K178: 2018-11-06 | L178: 901 | M178: INE373A01013
A179: BASML | B179: EQ | C179: 199.5 | D179: 199.5 | E179: 197 | F179: 197.35 | G179: 197 | H179: 198.9 | I179: 650 | J179: 128608.3 | K179: 2018-11-06 | L179: 15 | M179: INE186H01014
A180: BATAINDIA | B180: EQ | C180: 1000.75 | D180: 1026 | E180: 1000.75 | F180: 1010.95 | G180: 1010 | H180: 1000.55 | I180: 1388239 | J180: 1414347661 | K180: 2018-11-06 | L180: 31970 | M180: INE176A01028
A181: BAYERCROP | B181: EQ | C181: 3899 | D181: 3989 | E181: 3876.55 | F181: 3959.4 | G181: 3932.15 | H181: 3900.15 | I181: 3728 | J181: 14762584.85 | K181: 2018-11-06 | L181: 1372 | M181: INE462A01022
A182: BBL | B182: EQ | C182: 1245 | D182: 1248.6 | E182: 1220 | F182: 1233.5 | G182: 1228 | H182: 1238.5 | I182: 2255 | J182: 2781419.5 | K182: 2018-11-06 | L182: 288 | M182: INE464A01028
A183: BBTC | B183: EQ | C183: 1368 | D183: 1411 | E183: 1363 | F183: 1379.35 | G183: 1386 | H183: 1362.1 | I183: 211375 | J183: 294152698.1 | K183: 2018-11-06 | L183: 9501 | M183: INE050A01025
A184: BCG | B184: EQ | C184: 3.3 | D184: 3.6 | E184: 3.25 | F184: 3.3 | G184: 3.3 | H184: 3.4 | I184: 663579 | J184: 2250879.6 | K184: 2018-11-06 | L184: 428 | M184: INE425B01027
A185: BDL | B185: EQ | C185: 290.8 | D185: 295.1 | E185: 287.6 | F185: 288.25 | G185: 287.6 | H185: 293.35 | I185: 6982 | J185: 2024141.55 | K185: 2018-11-06 | L185: 980 | M185: INE171Z01018
A186: BEARDSELL | B186: EQ | C186: 25 | D186: 25.5 | E186: 24.5 | F186: 24.6 | G186: 24.5 | H186: 25.25 | I186: 1095 | J186: 27574.85 | K186: 2018-11-06 | L186: 14 | M186: INE520H01022
A187: BEDMUTHA | B187: BE | C187: 20 | D187: 20.2 | E187: 19.5 | F187: 19.6 | G187: 19.75 | H187: 20.2 | I187: 3051 | J187: 60483.55 | K187: 2018-11-06 | L187: 21 | M187: INE844K01012
A188: BEL | B188: EQ | C188: 95.75 | D188: 96.75 | E188: 94.7 | F188: 95.25 | G188: 94.85 | H188: 95.1 | I188: 4311780 | J188: 412889595.6 | K188: 2018-11-06 | L188: 19106 | M188: INE263A01024
A189: BEML | B189: EQ | C189: 710 | D189: 722.25 | E189: 696.8 | F189: 714.4 | G189: 712.8 | H189: 708.25 | I189: 1832217 | J189: 1299969233 | K189: 2018-11-06 | L189: 38419 | M189: INE258A01016
A190: BEPL | B190: EQ | C190: 85.55 | D190: 85.55 | E190: 82.2 | F190: 83.3 | G190: 83.35 | H190: 84.05 | I190: 192113 | J190: 16003097.6 | K190: 2018-11-06 | L190: 2813 | M190: INE922A01025
A191: BERGEPAINT | B191: EQ | C191: 302 | D191: 304.25 | E191: 296.55 | F191: 297.65 | G191: 297.2 | H191: 301.05 | I191: 504292 | J191: 151216763.4 | K191: 2018-11-06 | L191: 8242 | M191: INE463A01038
A192: BFINVEST | B192: EQ | C192: 249.9 | D192: 253 | E192: 244.4 | F192: 248.8 | G192: 250 | H192: 248.65 | I192: 97682 | J192: 24371209.55 | K192: 2018-11-06 | L192: 2727 | M192: INE878K01010
A193: BFUTILITIE | B193: EQ | C193: 218.95 | D193: 221.7 | E193: 216.05 | F193: 217.7 | G193: 216.65 | H193: 217.9 | I193: 211549 | J193: 46286820.3 | K193: 2018-11-06 | L193: 4348 | M193: INE243D01012
A194: BGLOBAL | B194: BE | C194: 2.55 | D194: 2.55 | E194: 2.4 | F194: 2.4 | G194: 2.4 | H194: 2.45 | I194: 2912 | J194: 7300 | K194: 2018-11-06 | L194: 4 | M194: INE224M01013
A195: BGRENERGY | B195: EQ | C195: 58.9 | D195: 59 | E195: 57.05 | F195: 57.8 | G195: 58 | H195: 57.65 | I195: 70228 | J195: 4063309.25 | K195: 2018-11-06 | L195: 1167 | M195: INE661I01014
A196: BHAGERIA | B196: EQ | C196: 312 | D196: 312 | E196: 299 | F196: 301.85 | G196: 303.15 | H196: 307.4 | I196: 7310 | J196: 2223230.05 | K196: 2018-11-06 | L196: 360 | M196: INE354C01027
A197: BHAGYANGR | B197: EQ | C197: 32.2 | D197: 32.2 | E197: 30.3 | F197: 31.4 | G197: 31.5 | H197: 31.4 | I197: 4248 | J197: 133704.2 | K197: 2018-11-06 | L197: 116 | M197: INE458B01036
A198: BHAGYAPROP | B198: EQ | C198: 27.75 | D198: 27.75 | E198: 26 | F198: 27 | G198: 27 | H198: 26.05 | I198: 51928 | J198: 1400278.1 | K198: 2018-11-06 | L198: 69 | M198: INE363W01018
A199: BHANDARI | B199: EQ | C199: 2.05 | D199: 2.05 | E199: 2 | F199: 2 | G199: 2 | H199: 2 | I199: 71741 | J199: 145824.65 | K199: 2018-11-06 | L199: 59 | M199: INE474E01029
A200: BHARATFIN | B200: EQ | C200: 919.6 | D200: 930 | E200: 891.55 | F200: 904.35 | G200: 905.95 | H200: 918.85 | I200: 1039097 | J200: 941246633.6 | K200: 2018-11-06 | L200: 17055 | M200: INE180K01011
... 1438 more rows
